Workbook

Sheet Index
A1: TNUoS Five-Year View 2020/21 to 2024/25 - Tables and Figures
A2: List of tables
A4: =TA!A1 -> Table A - RIIO-T2 assumptions
A5: =TB!A1 -> Table B – Summary of average demand tariffs
A6: ='TC FD'!A1 -> Table C – Gross Half-Hourly demand tariffs by demand zone
A7: ='TE FF'!A1 -> Table E – Embedded Export Tariffs
A8: ='TG FH'!A1 -> Table G – NHH demand tariff changes
A9: =TI!A1 -> Table I – Small Generator Discount impact on demand tariffs
A10: =TJ!A1 -> Table J – Classifications of generation technologies
A11: =TK!A1 -> Table K - Generation wider tariffs in 2020/21
A12: =TL!A1 -> Table L - Generation wider tariffs in 2021/22
A13: =TM!A1 -> Table M - Generation wider tariffs in 2022/23
A14: =TN!A1 -> Table N - Generation wider tariffs in 2023/24
A15: =TO!A1 -> Table O - Generation wider tariffs in 2024/25
A16: ='TP FQ'!A1 -> Table P - Comparison of Conventional Carbon (80%) tariffs
A17: ='TR FS'!A1 -> Table R - Comparison of Conventional Low Carbon 80% tariffs
A18: ='TT FU'!A1 -> Table T - Comparison of Intermittent (40%) tariffs
A19: =TV!A1 -> Table V – Local substation tariffs for 2020/21
A20: =TW!A1 -> Table W – Onshore local circuit tariffs
A21: =TX!A1 -> Table X - CMP203: Circuits subject to one-off charges
A22: =TY!A1 -> Table Y – Offshore local tariffs for 2020/21
A23: =TZ!A1 -> Table Z - Generation contracted, modelled and chargeable TEC
A24: =TAA!A1 -> Table AA – Interconnectors
A25: =TBB!A1 -> Table BB – Expansion constant and inflation indices
A26: =TCC!A1 -> Table CC - Week 24 DNO zonal demand forecast
A27: =TDD!A1 -> Table DD – Allowed revenues
A28: =TEE!A1 -> Table EE - Error margin calculation
A29: =TFF!A1 -> Table FF – Generation and demand revenue proportions
A30: =TGG!A1 -> Table GG – Equivalent €/MWh generation tariffs in each year
A31: =THH!A1 -> Table HH – Demand charging base and system peak
A32: =TII!A1 -> Table II - Residual Calculation
A33: =TJJ!A1 -> Table JJ - Small Generator Discount calculation
A34: =TKK!A1 -> Table KK – Effect of changing parameters on tariffs for RIIO-T2
A35: =TLL!A1 -> Table LL – The effect of additional revenue on TNUoS tariffs
A36: =TMM!A1 -> Table MM – The effect of increasing the G/D split error margin to 21%
A37: =TNN!A1 -> Table NN – The effect of increasing the G/D split £:€ exchange rate
A38: =TOO!A1 -> Table TOO – The effect on the G/D split of reducing the chargeable generation volume
A39: =TPP!A1 -> Table PP - The effect on tariffs of removing offshore revenue from the G/D split calculation
A40: =TQQ!A1 -> Table QQ – The effect of reducing chargeable demand volumes by 1GW
A41: =TRR!A1 -> Table RR – The effect of reducing NHH demand by 10%
A42: =TSS!A1 -> Table SS – The effect of increasing embedded export volumes by 2GW
A43: =TTT!A1 -> Table TT – The effect of increasing the value of the AGIC by £2/kW
A44: =TUU!A1 -> Table UU – The effect on embedded export tariffs of increasing the value of the AGIC by £2/kW
A45: =TVV!A1 -> Table VV – The split of revenue recovered through the demand residual from the HH and NHH charging bases
A46: =TWW!A1 -> Table WW - Generation zone 1 tariffs with remote island links in the wider network (2024/25 model)
A47: =TXX!A1 -> Table XX - Indicative wider tariffs for the three remote islands generation zones (2024/25 model)
A48: =TYY!A1 -> Table YY - Treatment of metering classes for demand charging from 2019/20 onwards
A49: =TZZ!A1 -> Table ZZ – Elements of the demand location tariff for 2020/21
A50: =TAAA!A1 -> Table AAA – Elements of the demand location tariff for 2021/22
A51: =TBBB!A1 -> Table BBB – Elements of the demand location tariff for 2022/23
A52: =TCCC!A1 -> Table CCC – Elements of the demand location tariff for 2023/24
A53: =TDDD!A1 -> Table DDD – Elements of the demand location tariff for 2024/25
A54: =TEEE!A1 -> Table EEE - Annual Load Factors
A55: =TFFF!A1 -> Table FFF - Generic Annual Load Factors
A56: =TGGG!A1 -> Table GGG - Summary of in flight CUSC modification proposals
A57: =THHH!A1 -> Table HHH - Contracted generation TEC
A58: =TIII!A1 -> Table III - Contracted TEC by generation zone
A59: ='TJJJ TKKK TLLL'!A1 -> Tables JJJ, KKK & LLL - Revenue breakdown
A60: =TMMM!A1 -> Table MMM - Offshore Transmission Revenue Forecast
A61: =TNNN!A1 -> Table NNN - Gross system peak demand (GW)
A62: =TOOO!A1 -> Table OOO - Gross HH demand (GW)
A63: =TPPP!A1 -> Table PPP - Embedded export volumes (GW)
A64: =TQQQ!A1 -> Table QQQ - NHH demand (TWh)
A66: List of figures
A68: ='TC FD'!J2 -> Figure D Gross Half-Hourly demand tariffs by demand zone
A69: ='TE FF'!J2 -> Figure F - Embedded Export Tariff
A70: ='TG FH'!J2 -> Figure H - NHH demand tariff changes
A71: ='TP FQ'!J2 -> Figure Q – Wider tariffs for a Conventional Carbon 80% generator
A72: ='TR FS'!J2 -> Figure S - Wider tariffs for a Conventional Low Carbon 80% generator
A73: ='TT FU'!J2 -> Figure U - Wider tariffs for an Intermittent 40% load factor generator

Sheet TA
A1: Table A - RIIO-T2 assumptions | D1: Return to Index
A4: Component | B4: Description | C4: Assumptions for 2021/22 onwards
A5: Maximum Allowed Revenue | B5: The MAR for onshore TOs in the new price control period will be determined during the negotiations up to the start of the price control period. | C5: Our assumption in these tariffs is based on current onshore TOs’ MAR forecast under relevant STC procedures.
A6: Generation zones | B6: There are currently 27 generation zones. At the start of the next price control, there is a requirement to rezone to ensure the spread of nodal prices within a zone is +/- £1/kW. Preliminary analysis[1] in 2016 suggests that more than forty zones may be required to achieve this spread by the next price control. | C6: Our assumption in these tariffs is that the number of generation zones remains at 27. We are also considering whether a CUSC change needs to be made to the charging methodology to provide greater stability in the number of charging zones.
A7: Expansion Factor and Constants | B7: The expansion factor and expansion constants need to be recalculated by the start of RIIO-T2, based on TOs’ business plans and costs of investments. The expansion constant represents the cost of moving 1MW, 1km using 400kV OHL line. The expansion factors represent how many times more expensive moving 1MW, 1km is using different voltages and types of circuit. | C7: Our assumption in these tariffs is that the expansion constant continues to increase by RPI as per the CUSC, and that the expansion factors are unchanged. We are aware that the RIIO-T2 framework may use different inflation index, and we are keen to understand whether the industry thinks changes need to be made to the charging methodology accordingly
A8: Security Factor | B8: The security factor is currently 1.8. This will be recalculated by the start of RIIO-T2 period. | C8: Our assumption in these tariffs is the security factor remains as 1.8.
A9: Offshore tariffs | B9: The elements for the offshore tariffs will be recalculated at start of the price control, based on updated forecasts of OFTO revenue, and adjusting for differences in actual OFTO revenue to forecast revenue in RIIO-T1. | C9: Our assumption in these tariffs is that offshore tariffs increase by RPI.
A10: Avoided GSP Infrastructure Credit (AGIC) | B10: The AGIC is a component of the Embedded Export Tariff, paid to ‘exporting demand’ at the time of Triad. It will be recalculated based on up to 20 schemes from the RIIO-T2 price-control period. | C10: Our assumption in these tariffs is that the AGIC increases by RPI.

Sheet TB
A1: Table B – Summary of average demand tariffs | H1: Return to Index
B4: HH Tariffs | C4: 2020/21 | D4: 2021/22 | E4: 2022/23 | F4: 2023/24 | G4: 2024/25
B5: Average Tariff (£/kW) | C5: 51.11394858 | D5: 54.13389138 | E5: 56.08804384 | F5: 59.14403992 | G5: 61.71335821
B6: Residual (£/kW) | C6: 52.17858806 | D6: 56.0860189 | E6: 57.61219881 | F6: 60.97136982 | G6: 63.52586972
B7: EET | C7: =C4 -> 2020/21 | D7: =D4 -> 2021/22 | E7: =E4 -> 2022/23 | F7: =F4 -> 2023/24 | G7: =G4 -> 2024/25
B8: Average Tariff (£/kW) | C8: 2.524959505 | D8: 2.321141422 | E8: 2.654179967 | F8: 2.884025789 | G8: 2.908486614
B9: Phased residual (£/kW) | C9: - | D9: - | E9: - | F9: - | G9: -
B10: AGIC (£/kW) | C10: 3.426888 | D10: 3.529842 | E10: 3.635737 | F10: 3.744809 | G10: 3.857153
B11: Total Credit (£m) | C11: 17.9047997 | D11: 15.83007939 | E11: 17.86305552 | F11: 19.35442582 | G11: 19.46048739
B12: NHH Tariffs | C12: =C4 -> 2020/21 | D12: =D4 -> 2021/22 | E12: =E4 -> 2022/23 | F12: =F4 -> 2023/24 | G12: =G4 -> 2024/25
B13: Average (p/kWh) | C13: 6.524629831 | D13: 6.934732661 | E13: 7.209305109 | F13: 7.621651605 | G13: 7.997290286

Sheet TC FD
A1: Table C – Gross Half-Hourly demand tariffs by demand zone | H1: Return to Index
J2: Figure D Gross Half-Hourly demand tariffs by demand zone
B4: Zone | C4: Zone Name | D4: =TB!C4 -> 2020/21 | E4: =TB!D4 -> 2021/22 | F4: =TB!E4 -> 2022/23 | G4: =TB!F4 -> 2023/24 | H4: =TB!G4 -> 2024/25
D5: (£/kW)* | E5: (£/kW) | F5: (£/kW) | G5: (£/kW) | H5: (£/kW)
B6: 1 | C6: Northern Scotland | D6: 23.03344828 | E6: =SUM(TAAA!D7:F7) -> 23.26692548 | F6: =SUM(TBBB!D7:F7) -> 24.6655652 | G6: =SUM(TCCC!D7:F7) -> 24.78507019 | H6: =SUM(TDDD!D7:F7) -> 26.58775256
B7: 2 | C7: Southern Scotland | D7: 30.97480313 | E7: =SUM(TAAA!D8:F8) -> 32.31047644 | F7: =SUM(TBBB!D8:F8) -> 33.53327836 | G7: =SUM(TCCC!D8:F8) -> 33.42491158 | H7: =SUM(TDDD!D8:F8) -> 35.67397707
B8: 3 | C8: Northern | D8: 43.08199701 | E8: =SUM(TAAA!D9:F9) -> 44.43933277 | F8: =SUM(TBBB!D9:F9) -> 45.55228156 | G8: =SUM(TCCC!D9:F9) -> 47.99271951 | H8: =SUM(TDDD!D9:F9) -> 49.70693864
B9: 4 | C9: North West | D9: 50.32033986 | E9: =SUM(TAAA!D10:F10) -> 50.26947327 | F9: =SUM(TBBB!D10:F10) -> 52.37326422 | G9: =SUM(TCCC!D10:F10) -> 55.98603158 | H9: =SUM(TDDD!D10:F10) -> 58.02765311
B10: 5 | C10: Yorkshire | D10: 50.02222002 | E10: =SUM(TAAA!D11:F11) -> 51.47326521 | F10: =SUM(TBBB!D11:F11) -> 52.64881914 | G10: =SUM(TCCC!D11:F11) -> 56.03125042 | H10: =SUM(TDDD!D11:F11) -> 58.17195238
B11: 6 | C11: N Wales & Mersey | D11: 52.24605313 | E11: =SUM(TAAA!D12:F12) -> 51.37783431 | F11: =SUM(TBBB!D12:F12) -> 53.75108888 | G11: =SUM(TCCC!D12:F12) -> 58.27664248 | H11: =SUM(TDDD!D12:F12) -> 62.01420713
B12: 7 | C12: East Midlands | D12: 53.57333462 | E12: =SUM(TAAA!D13:F13) -> 55.53694167 | F12: =SUM(TBBB!D13:F13) -> 57.38750274 | G12: =SUM(TCCC!D13:F13) -> 60.80895886 | H12: =SUM(TDDD!D13:F13) -> 63.39850778
B13: 8 | C13: Midlands | D13: 55.08952089 | E13: =SUM(TAAA!D14:F14) -> 56.28610718 | F13: =SUM(TBBB!D14:F14) -> 58.52206331 | G13: =SUM(TCCC!D14:F14) -> 62.56626791 | H13: =SUM(TDDD!D14:F14) -> 65.54195236
B14: 9 | C14: Eastern | D14: 55.34968591 | E14: =SUM(TAAA!D15:F15) -> 58.24117155 | F14: =SUM(TBBB!D15:F15) -> 59.70063529 | G14: =SUM(TCCC!D15:F15) -> 62.69550455 | H14: =SUM(TDDD!D15:F15) -> 65.33276497
B15: 10 | C15: South Wales | D15: 50.89173919 | E15: =SUM(TAAA!D16:F16) -> 53.48764165 | F15: =SUM(TBBB!D16:F16) -> 57.5100146 | G15: =SUM(TCCC!D16:F16) -> 62.31581335 | H15: =SUM(TDDD!D16:F16) -> 64.16602643
B16: 11 | C16: South East | D16: 57.73731002 | E16: =SUM(TAAA!D17:F17) -> 60.58160661 | F16: =SUM(TBBB!D17:F17) -> 62.30593419 | G16: =SUM(TCCC!D17:F17) -> 65.37467697 | H16: =SUM(TDDD!D17:F17) -> 68.16110713
B17: 12 | C17: London | D17: 61.32395744 | E17: =SUM(TAAA!D18:F18) -> 63.89945776 | F17: =SUM(TBBB!D18:F18) -> 66.14353915 | G17: =SUM(TCCC!D18:F18) -> 69.32060075 | H17: =SUM(TDDD!D18:F18) -> 72.27376283
B18: 13 | C18: Southern | D18: 59.0106981 | E18: =SUM(TAAA!D19:F19) -> 61.76984426 | F18: =SUM(TBBB!D19:F19) -> 64.10564799 | G18: =SUM(TCCC!D19:F19) -> 67.26135762 | H18: =SUM(TDDD!D19:F19) -> 70.1770716
B19: 14 | C19: South Western | D19: 57.09896399 | E19: =SUM(TAAA!D20:F20) -> 59.8975177 | F19: =SUM(TBBB!D20:F20) -> 63.45750287 | G19: =SUM(TCCC!D20:F20) -> 64.43290201 | H19: =SUM(TDDD!D20:F20) -> 67.45923727
C21: *Please note that the 2020/21 values have been updated since being published in March to include the small generator discount levy.
B24: Zone | C24: Zone Name | D24: ="Difference "&TB!C4&" to "&TB!D4 -> Difference 2020/21 to 2021/22 | E24: ="Difference "&TB!D4&" to "&TB!E4 -> Difference 2021/22 to 2022/23 | F24: ="Difference "&TB!E4&" to "&TB!F4 -> Difference 2022/23 to 2023/24 | G24: ="Difference "&TB!F4&" to "&TB!G4 -> Difference 2023/24 to 2024/25
D25: (£/kW) | E25: (£/kW) | F25: (£/kW) | G25: (£/kW)
B26: 1 | C26: Northern Scotland | D26: ='TC FD'!E6-'TC FD'!D6 -> 0.2334771998 | E26: ='TC FD'!F6-'TC FD'!E6 -> 1.398639713 | F26: ='TC FD'!G6-'TC FD'!F6 -> 0.1195049907 | G26: ='TC FD'!H6-'TC FD'!G6 -> 1.802682372
B27: 2 | C27: Southern Scotland | D27: ='TC FD'!E7-'TC FD'!D7 -> 1.335673309 | E27: ='TC FD'!F7-'TC FD'!E7 -> 1.222801923 | F27: ='TC FD'!G7-'TC FD'!F7 -> -0.1083667836 | G27: ='TC FD'!H7-'TC FD'!G7 -> 2.249065488
B28: 3 | C28: Northern | D28: ='TC FD'!E8-'TC FD'!D8 -> 1.35733576 | E28: ='TC FD'!F8-'TC FD'!E8 -> 1.112948784 | F28: ='TC FD'!G8-'TC FD'!F8 -> 2.440437955 | G28: ='TC FD'!H8-'TC FD'!G8 -> 1.714219131
B29: 4 | C29: North West | D29: ='TC FD'!E9-'TC FD'!D9 -> -0.05086658495 | E29: ='TC FD'!F9-'TC FD'!E9 -> 2.103790952 | F29: ='TC FD'!G9-'TC FD'!F9 -> 3.612767362 | G29: ='TC FD'!H9-'TC FD'!G9 -> 2.041621523
B30: 5 | C30: Yorkshire | D30: ='TC FD'!E10-'TC FD'!D10 -> 1.451045195 | E30: ='TC FD'!F10-'TC FD'!E10 -> 1.175553929 | F30: ='TC FD'!G10-'TC FD'!F10 -> 3.382431281 | G30: ='TC FD'!H10-'TC FD'!G10 -> 2.140701954
B31: 6 | C31: N Wales & Mersey | D31: ='TC FD'!E11-'TC FD'!D11 -> -0.8682188202 | E31: ='TC FD'!F11-'TC FD'!E11 -> 2.373254578 | F31: ='TC FD'!G11-'TC FD'!F11 -> 4.525553599 | G31: ='TC FD'!H11-'TC FD'!G11 -> 3.73756465
B32: 7 | C32: East Midlands | D32: ='TC FD'!E12-'TC FD'!D12 -> 1.963607055 | E32: ='TC FD'!F12-'TC FD'!E12 -> 1.850561069 | F32: ='TC FD'!G12-'TC FD'!F12 -> 3.421456116 | G32: ='TC FD'!H12-'TC FD'!G12 -> 2.589548921
B33: 8 | C33: Midlands | D33: ='TC FD'!E13-'TC FD'!D13 -> 1.196586291 | E33: ='TC FD'!F13-'TC FD'!E13 -> 2.235956125 | F33: ='TC FD'!G13-'TC FD'!F13 -> 4.044204597 | G33: ='TC FD'!H13-'TC FD'!G13 -> 2.975684451
B34: 9 | C34: Eastern | D34: ='TC FD'!E14-'TC FD'!D14 -> 2.891485637 | E34: ='TC FD'!F14-'TC FD'!E14 -> 1.45946374 | F34: ='TC FD'!G14-'TC FD'!F14 -> 2.994869257 | G34: ='TC FD'!H14-'TC FD'!G14 -> 2.637260425
B35: 10 | C35: South Wales | D35: ='TC FD'!E15-'TC FD'!D15 -> 2.595902458 | E35: ='TC FD'!F15-'TC FD'!E15 -> 4.022372959 | F35: ='TC FD'!G15-'TC FD'!F15 -> 4.805798744 | G35: ='TC FD'!H15-'TC FD'!G15 -> 1.850213085
B36: 11 | C36: South East | D36: ='TC FD'!E16-'TC FD'!D16 -> 2.844296593 | E36: ='TC FD'!F16-'TC FD'!E16 -> 1.724327571 | F36: ='TC FD'!G16-'TC FD'!F16 -> 3.068742789 | G36: ='TC FD'!H16-'TC FD'!G16 -> 2.786430156
B37: 12 | C37: London | D37: ='TC FD'!E17-'TC FD'!D17 -> 2.575500314 | E37: ='TC FD'!F17-'TC FD'!E17 -> 2.24408139 | F37: ='TC FD'!G17-'TC FD'!F17 -> 3.177061603 | G37: ='TC FD'!H17-'TC FD'!G17 -> 2.95316208
B38: 13 | C38: Southern | D38: ='TC FD'!E18-'TC FD'!D18 -> 2.759146158 | E38: ='TC FD'!F18-'TC FD'!E18 -> 2.335803735 | F38: ='TC FD'!G18-'TC FD'!F18 -> 3.155709624 | G38: ='TC FD'!H18-'TC FD'!G18 -> 2.915713981
B39: 14 | C39: South Western | D39: ='TC FD'!E19-'TC FD'!D19 -> 2.79855371 | E39: ='TC FD'!F19-'TC FD'!E19 -> 3.559985168 | F39: ='TC FD'!G19-'TC FD'!F19 -> 0.975399137 | G39: ='TC FD'!H19-'TC FD'!G19 -> 3.026335263

Sheet TE FF
A1: Table E – Embedded Export Tariffs | H1: Return to Index
J2: Figure F - Embedded Export Tariff
B4: Zone | C4: Zone Name | D4: =TB!C4 -> 2020/21 | E4: =TB!D4 -> 2021/22 | F4: =TB!E4 -> 2022/23 | G4: =TB!F4 -> 2023/24 | H4: =TB!G4 -> 2024/25
D5: (£/kW) | E5: (£/kW) | F5: (£/kW) | G5: (£/kW) | H5: (£/kW)
B6: 1 | C6: Northern Scotland | D6: 0 | E6: 0 | F6: 0 | G6: 0 | H6: 0
B7: 2 | C7: Southern Scotland | D7: 0 | E7: 0 | F7: 0 | G7: 0 | H7: 0
B8: 3 | C8: Northern | D8: 0 | E8: 0 | F8: 0 | G8: 0 | H8: 0
B9: 4 | C9: North West | D9: 0 | E9: 0 | F9: 0 | G9: 0 | H9: 0
B10: 5 | C10: Yorkshire | D10: 0.092346 | E10: 0 | F10: 0 | G10: 0 | H10: 0
B11: 6 | C11: N Wales & Mersey | D11: 0.314195 | E11: 0 | F11: 0 | G11: 1.050082 | H11: 2.34549
B12: 7 | C12: East Midlands | D12: 3.547431 | E12: 2.980765 | F12: 3.411041 | G12: 3.582398 | H12: 3.729791
B13: 8 | C13: Midlands | D13: 4.55148 | E13: 3.72993 | F13: 4.545601 | G13: 5.339707 | H13: 5.873236
B14: 9 | C14: Eastern | D14: 5.697355 | E14: 5.684995 | F14: 5.724173 | G14: 5.468944 | H14: 5.664048
B15: 10 | C15: South Wales | D15: 1.663999 | E15: 0.931465 | F15: 3.533553 | G15: 5.089253 | H15: 4.49731
B16: 11 | C16: South East | D16: 8.114609 | E16: 8.02543 | F16: 8.329472 | G16: 8.148116 | H16: 8.49239
B17: 12 | C17: London | D17: 11.545412 | E17: 11.343281 | F17: 12.167077 | G17: 12.09404 | H17: 12.605046
B18: 13 | C18: Southern | D18: 9.543773 | E18: 9.213667 | F18: 10.129186 | G18: 10.034797 | H18: 10.508355
B19: 14 | C19: South Western | D19: 7.780211 | E19: 7.341341 | F19: 9.481041 | G19: 7.206341 | H19: 7.790521
C21: These tariffs include:
C22: Phased residual (£/kW) | D22: - | E22: - | F22: - | G22: - | H22: -
C23: AGIC (£/kW) | D23: 3.426888 | E23: 3.529842 | F23: 3.635737 | G23: 3.744809 | H23: 3.857153
B27: Zone | C27: Zone Name | D27: ='TC FD'!D24 -> Difference 2020/21 to 2021/22 | E27: ='TC FD'!E24 -> Difference 2021/22 to 2022/23 | F27: ='TC FD'!F24 -> Difference 2022/23 to 2023/24 | G27: ='TC FD'!G24 -> Difference 2023/24 to 2024/25
D28: (£/kW) | E28: (£/kW) | F28: (£/kW) | G28: (£/kW)
B29: 1 | C29: Northern Scotland | D29: =E6-D6 -> 0 | E29: =F6-E6 -> 0 | F29: 0 | G29: 0
B30: 2 | C30: Southern Scotland | D30: =E7-D7 -> 0 | E30: 0 | F30: 0 | G30: 0
B31: 3 | C31: Northern | D31: 0 | E31: 0 | F31: 0 | G31: 0
B32: 4 | C32: North West | D32: 0 | E32: 0 | F32: 0 | G32: 0
B33: 5 | C33: Yorkshire | D33: -0.092346 | E33: 0 | F33: 0 | G33: 0
B34: 6 | C34: N Wales & Mersey | D34: -0.314195 | E34: 0 | F34: 1.050082 | G34: 1.295408
B35: 7 | C35: East Midlands | D35: -0.566666 | E35: 0.430276 | F35: 0.171357 | G35: 0.147393
B36: 8 | C36: Midlands | D36: -0.82155 | E36: 0.815671 | F36: 0.794106 | G36: 0.533529
B37: 9 | C37: Eastern | D37: -0.01236 | E37: 0.039178 | F37: -0.255229 | G37: 0.195104
B38: 10 | C38: South Wales | D38: -0.732534 | E38: 2.602088 | F38: 1.5557 | G38: -0.591943
B39: 11 | C39: South East | D39: -0.089179 | E39: 0.304042 | F39: -0.181356 | G39: 0.344274
B40: 12 | C40: London | D40: -0.202131 | E40: 0.823796 | F40: -0.073037 | G40: 0.511006
B41: 13 | C41: Southern | D41: -0.330106 | E41: 0.915519 | F41: -0.094389 | G41: 0.473558
B42: 14 | C42: South Western | D42: -0.43887 | E42: 2.1397 | F42: -2.2747 | G42: 0.58418

Sheet TG FH
A1: Table G – NHH demand tariff changes | H1: Return to Index
J2: Figure H - NHH demand tariff changes
B4: Zone | C4: Zone Name | D4: =TB!C4 -> 2020/21 | E4: =TB!D4 -> 2021/22 | F4: =TB!E4 -> 2022/23 | G4: =TB!F4 -> 2023/24 | H4: =TB!G4 -> 2024/25
D5: (p/kWh) | E5: (p/kWh) | F5: (p/kWh) | G5: (p/kWh) | H5: (p/kWh)
B6: 1 | C6: Northern Scotland | D6: 3.135707 | E6: 3.196488 | F6: 3.311748 | G6: 3.320459 | H6: 3.591269
B7: 2 | C7: Southern Scotland | D7: 4.10277 | E7: 4.213553 | F7: 4.332216 | G7: 4.375051 | H7: 4.6661
B8: 3 | C8: Northern | D8: 5.334874 | E8: 5.619969 | F8: 5.775604 | G8: 6.117829 | H8: 6.415903
B9: 4 | C9: North West | D9: 6.204346 | E9: 6.451229 | F9: 6.784847 | G9: 7.260094 | H9: 7.573785
B10: 5 | C10: Yorkshire | D10: 6.175672 | E10: 6.428278 | F10: 6.635574 | G10: 7.074013 | H10: 7.384818
B11: 6 | C11: N Wales & Mersey | D11: 6.245607 | E11: 6.500632 | F11: 6.768349 | G11: 7.402389 | H11: 7.866025
B12: 7 | C12: East Midlands | D12: 6.807672 | E12: 7.164893 | F12: 7.403947 | G12: 7.89644 | H12: 8.280347
B13: 8 | C13: Midlands | D13: 7.081417 | E13: 7.366189 | F13: 7.660807 | G13: 8.248315 | H13: 8.709694
B14: 9 | C14: Eastern | D14: 7.561043 | E14: 8.007055 | F14: 8.25911 | G14: 8.694809 | H14: 9.108206
B15: 10 | C15: South Wales | D15: 5.929393 | E15: 6.308471 | F15: 6.76242 | G15: 7.390372 | H15: 7.633387
B16: 11 | C16: South East | D16: 8.030463 | E16: 8.462366 | F16: 8.780692 | G16: 9.22028 | H16: 9.65055
B17: 12 | C17: London | D17: 6.365499 | E17: 6.600507 | F17: 6.87764 | G17: 7.234772 | H17: 7.594039
B18: 13 | C18: Southern | D18: 7.661438 | E18: 8.04658 | F18: 8.386545 | G18: 8.837506 | H18: 9.268258
B19: 14 | C19: South Western | D19: 8.008709 | E19: 8.387963 | F19: 8.88519 | G19: 9.088439 | H19: 9.523873
B24: Zone | C24: Zone Name | D24: ='TC FD'!D24 -> Difference 2020/21 to 2021/22 | E24: ='TC FD'!E24 -> Difference 2021/22 to 2022/23 | F24: ='TC FD'!F24 -> Difference 2022/23 to 2023/24 | G24: ='TC FD'!G24 -> Difference 2023/24 to 2024/25
D25: (p/kWh) | E25: (p/kWh) | F25: (p/kWh) | G25: (p/kWh)
B26: 1 | C26: Northern Scotland | D26: =E6-D6 -> 0.060781 | E26: =F6-E6 -> 0.11526 | F26: 0.008711 | G26: 0.27081
B27: 2 | C27: Southern Scotland | D27: =E7-D7 -> 0.110783 | E27: 0.118663 | F27: 0.042835 | G27: 0.291049
B28: 3 | C28: Northern | D28: 0.285095 | E28: 0.155635 | F28: 0.342225 | G28: 0.298074
B29: 4 | C29: North West | D29: 0.246883 | E29: 0.333618 | F29: 0.475247 | G29: 0.313691
B30: 5 | C30: Yorkshire | D30: 0.252606 | E30: 0.207296 | F30: 0.438439 | G30: 0.310805
B31: 6 | C31: N Wales & Mersey | D31: 0.255025 | E31: 0.267717 | F31: 0.63404 | G31: 0.463636
B32: 7 | C32: East Midlands | D32: 0.357221 | E32: 0.239054 | F32: 0.492493 | G32: 0.383907
B33: 8 | C33: Midlands | D33: 0.284772 | E33: 0.294618 | F33: 0.587508 | G33: 0.461379
B34: 9 | C34: Eastern | D34: 0.446012 | E34: 0.252055 | F34: 0.435699 | G34: 0.413397
B35: 10 | C35: South Wales | D35: 0.379078 | E35: 0.453949 | F35: 0.627952 | G35: 0.243015
B36: 11 | C36: South East | D36: 0.431903 | E36: 0.318326 | F36: 0.439588 | G36: 0.43027
B37: 12 | C37: London | D37: 0.235008 | E37: 0.277133 | F37: 0.357132 | G37: 0.359267
B38: 13 | C38: Southern | D38: 0.385142 | E38: 0.339965 | F38: 0.450961 | G38: 0.430752
B39: 14 | C39: South Western | D39: 0.379254 | E39: 0.497227 | F39: 0.203249 | G39: 0.435434

Sheet TI
A1: Table I – Small Generator Discount impact on demand tariffs | H1: Return to Index
D4: =TB!C4 -> 2020/21 | E4: =TB!D4 -> 2021/22 | F4: =TB!E4 -> 2022/23 | G4: =TB!F4 -> 2023/24 | H4: =TB!G4 -> 2024/25
B5: Generation residual | C5: £/kW | D5: -3.957023909
B6: Demand residual | C6: £/kW | D6: 52.17858806
B7: Value of small generator discount | C7: £/kW | D7: =ROUND((D5+D6)/4,6) -> 12.055391
F8: Discontinued from 2021/22
B9: Volume of small generators eligible | C9: MW | D9: 3089.35
B10: Total cost of scheme | C10: £m | D10: =D7*D9/1000 -> 37.24332219
F11: Discontinued from 2021/22
B12: System gross Triad demand | C12: GW | D12: 50.24716226
B13: System gross HH demand | C13: GW | D13: 19.16445348
B14: NHH demand | C14: TWh | D14: 24.1250767
B15: HH recovery charge | C15: £/kW | D15: =ROUND(D10/D12, 6) -> 0.741202
B16: NHH recovery charge | C16: p/kWh | D16: =ROUND((D10-D13*D15)/D14/10,6) -> 0.095496

Sheet TJ
A1: Table J – Classifications of generation technologies | H1: Return to Index
B4: Conventional Carbon | C4: Conventional Low Carbon | D4: Intermittent
B5: Biomass | C5: Nuclear | D5: Offshore wind
B6: CCGT/CHP | C6: Hydro | D6: Onshore wind
B7: Coal | D7: Solar PV
B8: OCGT/Oil | D8: Tidal
B9: Pumped storage (including battery storage)

Sheet TK
A1: ="Table K - Generation wider tariffs in "&TB!C4 -> Table K - Generation wider tariffs in 2020/21 | I1: Return to Index
B4: Generation Tariffs | D4: System Peak Tariff | E4: Shared Year Round Tariff | F4: Not Shared Year Round Tariff | G4: Residual Tariff | H4: Conventional Carbon | I4: Conventional Low Carbon | J4: Intermittent
H5: 0.8 | I5: 0.8 | J5: 0.4
B6: Zone | C6: Zone Name | D6: (£/kW) | E6: (£/kW) | F6: (£/kW) | G6: (£/kW) | H6: Load Factor (£/kW) | I6: Load Factor (£/kW) | J6: Load Factor (£/kW)
B7: 1 | C7: North Scotland | D7: 2.769204 | E7: 19.343367 | F7: 14.625061 | G7: -3.957024 | H7: =ROUND($D7+($E7*$H$5)+($F7*$H$5)+$G7,6) -> 25.986922 | I7: =ROUND($D7+($E7*$I$5)+$F7+$G7,6) -> 28.911935 | J7: =ROUND(($E7*$J$5)+$F7+$G7,6) -> 18.405384
B8: 2 | C8: East Aberdeenshire | D8: 5.167207 | E8: 11.461368 | F8: 14.625061 | G8: -3.957024 | H8: =ROUND($D8+($E8*$H$5)+($F8*$H$5)+$G8,6) -> 22.079326 | I8: =ROUND($D8+($E8*$H$5)+$F8+$G8,6) -> 25.004338 | J8: =ROUND(($E8*$J$5)+$F8+$G8,6) -> 15.252584
B9: 3 | C9: Western Highlands | D9: 2.197989 | E9: 18.049997 | F9: 14.477674 | G9: -3.957024 | H9: 24.263102 | I9: 27.158637 | J9: 17.740649
B10: 4 | C10: Skye and Lochalsh | D10: 2.148128 | E10: 18.049997 | F10: 20.693372 | G10: -3.957024 | H10: 29.185799 | I10: 33.324474 | J10: 23.956347
B11: 5 | C11: Eastern Grampian and Tayside | D11: 2.875323 | E11: 15.971774 | F11: 13.871332 | G11: -3.957024 | H11: 22.792784 | I11: 25.56705 | J11: 16.303018
B12: 6 | C12: Central Grampian | D12: 3.803578 | E12: 15.11733 | F12: 13.462523 | G12: -3.957024 | H12: 22.710436 | I12: 25.402941 | J12: 15.552431
B13: 7 | C13: Argyll | D13: 3.589985 | E13: 12.024375 | F13: 23.320214 | G13: -3.957024 | H13: 27.908632 | I13: 32.572675 | J13: 24.17294
B14: 8 | C14: The Trossachs | D14: 3.837409 | E14: 12.024375 | F14: 11.916349 | G14: -3.957024 | H14: 19.032964 | I14: 21.416234 | J14: 12.769075
B15: 9 | C15: Stirlingshire and Fife | D15: 2.580869 | E15: 9.808981 | F15: 11.17459 | G15: -3.957024 | H15: 15.410702 | I15: 17.64562 | J15: 11.141158
B16: 10 | C16: South West Scotland | D16: 3.09732 | E16: 9.938717 | F16: 11.211657 | G16: -3.957024 | H16: 16.060595 | I16: 18.302927 | J16: 11.23012
B17: 11 | C17: Lothian and Borders | D17: 4.035856 | E17: 9.938717 | F17: 6.527067 | G17: -3.957024 | H17: 13.251459 | I17: 14.556873 | J17: 6.54553
B18: 12 | C18: Solway and Cheviot | D18: 1.97959 | E18: 6.468804 | F18: 6.272022 | G18: -3.957024 | H18: 8.215227 | I18: 9.469631 | J18: 4.90252
B19: 13 | C19: North East England | D19: 3.776379 | E19: 4.929072 | F19: 4.005993 | G19: -3.957024 | H19: 6.967407 | I19: 7.768606 | J19: 2.020598
B20: 14 | C20: North Lancashire and The Lakes | D20: 2.046847 | E20: 4.929072 | F20: 1.130803 | G20: -3.957024 | H20: 2.937723 | I20: 3.163884 | J20: -0.854592
B21: 15 | C21: South Lancashire, Yorkshire and Humber | D21: 4.23342 | E21: 1.150888 | F21: 0.089581 | G21: -3.957024 | H21: 1.268771 | I21: 1.286687 | J21: -3.407088
B22: 16 | C22: North Midlands and North Wales | D22: 3.640197 | E22: -0.327359 | F22: 0 | G22: -3.957024 | H22: -0.578714 | I22: -0.578714 | J22: -4.087968
B23: 17 | C23: South Lincolnshire and North Norfolk | D23: 1.80585 | E23: -0.273693 | F23: 0 | G23: -3.957024 | H23: -2.370128 | I23: -2.370128 | J23: -4.066501
B24: 18 | C24: Mid Wales and The Midlands | D24: 1.218588 | E24: -0.028482 | F24: 0 | G24: -3.957024 | H24: -2.761222 | I24: -2.761222 | J24: -3.968417
B25: 19 | C25: Anglesey and Snowdon | D25: 5.147345 | E25: -0.029898 | F25: 0 | G25: -3.957024 | H25: 1.166403 | I25: 1.166403 | J25: -3.968983
B26: 20 | C26: Pembrokeshire | D26: 9.544406 | E26: -4.657463 | F26: 0 | G26: -3.957024 | H26: 1.861412 | I26: 1.861412 | J26: -5.820009
B27: 21 | C27: South Wales & Gloucester | D27: 6.409883 | E27: -4.612735 | F27: 0 | G27: -3.957024 | H27: -1.237329 | I27: -1.237329 | J27: -5.802118
B28: 22 | C28: Cotswold | D28: 3.162295 | E28: 2.788406 | F28: -7.362905 | G28: -3.957024 | H28: -4.454328 | I28: -5.926909 | J28: -10.204567
B29: 23 | C29: Central London | D29: -6.303901 | E29: 2.788406 | F29: -6.940109 | G29: -3.957024 | H29: -13.582287 | I29: -14.970309 | J29: -9.781771
B30: 24 | C30: Essex and Kent | D30: -4.306659 | E30: 2.788406 | F30: 0 | G30: -3.957024 | H30: -6.032958 | I30: -6.032958 | J30: -2.841662
B31: 25 | C31: Oxfordshire, Surrey and Sussex | D31: -1.658293 | E31: -2.632751 | F31: 0 | G31: -3.957024 | H31: -7.721518 | I31: -7.721518 | J31: -5.010124
B32: 26 | C32: Somerset and Wessex | D32: -1.568385 | E32: -3.075136 | F32: 0 | G32: -3.957024 | H32: -7.985518 | I32: -7.985518 | J32: -5.187078
B33: 27 | C33: West Devon and Cornwall | D33: 0.132718 | E33: -5.50301 | F33: 0 | G33: -3.957024 | H33: -8.226714 | I33: -8.226714 | J33: -6.158228
D35: Small Generator Discount (£/kW) | G35: 12.055391

Sheet TL
A1: ="Table L - Generation wider tariffs in "&TB!D4 -> Table L - Generation wider tariffs in 2021/22 | I1: Return to Index
B4: Generation Tariffs | D4: System Peak Tariff | E4: Shared Year Round Tariff | F4: Not Shared Year Round Tariff | G4: Residual Tariff | H4: Conventional Carbon | I4: Conventional Low Carbon | J4: Intermittent
H5: 0.8 | I5: 0.8 | J5: 0.4
B6: Zone | C6: Zone Name | D6: (£/kW) | E6: (£/kW) | F6: (£/kW) | G6: (£/kW) | H6: Load Factor (£/kW) | I6: Load Factor (£/kW) | J6: Load Factor (£/kW)
B7: 1 | C7: North Scotland | D7: 3.691874 | E7: 19.88569 | F7: 16.749703 | G7: -5.557579 | H7: =ROUND($D7+($E7*$H$5)+($F7*$H$5)+$G7,6) -> 27.442609 | I7: =ROUND($D7+($E7*$I$5)+$F7+$G7,6) -> 30.79255 | J7: =ROUND(($E7*$J$5)+$F7+$G7,6) -> 19.1464
B8: 2 | C8: East Aberdeenshire | D8: 5.806887 | E8: 11.574727 | F8: 16.749703 | G8: -5.557579 | H8: =ROUND($D8+($E8*$H$5)+($F8*$H$5)+$G8,6) -> 22.908852 | I8: =ROUND($D8+($E8*$I$5)+$F8+$G8,6) -> 26.258793 | J8: =ROUND(($E8*$J$5)+$F8+$G8,6) -> 15.822015
B9: 3 | C9: Western Highlands | D9: 3.033922 | E9: 18.206835 | F9: 16.490603 | G9: -5.557579 | H9: 25.234293 | I9: 28.532414 | J9: 18.215758
B10: 4 | C10: Skye and Lochalsh | D10: 2.980041 | E10: 18.206835 | F10: 22.905422 | G10: -5.557579 | H10: 30.312268 | I10: 34.893352 | J10: 24.630577
B11: 5 | C11: Eastern Grampian and Tayside | D11: 3.972465 | E11: 16.411172 | F11: 15.879034 | G11: -5.557579 | H11: 24.247051 | I11: 27.422858 | J11: 16.885924
B12: 6 | C12: Central Grampian | D12: 4.778069 | E12: 15.571995 | F12: 15.436561 | G12: -5.557579 | H12: 24.027335 | I12: 27.114647 | J12: 16.10778
B13: 7 | C13: Argyll | D13: 4.636285 | E13: 12.40966 | F13: 25.764093 | G13: -5.557579 | H13: 29.617708 | I13: 34.770527 | J13: 25.170378
B14: 8 | C14: The Trossachs | D14: 4.729023 | E14: 12.40966 | F14: 13.701315 | G14: -5.557579 | H14: 20.060224 | I14: 22.800487 | J14: 13.1076
B15: 9 | C15: Stirlingshire and Fife | D15: 3.095309 | E15: 10.007997 | F15: 12.806808 | G15: -5.557579 | H15: 15.789574 | I15: 18.350936 | J15: 11.252428
B16: 10 | C16: South West Scotland | D16: 4.277071 | E16: 10.496775 | F16: 12.963771 | G16: -5.557579 | H16: 17.487929 | I16: 20.080683 | J16: 11.604902
B17: 11 | C17: Lothian and Borders | D17: 3.127213 | E17: 10.496775 | F17: 6.907929 | G17: -5.557579 | H17: 11.493397 | I17: 12.874983 | J17: 5.54906
B18: 12 | C18: Solway and Cheviot | D18: 2.671615 | E18: 7.119398 | F18: 7.388 | G18: -5.557579 | H18: 8.719954 | I18: 10.197554 | J18: 4.67818
B19: 13 | C19: North East England | D19: 3.885459 | E19: 5.393155 | F19: 4.460347 | G19: -5.557579 | H19: 6.210682 | I19: 7.102751 | J19: 1.06003
B20: 14 | C20: North Lancashire and The Lakes | D20: 2.579684 | E20: 5.393155 | F20: 2.034549 | G20: -5.557579 | H20: 2.964268 | I20: 3.371178 | J20: -1.365768
B21: 15 | C21: South Lancashire, Yorkshire and Humber | D21: 4.34834 | E21: 2.023 | F21: 0.147186 | G21: -5.557579 | H21: 0.52691 | I21: 0.556347 | J21: -4.601193
B22: 16 | C22: North Midlands and North Wales | D22: 3.574398 | E22: 0.560855 | F22: 0 | G22: -5.557579 | H22: -1.534497 | I22: -1.534497 | J22: -5.333237
B23: 17 | C23: South Lincolnshire and North Norfolk | D23: 1.524854 | E23: 0.5944 | F23: 0 | G23: -5.557579 | H23: -3.557205 | I23: -3.557205 | J23: -5.319819
B24: 18 | C24: Mid Wales and The Midlands | D24: 1.012832 | E24: 1.037528 | F24: 0 | G24: -5.557579 | H24: -3.714725 | I24: -3.714725 | J24: -5.142568
B25: 19 | C25: Anglesey and Snowdon | D25: 5.743217 | E25: 0.927436 | F25: 0 | G25: -5.557579 | H25: 0.927587 | I25: 0.927587 | J25: -5.186605
B26: 20 | C26: Pembrokeshire | D26: 10.035267 | E26: -4.278683 | F26: 0 | G26: -5.557579 | H26: 1.054742 | I26: 1.054742 | J26: -7.269052
B27: 21 | C27: South Wales & Gloucester | D27: 6.803158 | E27: -4.239086 | F27: 0 | G27: -5.557579 | H27: -2.14569 | I27: -2.14569 | J27: -7.253213
B28: 22 | C28: Cotswold | D28: 3.455253 | E28: 3.264463 | F28: -7.469196 | G28: -5.557579 | H28: -5.466112 | I28: -6.959952 | J28: -11.72099
B29: 23 | C29: Central London | D29: -6.333056 | E29: 3.264463 | F29: -7.118009 | G29: -5.557579 | H29: -14.973472 | I29: -16.397074 | J29: -11.369803
B30: 24 | C30: Essex and Kent | D30: -4.242131 | E30: 3.264463 | F30: 0 | G30: -5.557579 | H30: -7.18814 | I30: -7.18814 | J30: -4.251794
B31: 25 | C31: Oxfordshire, Surrey and Sussex | D31: -1.557384 | E31: -2.299694 | F31: 0 | G31: -5.557579 | H31: -8.954718 | I31: -8.954718 | J31: -6.477457
B32: 26 | C32: Somerset and Wessex | D32: -1.415981 | E32: -2.724943 | F32: 0 | G32: -5.557579 | H32: -9.153514 | I32: -9.153514 | J32: -6.647556
B33: 27 | C33: West Devon and Cornwall | D33: 0.327634 | E33: -5.189357 | F33: 0 | G33: -5.557579 | H33: -9.381431 | I33: -9.381431 | J33: -7.633322

Sheet TM
A1: ="Table M - Generation wider tariffs in "&TB!E4 -> Table M - Generation wider tariffs in 2022/23 | I1: Return to Index
B4: Generation Tariffs | D4: System Peak Tariff | E4: Shared Year Round Tariff | F4: Not Shared Year Round Tariff | G4: Residual Tariff | H4: Conventional Carbon | I4: Conventional Low Carbon | J4: Intermittent
H5: 0.8 | I5: 0.8 | J5: 0.4
B6: Zone | C6: Zone Name | D6: (£/kW) | E6: (£/kW) | F6: (£/kW) | G6: (£/kW) | H6: Load Factor (£/kW) | I6: Load Factor (£/kW) | J6: Load Factor (£/kW)
B7: 1 | C7: North Scotland | D7: 3.428984 | E7: 19.038387 | F7: 21.458984 | G7: -6.660854 | H7: =ROUND($D7+($E7*$H$5)+($F7*$H$5)+$G7,6) -> 29.166027 | I7: =ROUND($D7+($E7*$I$5)+$F7+$G7,6) -> 33.457824 | J7: =ROUND(($E7*$J$5)+$F7+$G7,6) -> 22.413485
B8: 2 | C8: East Aberdeenshire | D8: 4.212308 | E8: 8.992582 | F8: 21.458984 | G8: -6.660854 | H8: =ROUND($D8+($E8*$H$5)+($F8*$H$5)+$G8,6) -> 21.912707 | I8: =ROUND($D8+($E8*$I$5)+$F8+$G8,6) -> 26.204504 | J8: =ROUND(($E8*$J$5)+$F8+$G8,6) -> 18.395163
B9: 3 | C9: Western Highlands | D9: 3.052608 | E9: 16.371759 | F9: 19.867457 | G9: -6.660854 | H9: 25.383127 | I9: 29.356618 | J9: 19.755307
B10: 4 | C10: Skye and Lochalsh | D10: 3.007921 | E10: 16.371759 | F10: 18.837181 | G10: -6.660854 | H10: 24.514219 | I10: 28.281655 | J10: 18.725031
B11: 5 | C11: Eastern Grampian and Tayside | D11: 5.293682 | E11: 14.402954 | F11: 18.297787 | G11: -6.660854 | H11: 24.793421 | I11: 28.452978 | J11: 17.398115
B12: 6 | C12: Central Grampian | D12: 5.387298 | E12: 13.60303 | F12: 17.465293 | G12: -6.660854 | H12: 23.581102 | I12: 27.074161 | J12: 16.245651
B13: 7 | C13: Argyll | D13: 4.86808 | E13: 11.24042 | F13: 26.773658 | G13: -6.660854 | H13: 28.618488 | I13: 33.97322 | J13: 24.608972
B14: 8 | C14: The Trossachs | D14: 5.058041 | E14: 11.24042 | F14: 14.955802 | G14: -6.660854 | H14: 19.354165 | I14: 22.345325 | J14: 12.791116
B15: 9 | C15: Stirlingshire and Fife | D15: 3.318829 | E15: 9.365243 | F15: 13.515227 | G15: -6.660854 | H15: 14.962351 | I15: 17.665396 | J15: 10.60047
B16: 10 | C16: South West Scotland | D16: 4.343017 | E16: 9.710777 | F16: 13.754902 | G16: -6.660854 | H16: 16.454706 | I16: 19.205687 | J16: 10.978359
B17: 11 | C17: Lothian and Borders | D17: 3.381537 | E17: 9.710777 | F17: 7.708542 | G17: -6.660854 | H17: 10.656138 | I17: 12.197847 | J17: 4.931999
B18: 12 | C18: Solway and Cheviot | D18: 2.690271 | E18: 6.455516 | F18: 7.855156 | G18: -6.660854 | H18: 7.477955 | I18: 9.048986 | J18: 3.776508
B19: 13 | C19: North East England | D19: 4.337117 | E19: 4.814662 | F19: 4.822099 | G19: -6.660854 | H19: 5.385672 | I19: 6.350092 | J19: 0.08711
B20: 14 | C20: North Lancashire and The Lakes | D20: 2.351295 | E20: 4.814662 | F20: 2.162439 | G20: -6.660854 | H20: 1.272122 | I20: 1.70461 | J20: -2.57255
B21: 15 | C21: South Lancashire, Yorkshire and Humber | D21: 4.882737 | E21: 1.514334 | F21: 0.212637 | G21: -6.660854 | H21: -0.39654 | I21: -0.354013 | J21: -5.842483
B22: 16 | C22: North Midlands and North Wales | D22: 3.749391 | E22: 0.092167 | F22: 0 | G22: -6.660854 | H22: -2.837729 | I22: -2.837729 | J22: -6.623987
B23: 17 | C23: South Lincolnshire and North Norfolk | D23: 2.118629 | E23: 0.031584 | F23: 0 | G23: -6.660854 | H23: -4.516958 | I23: -4.516958 | J23: -6.64822
B24: 18 | C24: Mid Wales and The Midlands | D24: 1.189288 | E24: 0.216079 | F24: 0 | G24: -6.660854 | H24: -5.298703 | I24: -5.298703 | J24: -6.574422
B25: 19 | C25: Anglesey and Snowdon | D25: 6.122192 | E25: -0.159672 | F25: 0 | G25: -6.660854 | H25: -0.6664 | I25: -0.6664 | J25: -6.724723
B26: 20 | C26: Pembrokeshire | D26: 9.630277 | E26: -5.216998 | F26: 0 | G26: -6.660854 | H26: -1.204175 | I26: -1.204175 | J26: -8.747653
B27: 21 | C27: South Wales & Gloucester | D27: 5.616289 | E27: -5.818327 | F27: 0 | G27: -6.660854 | H27: -5.699227 | I27: -5.699227 | J27: -8.988185
B28: 22 | C28: Cotswold | D28: 2.56582 | E28: 3.171283 | F28: -8.563057 | G28: -6.660854 | H28: -8.408453 | I28: -10.121065 | J28: -13.955398
B29: 23 | C29: Central London | D29: -6.525939 | E29: 3.171283 | F29: -7.372163 | G29: -6.660854 | H29: -16.547497 | I29: -18.02193 | J29: -12.764504
B30: 24 | C30: Essex and Kent | D30: -4.455016 | E30: 3.171283 | F30: 0 | G30: -6.660854 | H30: -8.578844 | I30: -8.578844 | J30: -5.392341
B31: 25 | C31: Oxfordshire, Surrey and Sussex | D31: -1.531186 | E31: -2.658596 | F31: 0 | G31: -6.660854 | H31: -10.318917 | I31: -10.318917 | J31: -7.724292
B32: 26 | C32: Somerset and Wessex | D32: -1.969538 | E32: -3.405427 | F32: 0 | G32: -6.660854 | H32: -11.354734 | I32: -11.354734 | J32: -8.023025
B33: 27 | C33: West Devon and Cornwall | D33: -0.299387 | E33: -6.147719 | F33: 0 | G33: -6.660854 | H33: -11.878416 | I33: -11.878416 | J33: -9.119942

Sheet TN
A1: ="Table N - Generation wider tariffs in "&TB!F4 -> Table N - Generation wider tariffs in 2023/24 | I1: Return to Index
B4: Generation Tariffs | D4: System Peak Tariff | E4: Shared Year Round Tariff | F4: Not Shared Year Round Tariff | G4: Residual Tariff | H4: Conventional Carbon | I4: Conventional Low Carbon | J4: Intermittent
H5: 0.8 | I5: 0.8 | J5: 0.4
B6: Zone | C6: Zone Name | D6: (£/kW) | E6: (£/kW) | F6: (£/kW) | G6: (£/kW) | H6: Load Factor (£/kW) | I6: Load Factor (£/kW) | J6: Load Factor (£/kW)
B7: 1 | C7: North Scotland | D7: 2.337832 | E7: 19.032515 | F7: 25.123138 | G7: -8.557951 | H7: =ROUND($D7+($E7*$H$5)+($F7*$H$5)+$G7,6) -> 29.104403 | I7: =ROUND($D7+($E7*$I$5)+$F7+$G7,6) -> 34.129031 | J7: =ROUND(($E7*$J$5)+$F7+$G7,6) -> 24.178193
B8: 2 | C8: East Aberdeenshire | D8: 2.161186 | E8: 9.060853 | F8: 25.123138 | G8: -8.557951 | H8: =ROUND($D8+($E8*$H$5)+($F8*$H$5)+$G8,6) -> 20.950428 | I8: =ROUND($D8+($E8*$I$5)+$F8+$G8,6) -> 25.975055 | J8: =ROUND(($E8*$J$5)+$F8+$G8,6) -> 20.189528
B9: 3 | C9: Western Highlands | D9: 2.450968 | E9: 17.542651 | F9: 23.572401 | G9: -8.557951 | H9: 26.785059 | I9: 31.499539 | J9: 22.03151
B10: 4 | C10: Skye and Lochalsh | D10: 2.379993 | E10: 17.542651 | F10: 29.369651 | G10: -8.557951 | H10: 31.351884 | I10: 37.225814 | J10: 27.82876
B11: 5 | C11: Eastern Grampian and Tayside | D11: 4.427709 | E11: 15.900927 | F11: 21.534533 | G11: -8.557951 | H11: 25.818126 | I11: 30.125033 | J11: 19.336953
B12: 6 | C12: Central Grampian | D12: 4.460013 | E12: 15.237387 | F12: 20.549347 | G12: -8.557951 | H12: 24.531449 | I12: 28.641319 | J12: 18.086351
B13: 7 | C13: Argyll | D13: 4.625231 | E13: 13.541855 | F13: 28.844089 | G13: -8.557951 | H13: 29.976035 | I13: 35.744853 | J13: 25.70288
B14: 8 | C14: The Trossachs | D14: 3.473263 | E14: 13.541855 | F14: 17.995544 | G14: -8.557951 | H14: 20.145231 | I14: 23.74434 | J14: 14.854335
B15: 9 | C15: Stirlingshire and Fife | D15: 2.258101 | E15: 12.887453 | F15: 17.261159 | G15: -8.557951 | H15: 17.81904 | I15: 21.271271 | J15: 13.858189
B16: 10 | C16: South West Scotland | D16: 2.965673 | E16: 11.551411 | F16: 15.713298 | G16: -8.557951 | H16: 16.219489 | I16: 19.362149 | J16: 11.775911
B17: 11 | C17: Lothian and Borders | D17: 2.36279 | E17: 11.551411 | F17: 9.115612 | G17: -8.557951 | H17: 10.338457 | I17: 12.16158 | J17: 5.178225
B18: 12 | C18: Solway and Cheviot | D18: 1.783311 | E18: 8.28059 | F18: 8.895604 | G18: -8.557951 | H18: 6.966315 | I18: 8.745436 | J18: 3.649889
B19: 13 | C19: North East England | D19: 3.55667 | E19: 6.477225 | F19: 4.89826 | G19: -8.557951 | H19: 4.099107 | I19: 5.078759 | J19: -1.068801
B20: 14 | C20: North Lancashire and The Lakes | D20: 1.249374 | E20: 6.477225 | F20: 1.145499 | G20: -8.557951 | H20: -1.210398 | I20: -0.981298 | J20: -4.821562
B21: 15 | C21: South Lancashire, Yorkshire and Humber | D21: 4.168171 | E21: 2.540676 | F21: 0.265538 | G21: -8.557951 | H21: -2.144809 | I21: -2.091701 | J21: -7.276143
B22: 16 | C22: North Midlands and North Wales | D22: 2.904531 | E22: 0.708082 | F22: 0 | G22: -8.557951 | H22: -5.086954 | I22: -5.086954 | J22: -8.274718
B23: 17 | C23: South Lincolnshire and North Norfolk | D23: 2.961721 | E23: -0.392752 | F23: 0 | G23: -8.557951 | H23: -5.910432 | I23: -5.910432 | J23: -8.715052
B24: 18 | C24: Mid Wales and The Midlands | D24: 1.905131 | E24: -0.248743 | F24: 0 | G24: -8.557951 | H24: -6.851814 | I24: -6.851814 | J24: -8.657448
B25: 19 | C25: Anglesey and Snowdon | D25: 4.24958 | E25: 0.382811 | F25: 0 | G25: -8.557951 | H25: -4.002122 | I25: -4.002122 | J25: -8.404827
B26: 20 | C26: Pembrokeshire | D26: 9.265096 | E26: -6.105446 | F26: 0 | G26: -8.557951 | H26: -4.177212 | I26: -4.177212 | J26: -11.000129
B27: 21 | C27: South Wales & Gloucester | D27: 5.104455 | E27: -6.785125 | F27: 0 | G27: -8.557951 | H27: -8.881596 | I27: -8.881596 | J27: -11.272001
B28: 22 | C28: Cotswold | D28: 3.252925 | E28: 2.872275 | F28: -8.007996 | G28: -8.557951 | H28: -9.413603 | I28: -11.015202 | J28: -15.417037
B29: 23 | C29: Central London | D29: -5.825879 | E29: 2.872275 | F29: -7.782523 | G29: -8.557951 | H29: -18.312028 | I29: -19.868533 | J29: -15.191564
B30: 24 | C30: Essex and Kent | D30: -3.545511 | E30: 2.872275 | F30: 0 | G30: -8.557951 | H30: -9.805642 | I30: -9.805642 | J30: -7.409041
B31: 25 | C31: Oxfordshire, Surrey and Sussex | D31: -1.097711 | E31: -2.915398 | F31: 0 | G31: -8.557951 | H31: -11.98798 | I31: -11.98798 | J31: -9.72411
B32: 26 | C32: Somerset and Wessex | D32: -0.63154 | E32: -2.91986 | F32: 0 | G32: -8.557951 | H32: -11.525379 | I32: -11.525379 | J32: -9.725895
B33: 27 | C33: West Devon and Cornwall | D33: 1.180538 | E33: -1.702466 | F33: 0.15555 | G33: -8.557951 | H33: -8.614946 | I33: -8.583836 | J33: -9.083387

Sheet TO
A1: ="Table O - Generation wider tariffs in "&TB!G4 -> Table O - Generation wider tariffs in 2024/25 | I1: Return to Index
B4: Generation Tariffs | D4: System Peak Tariff | E4: Shared Year Round Tariff | F4: Not Shared Year Round Tariff | G4: Residual Tariff | H4: Conventional Carbon | I4: Conventional Low Carbon | J4: Intermittent
H5: 0.8 | I5: 0.8 | J5: 0.4
B6: Zone | C6: Zone Name | D6: (£/kW) | E6: (£/kW) | F6: (£/kW) | G6: (£/kW) | H6: Load Factor (£/kW) | I6: Load Factor (£/kW) | J6: Load Factor (£/kW)
B7: 1 | C7: North Scotland | D7: 1.946827 | E7: 19.748612 | F7: 26.103416 | G7: -9.912084 | H7: =ROUND($D7+($E7*$H$5)+($F7*$H$5)+$G7,6) -> 28.716365 | I7: =ROUND($D7+($E7*$I$5)+$F7+$G7,6) -> 33.937049 | J7: =ROUND(($E7*$J$5)+$F7+$G7,6) -> 24.090777
B8: 2 | C8: East Aberdeenshire | D8: 1.706932 | E8: 9.318183 | F8: 26.103416 | G8: -9.912084 | H8: =ROUND($D8+($E8*$H$5)+($F8*$H$5)+$G8,6) -> 20.132127 | I8: =ROUND($D8+($E8*$I$5)+$F8+$G8,6) -> 25.35281 | J8: =ROUND(($E8*$J$5)+$F8+$G8,6) -> 19.918605
B9: 3 | C9: Western Highlands | D9: 2.090693 | E9: 17.971325 | F9: 24.184823 | G9: -9.912084 | H9: 25.903527 | I9: 30.740492 | J9: 21.461269
B10: 4 | C10: Skye and Lochalsh | D10: 2.019564 | E10: 17.971325 | F10: 30.132114 | G10: -9.912084 | H10: 30.590231 | I10: 36.616654 | J10: 27.40856
B11: 5 | C11: Eastern Grampian and Tayside | D11: 4.378141 | E11: 16.07793 | F11: 21.761379 | G11: -9.912084 | H11: 24.737504 | I11: 29.08978 | J11: 18.280467
B12: 6 | C12: Central Grampian | D12: 4.095227 | E12: 15.388164 | F12: 20.710595 | G12: -9.912084 | H12: 23.06215 | I12: 27.204269 | J12: 16.953777
B13: 7 | C13: Argyll | D13: 4.037096 | E13: 13.835993 | F13: 29.13615 | G13: -9.912084 | H13: 28.502726 | I13: 34.329956 | J13: 24.758463
B14: 8 | C14: The Trossachs | D14: 3.024877 | E14: 13.835993 | F14: 18.312732 | G14: -9.912084 | H14: 18.831773 | I14: 22.494319 | J14: 13.935045
B15: 9 | C15: Stirlingshire and Fife | D15: 1.931185 | E15: 13.552104 | F15: 17.985688 | G15: -9.912084 | H15: 17.249335 | I15: 20.846472 | J15: 13.494446
B16: 10 | C16: South West Scotland | D16: 1.505974 | E16: 12.191548 | F16: 16.192042 | G16: -9.912084 | H16: 14.300762 | I16: 17.53917 | J16: 11.156577
B17: 11 | C17: Lothian and Borders | D17: 2.966163 | E17: 12.191548 | F17: 9.635395 | G17: -9.912084 | H17: 10.515633 | I17: 12.442712 | J17: 4.59993
B18: 12 | C18: Solway and Cheviot | D18: 1.603589 | E18: 8.620419 | F18: 8.875393 | G18: -9.912084 | H18: 5.688155 | I18: 7.463233 | J18: 2.411477
B19: 13 | C19: North East England | D19: 3.783439 | E19: 6.982301 | F19: 5.243434 | G19: -9.912084 | H19: 3.651943 | I19: 4.70063 | J19: -1.87573
B20: 14 | C20: North Lancashire and The Lakes | D20: 1.165117 | E20: 6.982301 | F20: 0.830547 | G20: -9.912084 | H20: -2.496689 | I20: -2.330579 | J20: -6.288617
B21: 15 | C21: South Lancashire, Yorkshire and Humber | D21: 4.392294 | E21: 2.763642 | F21: 0.277575 | G21: -9.912084 | H21: -3.086816 | I21: -3.031301 | J21: -8.529052
B22: 16 | C22: North Midlands and North Wales | D22: 3.168106 | E22: 0.27126 | F22: 0 | G22: -9.912084 | H22: -6.52697 | I22: -6.52697 | J22: -9.80358
B23: 17 | C23: South Lincolnshire and North Norfolk | D23: 1.227456 | E23: 1.538686 | F23: 0 | G23: -9.912084 | H23: -7.453679 | I23: -7.453679 | J23: -9.29661
B24: 18 | C24: Mid Wales and The Midlands | D24: 1.096448 | E24: 1.09615 | F24: 0 | G24: -9.912084 | H24: -7.938716 | I24: -7.938716 | J24: -9.473624
B25: 19 | C25: Anglesey and Snowdon | D25: 3.338245 | E25: -0.747806 | F25: 0 | G25: -9.912084 | H25: -7.172084 | I25: -7.172084 | J25: -10.211206
B26: 20 | C26: Pembrokeshire | D26: 10.157141 | E26: -6.211258 | F26: 0 | G26: -9.912084 | H26: -4.723949 | I26: -4.723949 | J26: -12.396587
B27: 21 | C27: South Wales & Gloucester | D27: 5.820023 | E27: -6.789311 | F27: 0 | G27: -9.912084 | H27: -9.52351 | I27: -9.52351 | J27: -12.627808
B28: 22 | C28: Cotswold | D28: 2.633095 | E28: 2.490071 | F28: -8.910523 | G28: -9.912084 | H28: -12.415351 | I28: -14.197455 | J28: -17.826579
B29: 23 | C29: Central London | D29: -5.163515 | E29: 2.490071 | F29: -7.274642 | G29: -9.912084 | H29: -18.903256 | I29: -20.358184 | J29: -16.190698
B30: 24 | C30: Essex and Kent | D30: -3.194232 | E30: 2.490071 | F30: 0 | G30: -9.912084 | H30: -11.114259 | I30: -11.114259 | J30: -8.916056
B31: 25 | C31: Oxfordshire, Surrey and Sussex | D31: -0.931598 | E31: -3.282823 | F31: 0 | G31: -9.912084 | H31: -13.46994 | I31: -13.46994 | J31: -11.225213
B32: 26 | C32: Somerset and Wessex | D32: -0.392121 | E32: -3.445359 | F32: 0 | G32: -9.912084 | H32: -13.060492 | I32: -13.060492 | J32: -11.290228
B33: 27 | C33: West Devon and Cornwall | D33: 1.349339 | E33: -2.100521 | F33: 0.171834 | G33: -9.912084 | H33: -10.105695 | I33: -10.071328 | J33: -10.580458

Sheet TP FQ
A1: Table P - Comparison of Conventional Carbon (80%) tariffs | H1: Return to Index
J2: Figure Q – Wider tariffs for a Conventional Carbon 80% generator
B4: Wider Tariffs for a Conventional Carbon 80% Generator | D4: =TB!C4 -> 2020/21 | E4: =TB!D4 -> 2021/22 | F4: =TB!E4 -> 2022/23 | G4: =TB!F4 -> 2023/24 | H4: =TB!G4 -> 2024/25
B5: Zone | C5: Zone Name | D5: (£/kW) | E5: (£/kW) | F5: (£/kW) | G5: (£/kW) | H5: (£/kW)
B6: 1 | C6: North Scotland | D6: =TK!H7 -> 25.986922 | E6: =TL!H7 -> 27.442609 | F6: =TM!H7 -> 29.166027 | G6: =TN!H7 -> 29.104403 | H6: =TO!H7 -> 28.716365
B7: 2 | C7: East Aberdeenshire | D7: =TK!H8 -> 22.079326 | E7: =TL!H8 -> 22.908852 | F7: =TM!H8 -> 21.912707 | G7: =TN!H8 -> 20.950428 | H7: =TO!H8 -> 20.132127
B8: 3 | C8: Western Highlands | D8: =TK!H9 -> 24.263102 | E8: =TL!H9 -> 25.234293 | F8: =TM!H9 -> 25.383127 | G8: =TN!H9 -> 26.785059 | H8: =TO!H9 -> 25.903527
B9: 4 | C9: Skye and Lochalsh | D9: =TK!H10 -> 29.185799 | E9: =TL!H10 -> 30.312268 | F9: =TM!H10 -> 24.514219 | G9: =TN!H10 -> 31.351884 | H9: =TO!H10 -> 30.590231
B10: 5 | C10: Eastern Grampian and Tayside | D10: =TK!H11 -> 22.792784 | E10: =TL!H11 -> 24.247051 | F10: =TM!H11 -> 24.793421 | G10: =TN!H11 -> 25.818126 | H10: =TO!H11 -> 24.737504
B11: 6 | C11: Central Grampian | D11: =TK!H12 -> 22.710436 | E11: =TL!H12 -> 24.027335 | F11: =TM!H12 -> 23.581102 | G11: =TN!H12 -> 24.531449 | H11: =TO!H12 -> 23.06215
B12: 7 | C12: Argyll | D12: =TK!H13 -> 27.908632 | E12: =TL!H13 -> 29.617708 | F12: =TM!H13 -> 28.618488 | G12: =TN!H13 -> 29.976035 | H12: =TO!H13 -> 28.502726
B13: 8 | C13: The Trossachs | D13: =TK!H14 -> 19.032964 | E13: =TL!H14 -> 20.060224 | F13: =TM!H14 -> 19.354165 | G13: =TN!H14 -> 20.145231 | H13: =TO!H14 -> 18.831773
B14: 9 | C14: Stirlingshire and Fife | D14: =TK!H15 -> 15.410702 | E14: =TL!H15 -> 15.789574 | F14: =TM!H15 -> 14.962351 | G14: =TN!H15 -> 17.81904 | H14: =TO!H15 -> 17.249335
B15: 10 | C15: South West Scotland | D15: =TK!H16 -> 16.060595 | E15: =TL!H16 -> 17.487929 | F15: =TM!H16 -> 16.454706 | G15: =TN!H16 -> 16.219489 | H15: =TO!H16 -> 14.300762
B16: 11 | C16: Lothian and Borders | D16: =TK!H17 -> 13.251459 | E16: =TL!H17 -> 11.493397 | F16: =TM!H17 -> 10.656138 | G16: =TN!H17 -> 10.338457 | H16: =TO!H17 -> 10.515633
B17: 12 | C17: Solway and Cheviot | D17: =TK!H18 -> 8.215227 | E17: =TL!H18 -> 8.719954 | F17: =TM!H18 -> 7.477955 | G17: =TN!H18 -> 6.966315 | H17: =TO!H18 -> 5.688155
B18: 13 | C18: North East England | D18: =TK!H19 -> 6.967407 | E18: =TL!H19 -> 6.210682 | F18: =TM!H19 -> 5.385672 | G18: =TN!H19 -> 4.099107 | H18: =TO!H19 -> 3.651943
B19: 14 | C19: North Lancashire and The Lakes | D19: =TK!H20 -> 2.937723 | E19: =TL!H20 -> 2.964268 | F19: =TM!H20 -> 1.272122 | G19: =TN!H20 -> -1.210398 | H19: =TO!H20 -> -2.496689
B20: 15 | C20: South Lancashire, Yorkshire and Humber | D20: =TK!H21 -> 1.268771 | E20: =TL!H21 -> 0.52691 | F20: =TM!H21 -> -0.39654 | G20: =TN!H21 -> -2.144809 | H20: =TO!H21 -> -3.086816
B21: 16 | C21: North Midlands and North Wales | D21: =TK!H22 -> -0.578714 | E21: =TL!H22 -> -1.534497 | F21: =TM!H22 -> -2.837729 | G21: =TN!H22 -> -5.086954 | H21: =TO!H22 -> -6.52697
B22: 17 | C22: South Lincolnshire and North Norfolk | D22: =TK!H23 -> -2.370128 | E22: =TL!H23 -> -3.557205 | F22: =TM!H23 -> -4.516958 | G22: =TN!H23 -> -5.910432 | H22: =TO!H23 -> -7.453679
B23: 18 | C23: Mid Wales and The Midlands | D23: =TK!H24 -> -2.761222 | E23: =TL!H24 -> -3.714725 | F23: =TM!H24 -> -5.298703 | G23: =TN!H24 -> -6.851814 | H23: =TO!H24 -> -7.938716
B24: 19 | C24: Anglesey and Snowdon | D24: =TK!H25 -> 1.166403 | E24: =TL!H25 -> 0.927587 | F24: =TM!H25 -> -0.6664 | G24: =TN!H25 -> -4.002122 | H24: =TO!H25 -> -7.172084
B25: 20 | C25: Pembrokeshire | D25: =TK!H26 -> 1.861412 | E25: =TL!H26 -> 1.054742 | F25: =TM!H26 -> -1.204175 | G25: =TN!H26 -> -4.177212 | H25: =TO!H26 -> -4.723949
B26: 21 | C26: South Wales & Gloucester | D26: =TK!H27 -> -1.237329 | E26: =TL!H27 -> -2.14569 | F26: =TM!H27 -> -5.699227 | G26: =TN!H27 -> -8.881596 | H26: =TO!H27 -> -9.52351
B27: 22 | C27: Cotswold | D27: =TK!H28 -> -4.454328 | E27: =TL!H28 -> -5.466112 | F27: =TM!H28 -> -8.408453 | G27: =TN!H28 -> -9.413603 | H27: =TO!H28 -> -12.415351
B28: 23 | C28: Central London | D28: =TK!H29 -> -13.582287 | E28: =TL!H29 -> -14.973472 | F28: =TM!H29 -> -16.547497 | G28: =TN!H29 -> -18.312028 | H28: =TO!H29 -> -18.903256
B29: 24 | C29: Essex and Kent | D29: =TK!H30 -> -6.032958 | E29: =TL!H30 -> -7.18814 | F29: =TM!H30 -> -8.578844 | G29: =TN!H30 -> -9.805642 | H29: =TO!H30 -> -11.114259
B30: 25 | C30: Oxfordshire, Surrey and Sussex | D30: =TK!H31 -> -7.721518 | E30: =TL!H31 -> -8.954718 | F30: =TM!H31 -> -10.318917 | G30: =TN!H31 -> -11.98798 | H30: =TO!H31 -> -13.46994
B31: 26 | C31: Somerset and Wessex | D31: =TK!H32 -> -7.985518 | E31: =TL!H32 -> -9.153514 | F31: =TM!H32 -> -11.354734 | G31: =TN!H32 -> -11.525379 | H31: =TO!H32 -> -13.060492
B32: 27 | C32: West Devon and Cornwall | D32: =TK!H33 -> -8.226714 | E32: =TL!H33 -> -9.381431 | F32: =TM!H33 -> -11.878416 | G32: =TN!H33 -> -8.614946 | H32: =TO!H33 -> -10.105695

Sheet TR FS
A1: Table R - Comparison of Conventional Low Carbon 80% tariffs | H1: Return to Index
J2: Figure S - Wider tariffs for a Conventional Low Carbon 80% generator
B4: Wider Tariffs for a Conventional Low Carbon 80% Generator | D4: =TB!C4 -> 2020/21 | E4: =TB!D4 -> 2021/22 | F4: =TB!E4 -> 2022/23 | G4: =TB!F4 -> 2023/24 | H4: =TB!G4 -> 2024/25
B5: Zone | C5: Zone Name | D5: (£/kW) | E5: (£/kW) | F5: (£/kW) | G5: (£/kW) | H5: (£/kW)
B6: 1 | C6: North Scotland | D6: =TK!I7 -> 28.911935 | E6: =TL!I7 -> 30.79255 | F6: =TM!I7 -> 33.457824 | G6: =TN!I7 -> 34.129031 | H6: =TO!I7 -> 33.937049
B7: 2 | C7: East Aberdeenshire | D7: =TK!I8 -> 25.004338 | E7: =TL!I8 -> 26.258793 | F7: =TM!I8 -> 26.204504 | G7: =TN!I8 -> 25.975055 | H7: =TO!I8 -> 25.35281
B8: 3 | C8: Western Highlands | D8: =TK!I9 -> 27.158637 | E8: =TL!I9 -> 28.532414 | F8: =TM!I9 -> 29.356618 | G8: =TN!I9 -> 31.499539 | H8: =TO!I9 -> 30.740492
B9: 4 | C9: Skye and Lochalsh | D9: =TK!I10 -> 33.324474 | E9: =TL!I10 -> 34.893352 | F9: =TM!I10 -> 28.281655 | G9: =TN!I10 -> 37.225814 | H9: =TO!I10 -> 36.616654
B10: 5 | C10: Eastern Grampian and Tayside | D10: =TK!I11 -> 25.56705 | E10: =TL!I11 -> 27.422858 | F10: =TM!I11 -> 28.452978 | G10: =TN!I11 -> 30.125033 | H10: =TO!I11 -> 29.08978
B11: 6 | C11: Central Grampian | D11: =TK!I12 -> 25.402941 | E11: =TL!I12 -> 27.114647 | F11: =TM!I12 -> 27.074161 | G11: =TN!I12 -> 28.641319 | H11: =TO!I12 -> 27.204269
B12: 7 | C12: Argyll | D12: =TK!I13 -> 32.572675 | E12: =TL!I13 -> 34.770527 | F12: =TM!I13 -> 33.97322 | G12: =TN!I13 -> 35.744853 | H12: =TO!I13 -> 34.329956
B13: 8 | C13: The Trossachs | D13: =TK!I14 -> 21.416234 | E13: =TL!I14 -> 22.800487 | F13: =TM!I14 -> 22.345325 | G13: =TN!I14 -> 23.74434 | H13: =TO!I14 -> 22.494319
B14: 9 | C14: Stirlingshire and Fife | D14: =TK!I15 -> 17.64562 | E14: =TL!I15 -> 18.350936 | F14: =TM!I15 -> 17.665396 | G14: =TN!I15 -> 21.271271 | H14: =TO!I15 -> 20.846472
B15: 10 | C15: South West Scotland | D15: =TK!I16 -> 18.302927 | E15: =TL!I16 -> 20.080683 | F15: =TM!I16 -> 19.205687 | G15: =TN!I16 -> 19.362149 | H15: =TO!I16 -> 17.53917
B16: 11 | C16: Lothian and Borders | D16: =TK!I17 -> 14.556873 | E16: =TL!I17 -> 12.874983 | F16: =TM!I17 -> 12.197847 | G16: =TN!I17 -> 12.16158 | H16: =TO!I17 -> 12.442712
B17: 12 | C17: Solway and Cheviot | D17: =TK!I18 -> 9.469631 | E17: =TL!I18 -> 10.197554 | F17: =TM!I18 -> 9.048986 | G17: =TN!I18 -> 8.745436 | H17: =TO!I18 -> 7.463233
B18: 13 | C18: North East England | D18: =TK!I19 -> 7.768606 | E18: =TL!I19 -> 7.102751 | F18: =TM!I19 -> 6.350092 | G18: =TN!I19 -> 5.078759 | H18: =TO!I19 -> 4.70063
B19: 14 | C19: North Lancashire and The Lakes | D19: =TK!I20 -> 3.163884 | E19: =TL!I20 -> 3.371178 | F19: =TM!I20 -> 1.70461 | G19: =TN!I20 -> -0.981298 | H19: =TO!I20 -> -2.330579
B20: 15 | C20: South Lancashire, Yorkshire and Humber | D20: =TK!I21 -> 1.286687 | E20: =TL!I21 -> 0.556347 | F20: =TM!I21 -> -0.354013 | G20: =TN!I21 -> -2.091701 | H20: =TO!I21 -> -3.031301
B21: 16 | C21: North Midlands and North Wales | D21: =TK!I22 -> -0.578714 | E21: =TL!I22 -> -1.534497 | F21: =TM!I22 -> -2.837729 | G21: =TN!I22 -> -5.086954 | H21: =TO!I22 -> -6.52697
B22: 17 | C22: South Lincolnshire and North Norfolk | D22: =TK!I23 -> -2.370128 | E22: =TL!I23 -> -3.557205 | F22: =TM!I23 -> -4.516958 | G22: =TN!I23 -> -5.910432 | H22: =TO!I23 -> -7.453679
B23: 18 | C23: Mid Wales and The Midlands | D23: =TK!I24 -> -2.761222 | E23: =TL!I24 -> -3.714725 | F23: =TM!I24 -> -5.298703 | G23: =TN!I24 -> -6.851814 | H23: =TO!I24 -> -7.938716
B24: 19 | C24: Anglesey and Snowdon | D24: =TK!I25 -> 1.166403 | E24: =TL!I25 -> 0.927587 | F24: =TM!I25 -> -0.6664 | G24: =TN!I25 -> -4.002122 | H24: =TO!I25 -> -7.172084
B25: 20 | C25: Pembrokeshire | D25: =TK!I26 -> 1.861412 | E25: =TL!I26 -> 1.054742 | F25: =TM!I26 -> -1.204175 | G25: =TN!I26 -> -4.177212 | H25: =TO!I26 -> -4.723949
B26: 21 | C26: South Wales & Gloucester | D26: =TK!I27 -> -1.237329 | E26: =TL!I27 -> -2.14569 | F26: =TM!I27 -> -5.699227 | G26: =TN!I27 -> -8.881596 | H26: =TO!I27 -> -9.52351
B27: 22 | C27: Cotswold | D27: =TK!I28 -> -5.926909 | E27: =TL!I28 -> -6.959952 | F27: =TM!I28 -> -10.121065 | G27: =TN!I28 -> -11.015202 | H27: =TO!I28 -> -14.197455
B28: 23 | C28: Central London | D28: =TK!I29 -> -14.970309 | E28: =TL!I29 -> -16.397074 | F28: =TM!I29 -> -18.02193 | G28: =TN!I29 -> -19.868533 | H28: =TO!I29 -> -20.358184
B29: 24 | C29: Essex and Kent | D29: =TK!I30 -> -6.032958 | E29: =TL!I30 -> -7.18814 | F29: =TM!I30 -> -8.578844 | G29: =TN!I30 -> -9.805642 | H29: =TO!I30 -> -11.114259
B30: 25 | C30: Oxfordshire, Surrey and Sussex | D30: =TK!I31 -> -7.721518 | E30: =TL!I31 -> -8.954718 | F30: =TM!I31 -> -10.318917 | G30: =TN!I31 -> -11.98798 | H30: =TO!I31 -> -13.46994
B31: 26 | C31: Somerset and Wessex | D31: =TK!I32 -> -7.985518 | E31: =TL!I32 -> -9.153514 | F31: =TM!I32 -> -11.354734 | G31: =TN!I32 -> -11.525379 | H31: =TO!I32 -> -13.060492
B32: 27 | C32: West Devon and Cornwall | D32: =TK!I33 -> -8.226714 | E32: =TL!I33 -> -9.381431 | F32: =TM!I33 -> -11.878416 | G32: =TN!I33 -> -8.583836 | H32: =TO!I33 -> -10.071328

Sheet TT FU
A1: Table T - Comparison of Intermittent (40%) tariffs | H1: Return to Index
J2: Figure U - Wider tariffs for an Intermittent 40% load factor generator
B4: Wider Tariffs for an Intermittent 40% Generator | D4: =TB!C4 -> 2020/21 | E4: =TB!D4 -> 2021/22 | F4: =TB!E4 -> 2022/23 | G4: =TB!F4 -> 2023/24 | H4: =TB!G4 -> 2024/25
B5: Zone | C5: Zone Name | D5: (£/kW) | E5: (£/kW) | F5: (£/kW) | G5: (£/kW) | H5: (£/kW)
B6: 1 | C6: North Scotland | D6: =TK!J7 -> 18.405384 | E6: =TL!J7 -> 19.1464 | F6: =TM!J7 -> 22.413485 | G6: =TN!J7 -> 24.178193 | H6: =TO!J7 -> 24.090777
B7: 2 | C7: East Aberdeenshire | D7: =TK!J8 -> 15.252584 | E7: =TL!J8 -> 15.822015 | F7: =TM!J8 -> 18.395163 | G7: =TN!J8 -> 20.189528 | H7: =TO!J8 -> 19.918605
B8: 3 | C8: Western Highlands | D8: =TK!J9 -> 17.740649 | E8: =TL!J9 -> 18.215758 | F8: =TM!J9 -> 19.755307 | G8: =TN!J9 -> 22.03151 | H8: =TO!J9 -> 21.461269
B9: 4 | C9: Skye and Lochalsh | D9: =TK!J10 -> 23.956347 | E9: =TL!J10 -> 24.630577 | F9: =TM!J10 -> 18.725031 | G9: =TN!J10 -> 27.82876 | H9: =TO!J10 -> 27.40856
B10: 5 | C10: Eastern Grampian and Tayside | D10: =TK!J11 -> 16.303018 | E10: =TL!J11 -> 16.885924 | F10: =TM!J11 -> 17.398115 | G10: =TN!J11 -> 19.336953 | H10: =TO!J11 -> 18.280467
B11: 6 | C11: Central Grampian | D11: =TK!J12 -> 15.552431 | E11: =TL!J12 -> 16.10778 | F11: =TM!J12 -> 16.245651 | G11: =TN!J12 -> 18.086351 | H11: =TO!J12 -> 16.953777
B12: 7 | C12: Argyll | D12: =TK!J13 -> 24.17294 | E12: =TL!J13 -> 25.170378 | F12: =TM!J13 -> 24.608972 | G12: =TN!J13 -> 25.70288 | H12: =TO!J13 -> 24.758463
B13: 8 | C13: The Trossachs | D13: =TK!J14 -> 12.769075 | E13: =TL!J14 -> 13.1076 | F13: =TM!J14 -> 12.791116 | G13: =TN!J14 -> 14.854335 | H13: =TO!J14 -> 13.935045
B14: 9 | C14: Stirlingshire and Fife | D14: =TK!J15 -> 11.141158 | E14: =TL!J15 -> 11.252428 | F14: =TM!J15 -> 10.60047 | G14: =TN!J15 -> 13.858189 | H14: =TO!J15 -> 13.494446
B15: 10 | C15: South West Scotland | D15: =TK!J16 -> 11.23012 | E15: =TL!J16 -> 11.604902 | F15: =TM!J16 -> 10.978359 | G15: =TN!J16 -> 11.775911 | H15: =TO!J16 -> 11.156577
B16: 11 | C16: Lothian and Borders | D16: =TK!J17 -> 6.54553 | E16: =TL!J17 -> 5.54906 | F16: =TM!J17 -> 4.931999 | G16: =TN!J17 -> 5.178225 | H16: =TO!J17 -> 4.59993
B17: 12 | C17: Solway and Cheviot | D17: =TK!J18 -> 4.90252 | E17: =TL!J18 -> 4.67818 | F17: =TM!J18 -> 3.776508 | G17: =TN!J18 -> 3.649889 | H17: =TO!J18 -> 2.411477
B18: 13 | C18: North East England | D18: =TK!J19 -> 2.020598 | E18: =TL!J19 -> 1.06003 | F18: =TM!J19 -> 0.08711 | G18: =TN!J19 -> -1.068801 | H18: =TO!J19 -> -1.87573
B19: 14 | C19: North Lancashire and The Lakes | D19: =TK!J20 -> -0.854592 | E19: =TL!J20 -> -1.365768 | F19: =TM!J20 -> -2.57255 | G19: =TN!J20 -> -4.821562 | H19: =TO!J20 -> -6.288617
B20: 15 | C20: South Lancashire, Yorkshire and Humber | D20: =TK!J21 -> -3.407088 | E20: =TL!J21 -> -4.601193 | F20: =TM!J21 -> -5.842483 | G20: =TN!J21 -> -7.276143 | H20: =TO!J21 -> -8.529052
B21: 16 | C21: North Midlands and North Wales | D21: =TK!J22 -> -4.087968 | E21: =TL!J22 -> -5.333237 | F21: =TM!J22 -> -6.623987 | G21: =TN!J22 -> -8.274718 | H21: =TO!J22 -> -9.80358
B22: 17 | C22: South Lincolnshire and North Norfolk | D22: =TK!J23 -> -4.066501 | E22: =TL!J23 -> -5.319819 | F22: =TM!J23 -> -6.64822 | G22: =TN!J23 -> -8.715052 | H22: =TO!J23 -> -9.29661
B23: 18 | C23: Mid Wales and The Midlands | D23: =TK!J24 -> -3.968417 | E23: =TL!J24 -> -5.142568 | F23: =TM!J24 -> -6.574422 | G23: =TN!J24 -> -8.657448 | H23: =TO!J24 -> -9.473624
B24: 19 | C24: Anglesey and Snowdon | D24: =TK!J25 -> -3.968983 | E24: =TL!J25 -> -5.186605 | F24: =TM!J25 -> -6.724723 | G24: =TN!J25 -> -8.404827 | H24: =TO!J25 -> -10.211206
B25: 20 | C25: Pembrokeshire | D25: =TK!J26 -> -5.820009 | E25: =TL!J26 -> -7.269052 | F25: =TM!J26 -> -8.747653 | G25: =TN!J26 -> -11.000129 | H25: =TO!J26 -> -12.396587
B26: 21 | C26: South Wales & Gloucester | D26: =TK!J27 -> -5.802118 | E26: =TL!J27 -> -7.253213 | F26: =TM!J27 -> -8.988185 | G26: =TN!J27 -> -11.272001 | H26: =TO!J27 -> -12.627808
B27: 22 | C27: Cotswold | D27: =TK!J28 -> -10.204567 | E27: =TL!J28 -> -11.72099 | F27: =TM!J28 -> -13.955398 | G27: =TN!J28 -> -15.417037 | H27: =TO!J28 -> -17.826579
B28: 23 | C28: Central London | D28: =TK!J29 -> -9.781771 | E28: =TL!J29 -> -11.369803 | F28: =TM!J29 -> -12.764504 | G28: =TN!J29 -> -15.191564 | H28: =TO!J29 -> -16.190698
B29: 24 | C29: Essex and Kent | D29: =TK!J30 -> -2.841662 | E29: =TL!J30 -> -4.251794 | F29: =TM!J30 -> -5.392341 | G29: =TN!J30 -> -7.409041 | H29: =TO!J30 -> -8.916056
B30: 25 | C30: Oxfordshire, Surrey and Sussex | D30: =TK!J31 -> -5.010124 | E30: =TL!J31 -> -6.477457 | F30: =TM!J31 -> -7.724292 | G30: =TN!J31 -> -9.72411 | H30: =TO!J31 -> -11.225213
B31: 26 | C31: Somerset and Wessex | D31: =TK!J32 -> -5.187078 | E31: =TL!J32 -> -6.647556 | F31: =TM!J32 -> -8.023025 | G31: =TN!J32 -> -9.725895 | H31: =TO!J32 -> -11.290228
B32: 27 | C32: West Devon and Cornwall | D32: =TK!J33 -> -6.158228 | E32: =TL!J33 -> -7.633322 | F32: =TM!J33 -> -9.119942 | G32: =TN!J33 -> -9.083387 | H32: =TO!J33 -> -10.580458

Sheet TV
A1: Table V – Local substation tariffs for 2020/21 | H1: Return to Index
B4: Substation Rating | C4: Connection Type | D4: Local Substation Tariff (£/kW)
D5: 132kV | E5: 275kV | F5: 400kV
B6: <1320 MW | C6: No redundancy | D6: 0.203891 | E6: 0.116639 | F6: 0.084041
B7: <1320 MW | C7: Redundancy | D7: 0.449155 | E7: 0.277895 | F7: 0.202107
B8: >=1320 MW | C8: No redundancy | D8: 0 | E8: 0.365714 | F8: 0.264486
B9: >=1320 MW | C9: Redundancy | D9: 0 | E9: 0.600409 | F9: 0.438249

Sheet TW
A1: Table W – Onshore local circuit tariffs | H1: Return to Index
B4: Connection Point | C4: =TB!C4 -> 2020/21 | D4: =TB!D4 -> 2021/22 | E4: =TB!E4 -> 2022/23 | F4: =TB!F4 -> 2023/24 | G4: =TB!G4 -> 2024/25 | J4: =TB!C4 -> 2020/21 | K4: =TB!K4 -> 0 | M4: =TB!D4 -> 2021/22 | P4: =TB!E4 -> 2022/23 | Q4: =TB!N4 -> 0 | S4: =TB!F4 -> 2023/24 | V4: =TB!G4 -> 2024/25 | W4: =TB!Q4 -> 0
C5: (£/kW) | D5: (£/kW) | E5: (£/kW) | F5: (£/kW) | G5: (£/kW) | J5: (£/kW) | M5: (£/kW) | P5: (£/kW) | S5: (£/kW) | V5: (£/kW)
B6: Aberarder | C6: =IFERROR(VLOOKUP($B6,$J$6:$K$120,2,FALSE),"") -> 2.034445298 | D6: =IFERROR(VLOOKUP($B6,$M$6:$N$119,2,FALSE),"") -> 1.780596884 | E6: =IFERROR(VLOOKUP($B6,$P$6:$Q$119,2,FALSE),"") -> 1.83401479 | F6: =IFERROR(VLOOKUP($B6,$S$6:$T$119,2,FALSE),"") -> 1.889035234 | G6: =IFERROR(VLOOKUP($B6,$V$6:$W$119,2,FALSE),"") -> 1.945706291 | J6: Achruach | K6: 4.360774082 | M6: Achruach | N6: 4.491934947 | P6: Achruach | Q6: -2.755675289 | S6: Achruach | T6: -2.745855264 | V6: Achruach | W6: -2.827707616
B7: Aberdeen Bay | C7: =IFERROR(VLOOKUP($B7,$J$6:$K$120,2,FALSE),"") -> 2.647816555 | D7: 2.727364692 | E7: 2.809185632 | F7: 2.893461201 | G7: 2.980265037 | J7: Aigas | K7: 0.664180174 | M7: Aigas | N7: 0.6841340848 | P7: Aigas | Q7: 0.7046581074 | S7: Aigas | T7: 0.7257978506 | V7: Aigas | W7: 0.7475717861
B8: Achruach | C8: 4.360774082 | D8: 4.491934947 | E8: -2.755675289 | F8: -2.745855264 | G8: -2.827707616 | J8: An Suidhe | K8: 3.091629149 | M8: An Suidhe | N8: 3.184226536 | P8: An Suidhe | Q8: -1.034340851 | S8: An Suidhe | T8: -0.962644245 | V8: An Suidhe | W8: -0.9910132261
B9: Aigas | C9: 0.664180174 | D9: 0.6841340848 | E9: 0.7046581074 | F9: 0.7257978506 | G9: 0.7475717861 | J9: Arecleoch | K9: 2.109185181 | M9: Arecleoch | N9: 2.172551259 | P9: Arecleoch | Q9: 2.237727797 | S9: Arecleoch | T9: 1.333210648 | V9: Arecleoch | W9: 1.373206967
B10: An Suidhe | C10: 3.091629149 | D10: 3.184226536 | E10: -1.034340851 | F10: -0.962644245 | G10: -0.9910132261 | J10: Baglan Bay | K10: 0.772554315 | M10: Baglan Bay | N10: 0.7959024262 | P10: Baglan Bay | Q10: -0.1571191986 | S10: Baglan Bay | T10: -0.1617987358 | V10: Baglan Bay | W10: 0.8695480896
B11: Arecleoch | C11: 2.109185181 | D11: 2.172551259 | E11: 2.237727797 | F11: 1.333210648 | G11: 1.373206967 | J11: Beinneun Wind Farm | K11: 1.525325386 | M11: Beinneun Wind Farm | N11: 1.571127273 | P11: Beinneun Wind Farm | Q11: 1.618278013 | S11: Beinneun Wind Farm | T11: 1.666825877 | V11: Beinneun Wind Farm | W11: 1.71682805
B12: Baglan Bay | C12: 0.772554315 | D12: 0.7959024262 | E12: -0.1571191986 | F12: -0.1617987358 | G12: 0.8695480896 | J12: Black Hill | K12: 1.577101081 | M12: Black Hill | N12: 1.624481801 | P12: Black Hill | Q12: 1.673216255 | S12: Black Hill | T12: 1.723412742 | V12: Black Hill | W12: 1.775115125
B13: Beaw Field | F13: 97.91861542 | G13: 100.6551494 | J13: BlackCraig Wind Farm | K13: 6.392785331 | M13: BlackCraig Wind Farm | N13: 6.584843259 | P13: BlackCraig Wind Farm | Q13: 6.782388557 | S13: BlackCraig Wind Farm | T13: 6.985860214 | V13: BlackCraig Wind Farm | W13: 7.19543602
B14: Beinneun Wind Farm | C14: 1.525325386 | D14: 1.571127273 | E14: 1.618278013 | F14: 1.666825877 | G14: 1.71682805 | J14: BlackLaw Extension | K14: 3.76306038 | M14: BlackLaw Extension | N14: 3.876113697 | P14: BlackLaw Extension | Q14: 3.992397107 | S14: BlackLaw Extension | T14: 4.112169021 | V14: BlackLaw Extension | W14: 4.235534091
B15: Bhlaraidh Wind Farm | C15: 0.655674667 | D15: 0.6753730475 | E15: 0.695634239 | F15: 0.7165032661 | G15: 0.7379983641 | J15: Black Law | K15: 1.774501621 | M15: Black Law | N15: 1.827812828 | P15: Black Law | Q15: 1.882647213 | S15: Black Law | T15: 1.93912663 | V15: Black Law | W15: 1.997300429
B16: Black Hill | C16: 1.577101081 | D16: 1.624481801 | E16: 1.673216255 | F16: 1.723412742 | G16: 1.775115125 | J16: Clyde (North) | K16: 0.1113694618 | M16: Clyde (North) | N16: 0.1147153255 | P16: Clyde (North) | Q16: 0.1181567852 | S16: Branxton | T16: 0.3537008419 | V16: Branxton | W16: 0.3627619501
B17: Black Law | C17: 1.774501621 | D17: 1.827812828 | E17: 1.882647213 | F17: 1.93912663 | G17: 1.997300429 | J17: Clyde (South) | K17: 0.1287933937 | M17: Clyde (South) | N17: 0.1326627232 | P17: Clyde (South) | Q17: 0.1366426049 | S17: Cashley | T17: 4.737874876 | V17: Cashley | W17: 4.880011503
B18: BlackCraig Wind Farm | C18: 6.392785331 | D18: 6.584843259 | E18: 6.782388557 | F18: 6.985860214 | G18: 7.19543602 | J18: Corriegarth | K18: 2.942018394 | M18: Corriegarth | N18: 2.460461148 | P18: Corriegarth | Q18: 2.534274983 | S18: Clyde (North) | T18: 0.1217014888 | V18: Clyde (North) | W18: 0.1253525335
B19: BlackLaw Extension | C19: 3.76306038 | D19: 3.876113697 | E19: 3.992397107 | F19: 4.112169021 | G19: 4.235534091 | J19: Corriemoillie | K19: 1.689576181 | M19: Corriemoillie | N19: 1.740876377 | P19: Corriemoillie | Q19: 1.792546261 | S19: Clyde (South) | T19: 0.140741883 | V19: Clyde (South) | W19: 0.1449641395
B20: Branxton | F20: 0.3537008419 | G20: 0.3627619501 | J20: Coryton | K20: 0.05200234607 | M20: Coryton | N20: 0.05562520853 | P20: Coryton | Q20: 0.05611463162 | S20: Corriegarth | T20: 2.610303232 | V20: Corriegarth | W20: 2.688612329
B21: Cairnford | F21: 0.2456763364 | G21: 0.2530466265 | J21: Cruachan | K21: 1.853205045 | M21: Cruachan | N21: 1.909117612 | P21: Cruachan | Q21: 1.966322245 | S21: Corriemoillie | T21: 1.846323338 | V21: Corriemoillie | W21: 1.901713351
B22: Cashley | F22: 4.737874876 | G22: 4.880011503 | J22: Crystal Rig | K22: 0.1399868082 | M22: Crystal Rig | N22: 0.1455387965 | P22: Culligran | Q22: 1.867360514 | S22: Coryton | T22: 0.05151897782 | V22: Coryton | W22: 0.05316946929
B23: Clyde (North) | C23: 0.1113694618 | D23: 0.1147153255 | E23: 0.1181567852 | F23: 0.1217014888 | G23: 0.1253525335 | J23: Culligran | K23: 1.760093041 | M23: Culligran | N23: 1.812971372 | P23: Deanie | Q23: 3.067806558 | S23: Cruachan | T23: 2.078048675 | V23: Cruachan | W23: 2.140337835
B24: Clyde (South) | C24: 0.1287933937 | D24: 0.1326627232 | E24: 0.1366426049 | F24: 0.140741883 | G24: 0.1449641395 | J24: Deanie | K24: 2.891581424 | M24: Deanie | N24: 2.978452969 | P24: Dersalloch | Q24: 2.595288788 | S24: Culligran | T24: 1.923381329 | V24: Culligran | W24: 1.981082769
B25: Corriegarth | C25: 2.942018394 | D25: 2.460461148 | E25: 2.534274983 | F25: 2.610303232 | G25: 2.688612329 | J25: Dersalloch | K25: 2.446206665 | M25: Dersalloch | N25: 2.519697852 | P25: Didcot | Q25: 0.566741745 | S25: Deanie | T25: 3.159840755 | V25: Deanie | W25: 3.254635978
B26: Corriemoillie | C26: 1.689576181 | D26: 1.740876377 | E26: 1.792546261 | F26: 1.846323338 | G26: 1.901713351 | J26: Didcot | K26: 0.5295457408 | M26: Dinorwig | N26: 2.509730419 | P26: Dinorwig | Q26: 2.585022331 | S26: Dersalloch | T26: 2.673147452 | V26: Dersalloch | W26: 2.753341875
B27: Coryton | C27: 0.05200234607 | D27: 0.05562520853 | E27: 0.05611463162 | F27: 0.05151897782 | G27: 0.05316946929 | J27: Dinorwig | K27: 2.436529948 | M27: Dunlaw Extension | N27: 1.580085456 | P27: Dunlaw Extension | Q27: 1.628105606 | S27: Didcot | T27: 0.5699142596 | V27: Didcot | W27: 0.5870134809
B28: Costa Head | E28: 74.0000588 | F28: 76.27312493 | G28: 78.50150064 | J28: Dunlaw Extension | K28: 1.532146669 | M28: Dunhill | N28: 1.498255174 | P28: Dunhill | Q28: 1.543202829 | S28: Dinorwig | T28: 3.81327923 | V28: Dinorwig | W28: 3.927659113
B29: Cruachan | C29: 1.853205045 | D29: 1.909117612 | E29: 1.966322245 | F29: 2.078048675 | G29: 2.140337835 | J29: Dunhill | K29: 1.454556065 | M29: Dumnaglass | N29: 1.359728529 | P29: Dumnaglass | Q29: 1.400520385 | S29: Dunlaw Extension | T29: 1.673124483 | V29: Dunlaw Extension | W29: 1.72263107
B30: Crystal Rig | C30: 0.1399868082 | D30: 0.1455387965 | J30: Dumnaglass | K30: 1.625852271 | M30: Edinbane | N30: 7.16498938 | P30: Edinbane | Q30: 12.87810855 | S30: Dunhill | T30: 1.589498914 | V30: Dunhill | W30: 1.637183882
B31: Culligran | C31: 1.760093041 | D31: 1.812971372 | E31: 1.867360514 | F31: 1.923381329 | G31: 1.981082769 | J31: Edinbane | K31: 6.952009263 | M31: Ewe Hill | N31: 2.545902275 | P31: Ewe Hill | Q31: 2.622279343 | S31: Dumnaglass | T31: 1.442535997 | V31: Dumnaglass | W31: 1.485812077
B32: Deanie | C32: 2.891581424 | D32: 2.978452969 | E32: 3.067806558 | F32: 3.159840755 | G32: 3.254635978 | J32: Ewe Hill | K32: 2.471646792 | M32: Farr | N32: 3.729541109 | P32: Farr | Q32: 3.841427342 | S32: Edinbane | T32: 7.596411225 | V32: Edinbane | W32: 7.824197117
B33: Dersalloch | C33: 2.446206665 | D33: 2.519697852 | E33: 2.595288788 | F33: 2.673147452 | G33: 2.753341875 | J33: Farr | K33: 3.620762827 | M33: Fallago | N33: 0.4603259603 | P33: Fallago | Q33: -0.06536976941 | S33: Ewe Hill | T33: 1.52499006 | V33: Ewe Hill | W33: 1.570739761
B34: Didcot | C34: 0.5295457408 | D34: 0.5559851232 | E34: 0.566741745 | F34: 0.5699142596 | G34: 0.5870134809 | J34: Fallago | K34: 0.4445361303 | M34: Fernoch | N34: 4.601224068 | P34: Fernoch | Q34: 4.739201302 | S34: Farr | T34: 3.956670163 | V34: Farr | W34: 4.075370268
B35: Dinorwig | C35: 2.436529948 | D35: 2.509730419 | E35: 2.585022331 | F35: 3.81327923 | G35: 3.927659113 | J35: Fernoch | K35: 4.466969138 | M35: Ffestiniogg | N35: 0.2646449316 | P35: Ffestiniogg | Q35: 0.2725842795 | S35: Fallago | T35: -0.216550477 | V35: Fallago | W35: -0.2239701465
B36: Dorenell | C36: 2.131217678 | D36: 2.195245677 | E36: 2.261103047 | F36: 4.945837703 | G36: 5.094212834 | J36: Ffestiniogg | K36: 0.2569261211 | M36: Finlarig | N36: 0.3349395235 | P36: Finlarig | Q36: 0.3449877092 | S36: Fernoch | T36: 4.881373894 | V36: Fernoch | W36: 5.027812608
B37: Druim Leathann | F37: 78.79180351 | G37: 81.15555762 | J37: Finlarig | K37: 0.3251704541 | M37: Foyers | N37: 0.3064009338 | P37: Foyers | Q37: 0.3155929619 | S37: Ffestiniogg | T37: 0.2807618079 | V37: Ffestiniogg | W37: 0.2891846621
B38: Dumnaglass | C38: 1.625852271 | D38: =IFERROR(VLOOKUP($B38,$M$6:$N$119,2,FALSE),"") -> 1.359728529 | E38: =IFERROR(VLOOKUP($B38,$P$6:$Q$119,2,FALSE),"") -> 1.400520385 | F38: =IFERROR(VLOOKUP($B38,$S$6:$T$119,2,FALSE),"") -> 1.442535997 | G38: =IFERROR(VLOOKUP($B38,$V$6:$W$119,2,FALSE),"") -> 1.485812077 | J38: Foyers | K38: 0.2974642399 | M38: Galawhistle | N38: 3.660177371 | P38: Galawhistle | Q38: 3.769982693 | S38: Finlarig | T38: 0.3553373405 | V38: Finlarig | W38: 0.3659974607
B39: Dunhill | C39: 1.454556065 | D39: 1.498255174 | E39: 1.543202829 | F39: 1.589498914 | G39: 1.637183882 | J39: Galawhistle | K39: 3.553422198 | M39: Glendoe | N39: 1.924093681 | P39: Glendoe | Q39: 1.981816491 | S39: Foyers | T39: 0.3250607507 | V39: Foyers | W39: 0.3348125732
B40: Dunlaw Extension | C40: 1.532146669 | D40: 1.580085456 | E40: 1.628105606 | F40: 1.673124483 | G40: 1.72263107 | J40: Glendoe | K40: 1.867974282 | M40: Glenglass | N40: 5.033026155 | P40: Glenglass | Q40: 5.18401694 | S40: Galawhistle | T40: 3.883082173 | V40: Galawhistle | W40: 3.999574639
B41: Edinbane | C41: 6.952009263 | D41: 7.16498938 | E41: 12.87810855 | F41: 7.596411225 | G41: 7.824197117 | J41: Glenglass | K41: 4.886229559 | M41: Gordonbush | N41: 0.2591375251 | P41: Gordonbush | Q41: 0.253480453 | S41: Glendoe | T41: 2.041270986 | V41: Glendoe | W41: 2.102509116
B42: Elchies | F42: 1.771373046 | G42: 1.824514237 | J42: Gordonbush | K42: 0.235838575 | M42: Griffin Wind | N42: 8.808973345 | P42: Griffin Wind | Q42: 9.072949391 | S42: Glenglass | T42: 5.339537448 | V42: Glenglass | W42: 5.499723571
B43: Enoch Hill | F43: 1.849086749 | G43: 1.904559352 | J43: Griffin Wind | K43: 9.86387154 | M43: Hadyard Hill | N43: 2.895311384 | P43: Hadyard Hill | Q43: 2.982170726 | S43: Gordonbush | T43: 0.2534325081 | V43: Gordonbush | W43: 0.2635798787
B44: Ewe Hill | C44: 2.471646792 | D44: 2.545902275 | E44: 2.622279343 | F44: 1.52499006 | G44: 1.570739761 | J44: Hadyard Hill | K44: 2.810864802 | M44: Harestanes | N44: 2.646536134 | P44: Harestanes | Q44: 2.726234063 | S44: Griffin Wind | T44: 9.35321524 | V44: Griffin Wind | W44: 9.633756652
B45: Fallago | C45: 0.4445361303 | D45: 0.4603259603 | E45: -0.06536976941 | F45: -0.216550477 | G45: -0.2239701465 | J45: Harestanes | K45: 2.566729594 | M45: Hartlepool | N45: 0.2157053426 | P45: Hartlepool | Q45: 0.2665570987 | S45: Hadyard Hill | T45: 3.071635848 | V45: Hadyard Hill | W45: 3.163784923
B46: Farr | C46: 3.620762827 | D46: 3.729541109 | E46: 3.841427342 | F46: 3.956670163 | G46: 4.075370268 | J46: Hartlepool | K46: 0.2071592886 | M46: Invergarry | N46: 0.3827880269 | P46: Invergarry | Q46: 0.3942716677 | S46: Harestanes | T46: 2.789599324 | V46: Harestanes | W46: 2.872235607
B47: Fernoch | C47: 4.466969138 | D47: 4.601224068 | E47: 4.739201302 | F47: 4.881373894 | G47: 5.027812608 | J47: Invergarry | K47: 0.3716233761 | M47: Kilgallioch | N47: 1.100897075 | P47: Kilgallioch | Q47: 1.133923987 | S47: Hartlepool | T47: 0.2739090119 | V47: Hartlepool | W47: 0.2820965823
B48: Ffestiniogg | C48: 0.2569261211 | D48: 0.2646449316 | E48: 0.2725842795 | F48: 0.2807618079 | G48: 0.2891846621 | J48: Kilgallioch | K48: 1.068787577 | M48: Kilmorack | N48: 0.2065842067 | P48: Kilmorack | Q48: 0.2127817329 | S48: Invergarry | T48: 0.4060998177 | V48: Invergarry | W48: 0.4182828123
B49: Finlarig | C49: 0.3251704541 | D49: 0.3349395235 | E49: 0.3449877092 | F49: 0.3553373405 | G49: 0.3659974607 | J49: Kilmorack | K49: 0.200558834 | M49: Langage | N49: 0.6882093987 | P49: Langage | Q49: 0.7087304209 | S49: Kilgallioch | T49: 0.1962927239 | V49: Kilgallioch | W49: 0.2021815056
B50: Foyers | C50: 0.2974642399 | D50: 0.3064009338 | E50: 0.3155929619 | F50: 0.3250607507 | G50: 0.3348125732 | J50: Langage | K50: 0.6679520289 | M50: Lochay | N50: 0.3827880269 | P50: Lochay | Q50: 0.3942716677 | S50: Kilmorack | T50: 0.2191651849 | V50: Kilmorack | W50: 0.2257401405
B51: Galawhistle | C51: 3.553422198 | D51: 3.660177371 | E51: 3.769982693 | F51: 3.883082173 | G51: 3.999574639 | J51: Lochay | K51: 0.3716233761 | M51: Luichart | N51: 0.6004422825 | P51: Luichart | Q51: 0.6178991433 | S51: Langage | T51: 0.7300018274 | V51: Langage | W51: 0.3885886886
B52: Giles Bay | D52: 2.634294812 | E52: 2.713323656 | F52: 2.794723366 | G52: 2.878565067 | J52: Luichart | K52: 0.5824047475 | M52: Mark Hill | N52: 0.9158723566 | P52: Mark Hill | Q52: 1.698027349 | S52: Lochay | T52: 0.4060998177 | V52: Lochay | W52: 0.4182828123
B53: Glen Kyllachy | D53: 0.4784850336 | E53: 0.4928395846 | F53: 0.5076247722 | G53: 0.5228535153 | J53: Mark Hill | K53: 0.8891594129 | M53: Marchwood | N53: 0.3991673286 | P53: Marchwood | Q53: 0.4111606132 | S53: Luichart | T53: 0.6364368074 | V53: Luichart | W53: 0.6555302239
B54: Glen Ullinish | E54: 2.464197923 | F54: 2.538123861 | G54: 2.614267577 | J54: Marchwood | K54: 0.3875561475 | M54: Middleton | N54: 0.157853993 | P54: Melgarve | Q54: 0.2139618396 | S54: Marchwood | T54: 0.4235475381 | V54: Marchwood | W54: 0.4362446598
B55: Glendoe | C55: 1.867974282 | D55: 1.924093681 | E55: 1.981816491 | F55: 2.041270986 | G55: 2.102509116 | J55: Middleton | K55: 0.1153670893 | M55: Millennium Wind | N55: 1.910437603 | P55: Middleton | Q55: 0.1605924345 | S55: Melgarve | T55: 0.2094677286 | V55: Melgarve | W55: 0.2155721669
B56: Glenglass | C56: 4.886229559 | D56: 5.033026155 | E56: 5.18401694 | F56: 5.339537448 | G56: 5.499723571 | J56: Millennium Wind | K56: 1.854739166 | M56: Moffat | N56: 0.201477612 | P56: Millennium Wind | Q56: 1.967767653 | S56: Middleton | T56: -0.007105077567 | V56: Middleton | W56: -0.007385811844
B57: Glenmuckloch | F57: 3.722581663 | G57: 3.834259113 | J57: Moffat | K57: 0.1929852792 | M57: Mossford | N57: 3.012385119 | P57: Moffat | Q57: 0.2078237851 | S57: Millennium Wind | T57: 2.026800207 | V57: Millennium Wind | W57: 2.087601609
B58: Gordonbush | C58: 0.235838575 | D58: 0.2591375251 | E58: 0.253480453 | F58: 0.2534325081 | G58: 0.2635798787 | J58: Mossford | K58: 0.4551531099 | M58: Nant | N58: 2.625193719 | P58: Mossford | Q58: 0.4828922557 | S58: Moffat | T58: 0.1956367378 | V58: Moffat | W58: 0.2004541439
B59: Griffin Wind | C59: 9.86387154 | D59: 8.808973345 | E59: 9.072949391 | F59: 9.35321524 | G59: 9.633756652 | J59: Nant | K59: -1.247583686 | M59: Necton | N59: 1.176133745 | P59: Nant | Q59: -1.323605735 | S59: Mossford | T59: 0.4973797132 | V59: Mossford | W59: 0.5123014169
B60: Hadyard Hill | C60: 2.810864802 | D60: 2.895311384 | E60: 2.982170726 | F60: 3.071635848 | G60: 3.163784923 | J60: Necton | K60: -0.3739285515 | M60: Rhigos | N60: 0.1066024386 | P60: Necton | Q60: -0.06011879566 | S60: Nant | T60: -1.363303771 | V60: Nant | W60: -1.404195524
B61: Harestanes | C61: 2.566729594 | D61: 2.646536134 | E61: 2.726234063 | F61: 2.789599324 | G61: 2.872235607 | J61: Rhigos | K61: 0.1033527776 | M61: Rocksavage | N61: 0.01852166016 | P61: Rhigos | Q61: 0.1096813082 | S61: Necton | T61: -0.1034513623 | V61: Rhigos | W61: 0.116338621
B62: Hartlepool | C62: 0.2071592886 | D62: 0.2157053426 | E62: 0.2665570987 | F62: 0.2739090119 | G62: 0.2820965823 | J62: Rocksavage | K62: 0.01797878627 | M62: Saltend | N62: 0.01814977402 | P62: Rocksavage | Q62: 0.01907442927 | S62: Rhigos | T62: 0.1129625819 | V62: Rocksavage | W62: -0.02023587055
B63: Hesta Head | E63: 83.38637152 | F63: 85.94102702 | G63: 88.4594398 | J63: Saltend | K63: 0.01761935899 | M63: South Humber Bank | N63: 0.4326542221 | P63: Saltend | Q63: 0.01869319785 | S63: Rocksavage | T63: -0.01964655279 | V63: Saltend | W63: -0.0023455942
B64: Invergarry | C64: 0.3716233761 | D64: 0.3827880269 | E64: 0.3942716677 | F64: 0.4060998177 | G64: 0.4182828123 | J64: South Humber Bank | K64: 0.4200231285 | M64: Spalding | N64: 0.2953219912 | P64: South Humber Bank | Q64: 0.8977386653 | S64: Saltend | T64: 0.01925399448 | V64: South Humber Bank | W64: -0.2125157654
B65: Kendoon North | F65: -5.082918375 | G65: -5.236159188 | J65: Spalding | K65: 0.2861960833 | M65: Strathbrora | N65: 0.1220279702 | P65: Spalding | Q65: 0.3039446283 | S65: South Humber Bank | T65: -0.2063293462 | V65: Spalding | W65: 0.341774972
B66: Kergord | F66: 90.91699697 | G66: 93.44348242 | J66: Strathbrora | K66: 0.1038448301 | M66: Stronelairg | N66: 1.122221428 | P66: Strathbrora | Q66: 0.1132290697 | S66: Spalding | T66: 0.3314513409 | V66: Strathbrora | W66: 0.1139497129
B67: Kilgallioch | C67: 1.068787577 | D67: 1.100897075 | E67: 1.133923987 | F67: 0.1962927239 | G67: 0.2021815056 | J67: Stronelairg | K67: 1.086988214 | M67: Strathy Wind | N67: 1.969804538 | P67: Stronelairg | Q67: 1.154008109 | S67: Strathbrora | T67: 0.1083870084 | V67: Stronelairg | W67: 1.212867254
B68: Killingholme | J68: Strathy Wind | K68: 1.900201011 | M68: Wester Dod | N68: 0.5014786458 | P68: Strathy Wind | Q68: 2.018480621 | S68: Stronelairg | T68: 1.177715386 | V68: Strathy Wind | W68: 2.133585519
B69: Kilmorack | C69: 0.200558834 | D69: 0.2065842067 | E69: 0.2127817329 | F69: 0.2191651849 | G69: 0.2257401405 | J69: Wester Dod | K69: 0.4855450786 | M69: Whitelee | N69: 0.1110148311 | P69: Wester Dod | Q69: 0.3666180449 | S69: Strathy Wind | T69: 2.069412874 | V69: Wester Dod | W69: 0.3889450838
B70: Kings Lynn | D70: =IFERROR(VLOOKUP($B70,$M$6:$N$119,2,FALSE),"") ->  | E70: =IFERROR(VLOOKUP($B70,$P$6:$Q$119,2,FALSE),"") -> -0.2437085297 | F70: =IFERROR(VLOOKUP($B70,$S$6:$T$119,2,FALSE),"") -> 0.6158118476 | G70: =IFERROR(VLOOKUP($B70,$V$6:$W$119,2,FALSE),"") -> 0.6342664458 | J70: Whitelee | K70: 0.1077768985 | M70: Whitelee Extension | N70: 0.3086212305 | P70: Whitelee | Q70: 0.114345276 | S70: Wester Dod | T70: 0.3776165862 | V70: Whitelee | W70: 0.1213089033
B71: Kype Muir | C71: =IFERROR(VLOOKUP($B71,$J$6:$K$120,2,FALSE),"") -> 1.50627964 | D71: 1.551532677 | E71: 1.598078657 | F71: 1.646021017 | G71: 1.695401647 | J71: Whitelee Extension | K71: 0.2996197779 | M71: Bhlaraidh Wind Farm | N71: 0.6753730475 | P71: Whitelee Extension | Q71: 0.3178798674 | S71: Whitelee | T71: 0.1177756343 | V71: Whitelee Extension | W71: 0.3372387513
B72: Langage | C72: 0.6679520289 | D72: 0.6882093987 | E72: 0.7087304209 | F72: 0.7300018274 | G72: 0.3885886886 | J72: Bhlaraidh Wind Farm | K72: 0.655674667 | M72: Dorenell | N72: 2.195245677 | P72: Bhlaraidh Wind Farm | Q72: 0.695634239 | S72: Whitelee Extension | T72: 0.3274162634 | V72: Bhlaraidh Wind Farm | W72: 0.7379983641
B73: Lochay | C73: 0.3716233761 | D73: 0.3827880269 | E73: 0.3942716677 | F73: 0.4060998177 | G73: 0.4182828123 | J73: Dorenell | K73: 2.131217678 | M73: Giles Bay | N73: 2.634294812 | P73: Dorenell | Q73: 2.261103047 | S73: Bhlaraidh Wind Farm | T73: 0.7165032661 | V73: Dorenell | W73: 5.094212834
B74: Luichart | C74: 0.5824047475 | D74: 0.6004422825 | E74: 0.6178991433 | F74: 0.6364368074 | G74: 0.6555302239 | J74: Kype Muir | K74: 1.50627964 | M74: Kype Muir | N74: 1.551532677 | P74: Giles Bay | Q74: 2.713323656 | S74: Dorenell | T74: 4.945837703 | V74: Giles Bay | W74: 2.878565067
B75: Marchwood | C75: 0.3875561475 | D75: 0.3991673286 | E75: 0.4111606132 | F75: 0.4235475381 | G75: 0.4362446598 | J75: Middle Muir | K75: 2.012959954 | M75: Middle Muir | N75: 2.073435146 | P75: Kype Muir | Q75: 1.598078657 | S75: Giles Bay | T75: 2.794723366 | V75: Kype Muir | W75: 1.695401647
B76: Mark Hill | C76: 0.8891594129 | D76: 0.9158723566 | E76: 1.698027349 | J76: Aberdeen Bay | K76: 2.647816555 | M76: Millennium South | N76: 0.548137977 | P76: Middle Muir | Q76: 2.1356382 | S76: Kype Muir | T76: 1.646021017 | V76: Middle Muir | W76: 2.265698567
B77: Melgarve | E77: 0.2139618396 | F77: 0.2094677286 | G77: 0.2155721669 | J77: Aberarder | K77: 2.034445298 | M77: Aberdeen Bay | N77: 2.727364692 | P77: Millennium South | Q77: 0.5640155229 | S77: Middle Muir | T77: 2.199707346 | V77: Millennium South | W77: 0.5982359505
B78: Middle Muir | C78: 2.012959954 | D78: 2.073435146 | E78: 2.1356382 | F78: 2.199707346 | G78: 2.265698567 | J78: New Deer | K78: 0.7646770951 | M78: Aberarder | N78: 1.780596884 | P78: Aberdeen Bay | Q78: 2.809185632 | S78: Millennium South | T78: 0.580822458 | V78: Aberdeen Bay | W78: 2.980265037
B79: Middleton | C79: 0.1153670893 | D79: 0.157853993 | E79: 0.1605924345 | F79: -0.007105077567 | G79: -0.007385811844 | M79: Glen Kyllachy | N79: 0.4784850336 | P79: Aberarder | Q79: 1.83401479 | S79: Aberdeen Bay | T79: 2.893461201 | V79: Aberarder | W79: 1.945706291
B80: Millennium South | D80: 0.548137977 | E80: 0.5640155229 | F80: 0.580822458 | G80: 0.5982359505 | M80: New Deer | N80: 0.7876502267 | P80: New Deer | Q80: 0.8112797335 | S80: Aberarder | T80: 1.889035234 | V80: Glen Kyllachy | W80: 0.5228535153
B81: Millennium Wind | C81: 1.854739166 | D81: 1.910437603 | E81: 1.967767653 | F81: 2.026800207 | G81: 2.087601609 | M81: Didcot | N81: 0.5559851232 | P81: Glen Kyllachy | Q81: 0.4928395846 | S81: Willow | T81: 1.692082574 | V81: Willow | W81: 1.742845051
B82: Moffat | C82: 0.1929852792 | D82: 0.201477612 | E82: 0.2078237851 | F82: 0.1956367378 | G82: 0.2004541439 | P82: Costa Head | Q82: 74.0000588 | S82: New Deer | T82: 0.8356181255 | V82: New Deer | W82: 0.8606866693
B83: Mossford | C83: 0.4551531099 | D83: 3.012385119 | E83: 0.4828922557 | F83: 0.4973797132 | G83: 0.5123014169 | P83: Hesta Head | Q83: 83.38637152 | S83: Kings Lynn | T83: 0.6158118476 | V83: Kings Lynn | W83: 0.6342664458
B84: Muaithebheal | F84: 80.99151086 | G84: 83.42125618 | P84: Glen Ullinish | Q84: 2.464197923 | S84: Kergord | T84: 90.91699697 | V84: Kergord | W84: 93.44348242
B85: Nant | C85: -1.247583686 | D85: 2.625193719 | E85: -1.323605735 | F85: -1.363303771 | G85: -1.404195524 | P85: Kings Lynn | Q85: -0.2437085297 | S85: Glen Ullinish | T85: 2.538123861 | V85: Glen Ullinish | W85: 2.614267577
B86: Necton | C86: -0.3739285515 | D86: 1.176133745 | E86: -0.06011879566 | F86: -0.1034513623 | S86: Kendoon North | T86: -5.082918375 | V86: Kendoon North | W86: -5.236159188
B87: New Deer | C87: 0.7646770951 | D87: 0.7876502267 | E87: 0.8112797335 | F87: 0.8356181255 | G87: 0.8606866693 | S87: Enoch Hill | T87: 1.849086749 | V87: Enoch Hill | W87: 1.904559352
B88: Rhigos | C88: 0.1033527776 | D88: 0.1066024386 | E88: 0.1096813082 | F88: 0.1129625819 | G88: 0.116338621 | S88: Glenmuckloch | T88: 3.722581663 | V88: Glenmuckloch | W88: 3.834259113
B89: Rocksavage | C89: 0.01797878627 | D89: 0.01852166016 | E89: 0.01907442927 | F89: -0.01964655279 | G89: -0.02023587055 | S89: Stornaway | T89: 75.57684662 | V89: Stornaway | W89: 77.84415202
B90: Saltend | C90: 0.01761935899 | D90: 0.01814977402 | E90: 0.01869319785 | F90: 0.01925399448 | G90: -0.0023455942 | S90: Druim Leathann | T90: 78.79180351 | V90: Druim Leathann | W90: 81.15555762
B91: South Humber Bank | C91: 0.4200231285 | D91: 0.4326542221 | E91: 0.8977386653 | F91: -0.2063293462 | G91: -0.2125157654 | S91: Muaithebheal | T91: 80.99151086 | V91: Muaithebheal | W91: 83.42125618
B92: Spalding | C92: 0.2861960833 | D92: 0.2953219912 | E92: 0.3039446283 | F92: 0.3314513409 | G92: 0.341774972 | S92: Costa Head | T92: 76.27312493 | V92: Costa Head | W92: 78.50150064
B93: Stornaway | F93: 75.57684662 | G93: 77.84415202 | S93: Hesta Head | T93: 85.94102702 | V93: Hesta Head | W93: 88.4594398
B94: Strathbrora | C94: 0.1038448301 | D94: 0.1220279702 | E94: 0.1132290697 | F94: 0.1083870084 | G94: 0.1139497129 | S94: Beaw Field | T94: 97.91861542 | V94: Beaw Field | W94: 100.6551494
B95: Strathy Wind | C95: 1.900201011 | D95: 1.969804538 | E95: 2.018480621 | F95: 2.069412874 | G95: 2.133585519 | S95: Elchies | T95: 1.771373046 | V95: Elchies | W95: 1.824514237
B96: Stronelairg | C96: 1.086988214 | D96: 1.122221428 | E96: 1.154008109 | F96: 1.177715386 | G96: 1.212867254 | S96: Cairnford | T96: 0.2456763364 | V96: Cairnford | W96: 0.2530466265
B97: Wester Dod | C97: 0.4855450786 | D97: 0.5014786458 | E97: 0.3666180449 | F97: 0.3776165862 | G97: 0.3889450838 | S97: Glen Kyllachy | T97: 0.5076247722
B98: Whitelee | C98: 0.1077768985 | D98: 0.1110148311 | E98: 0.114345276 | F98: 0.1177756343 | G98: 0.1213089033
B99: Whitelee Extension | C99: 0.2996197779 | D99: 0.3086212305 | E99: 0.3178798674 | F99: 0.3274162634 | G99: 0.3372387513
B100: Willow | F100: 1.692082574 | G100: 1.742845051

Sheet TX
A1: Table X - CMP203: Circuits subject to one-off charges | F1: Return to Index
A3: Node 1 | B3: Node 2 | C3: Actual Parameters | D3: Amendment in Transport Model | E3: Generator
A4: Dyce 132kV | B4: Aberdeen Bay 132kV | C4: 9.5km of Cable | D4: 9.5km of OHL | E4: Aberdeen Bay
A5: Crystal Rig 132kV | B5: Wester Dod 132kV | C5: 3.9km of Cable | D5: 3.9km of OHL | E5: Aikengall II
A6: Wishaw 132kV | B6: Blacklaw 132kV | C6: 11.46km of Cable | D6: 11.46km of OHL | E6: Blacklaw
A7: Farigaig 132kV | B7: Corriegarth 132kV | C7: 4km Cable | D7: 4km OHL | E7: Corriegarth
A8: Elvanfoot 275kV | B8: Clyde North 275kV | C8: 6.2km of Cable | D8: 6.2km of OHL | E8: Clyde North
A9: Elvanfoot 275kV | B9: Clyde South 275kV | C9: 7.17km of Cable | D9: 7.17km of OHL | E9: Clyde South
A10: Farigaig 132kV | B10: Dunmaglass 132kV | C10: 4km Cable | D10: 4km OHL | E10: Dunmaglass
A11: Coalburn 132kV | B11: Galawhistle 132kV | C11: 9.7km cable | D11: 9.7km OHL | E11: Galawhistle II
A12: Moffat 132kV | B12: Harestanes 132kV | C12: 15.33km cable | D12: 15.33km OHL | E12: Harestanes
A13: Coalburn 132kV | B13: Kype Muir 132kV | C13: 17km cable | D13: 17km OHL | E13: Kype Muir
A14: Coalburn 132kV | B14: Middle Muir 132kV | C14: 13km cable | D14: 13km OHL | E14: Middle Muir
A15: Melgarve 132kV | B15: Stronelairg 132kV | C15: 10km cable | D15: 10km OHL | E15: Stronelairg
A16: East Kilbride South 275kV | B16: Whitelee 275kV | C16: 6km of Cable | D16: 6km of OHL | E16: Whitelee
A17: East Kilbride South 275kV | B17: Whitelee Extension 275kV | C17: 16.68km of Cable | D17: 16.68km of OHL | E17: Whitelee Extension

Sheet TY
A1: Table Y – Offshore local tariffs for 2020/21 | H1: Return to Index
B4: Offshore Generator | C4: Tariff Component (£/kW)
C5: Substation | D5: Circuit | E5: ETUoS
B6: Barrow | C6: 8.216175 | D6: 42.987017 | E6: 1.067427
B7: Burbo Bank | C7: 10.645155 | D7: 20.381596 | E7: 0
B8: Dudgeon | C8: 15.420477 | D8: 24.044705 | E8: 0
B9: Greater Gabbard | C9: 15.40436141 | D9: 35.397706 | E9: 0
B10: Gunfleet | C10: 17.781578 | D10: 16.324881 | E10: 3.051215
B11: Gwynt Y Mor | C11: 18.76004682 | D11: 18.480965 | E11: 0
B12: Humber Gateway | C12: 14.928709 | D12: 33.684142 | E12: 0
B13: Lincs | C13: 15.354669 | D13: 60.117037 | E13: 0
B14: London Array | C14: 10.452326 | D14: 35.600039 | E14: 0
B15: Ormonde | C15: 25.399999 | D15: 47.31782 | E15: 0.377083
B16: Robin Rigg | C16: -0.469866 | D16: 31.124583 | E16: 9.646941
B17: Robin Rigg West | C17: -0.469866 | D17: 31.124583 | E17: 9.646941
B18: Sheringham Shoal | C18: 24.540802 | D18: 28.780611 | E18: 0.625605
B19: Thanet | C19: 18.688712 | D19: 34.823751 | E19: 0.838331
B20: Walney 1 | C20: 21.921404 | D20: 43.656418 | E20: 0
B21: Walney 2 | C21: 21.761975 | D21: 44.041034 | E21: 0
B22: West of Duddon Sands | C22: 8.458871021 | D22: 41.739286 | E22: 0
B23: Westermost Rough | C23: 17.81153957 | D23: 30.129503 | E23: 0

Sheet TZ
A1: Table Z - Generation contracted, modelled and chargeable TEC | H1: Return to Index
B4: Best View | C4: =TB!C4 -> 2020/21 | D4: =TB!D4 -> 2021/22 | E4: =TB!E4 -> 2022/23 | F4: =TB!F4 -> 2023/24 | G4: =TB!G4 -> 2024/25
B5: Contracted TEC (GW) | C5: 90.82404 | D5: 98.03825 | E5: 119.36915 | F5: 133.79945 | G5: 145.28495
B6: Modelled TEC (GW) | C6: 82.58504 | D6: 81.52274 | E6: 86.60894 | F6: 96.80644 | G6: 98.60944
B7: Chargeable TEC (GW) | C7: 74.11004 | D7: 73.13774 | E7: 77.88394 | F7: 88.08144 | G7: 88.38444

Sheet TAA
A1: Table AA – Interconnectors | H1: Return to Index
B4: Interconnector | C4: Node | D4: Zone | E4: =TB!C4 -> 2020/21 | F4: =TB!D4 -> 2021/22 | G4: =TB!E4 -> 2022/23 | H4: =TB!F4 -> 2023/24 | I4: =TB!G4 -> 2024/25
E5: (MW) | F5: (MW) | G5: (MW) | H5: (MW) | I5: (MW)
B6: =THHH!B6 -> Aquind Interconnector | C6: =THHH!D6 -> LOVE40 | D6: =THHH!E6 -> 26 | E6: =THHH!F6 -> 0 | F6: =THHH!G6 -> 0 | G6: =THHH!H6 -> 2000 | H6: =THHH!I6 -> 2000 | I6: =THHH!J6 -> 2000
B7: =THHH!B7 -> Auchencrosh (interconnector CCT) | C7: =THHH!D7 -> AUCH20 | D7: =THHH!E7 -> 10 | E7: =THHH!F7 -> 250 | F7: =THHH!G7 -> 160 | G7: =THHH!H7 -> 500 | H7: =THHH!I7 -> 500 | I7: =THHH!J7 -> 500
B8: =THHH!B8 -> Britned | C8: =THHH!D8 -> GRAI40 | D8: =THHH!E8 -> 24 | E8: =THHH!F8 -> 1200 | F8: =THHH!G8 -> 1200 | G8: =THHH!H8 -> 1200 | H8: =THHH!I8 -> 1200 | I8: =THHH!J8 -> 1200
B9: =THHH!B9 -> East West Interconnector | C9: =THHH!D9 -> CONQ40 | D9: =THHH!E9 -> 16 | E9: =THHH!F9 -> 505 | F9: =THHH!G9 -> 505 | G9: =THHH!H9 -> 505 | H9: =THHH!I9 -> 505 | I9: =THHH!J9 -> 505
B10: =THHH!B10 -> ElecLink | C10: =THHH!D10 -> SELL40 | D10: =THHH!E10 -> 24 | E10: =THHH!F10 -> 1000 | F10: =THHH!G10 -> 1000 | G10: =THHH!H10 -> 1000 | H10: =THHH!I10 -> 1000 | I10: =THHH!J10 -> 1000
B11: =THHH!B11 -> EuroLink | C11: =THHH!D11 -> LEIS40 | D11: =THHH!E11 -> 18 | E11: =THHH!F11 -> 0 | F11: =THHH!G11 -> 0 | G11: =THHH!H11 -> 0 | H11: =THHH!I11 -> 0 | I11: =THHH!J11 -> 1600
B12: =THHH!B12 -> FAB Link Interconnector | C12: =THHH!D12 -> EXET40 | D12: =THHH!E12 -> 26 | E12: =THHH!F12 -> 0 | F12: =THHH!G12 -> 0 | G12: =THHH!H12 -> 0 | H12: =THHH!I12 -> 1400 | I12: =THHH!J12 -> 1400
B13: =THHH!B13 -> Greenlink | C13: =THHH!D13 -> PEMB40 | D13: =THHH!E13 -> 20 | E13: =THHH!F13 -> 0 | F13: =THHH!G13 -> 0 | G13: =THHH!H13 -> 500 | H13: =THHH!I13 -> 500 | I13: =THHH!J13 -> 500
B14: =THHH!B14 -> Gridlink Interconnector | C14: =THHH!D14 -> KINO40 | D14: =THHH!E14 -> 24 | E14: =THHH!F14 -> 0 | F14: =THHH!G14 -> 0 | G14: =THHH!H14 -> 1500 | H14: =THHH!I14 -> 1500 | I14: =THHH!J14 -> 1500
B15: =THHH!B15 -> IFA Interconnector | C15: =THHH!D15 -> SELL40 | D15: =THHH!E15 -> 24 | E15: =THHH!F15 -> 2000 | F15: =THHH!G15 -> 2000 | G15: =THHH!H15 -> 2000 | H15: =THHH!I15 -> 2000 | I15: =THHH!J15 -> 2000
B16: =THHH!B16 -> IFA2 Interconnector | C16: =THHH!D16 -> CHIL40 | D16: =THHH!E16 -> 26 | E16: =THHH!F16 -> 1100 | F16: =THHH!G16 -> 1100 | G16: =THHH!H16 -> 1100 | H16: =THHH!I16 -> 1100 | I16: =THHH!J16 -> 1100
B17: =THHH!B17 -> Nemo Link | C17: =THHH!D17 -> RICH40 | D17: =THHH!E17 -> 24 | E17: =THHH!F17 -> 1020 | F17: =THHH!G17 -> 1020 | G17: =THHH!H17 -> 1020 | H17: =THHH!I17 -> 1020 | I17: =THHH!J17 -> 1020
B18: =THHH!B18 -> NeuConnect Interconnector | C18: =THHH!D18 -> GRAI40 | D18: =THHH!E18 -> 24 | E18: =THHH!F18 -> 0 | F18: =THHH!G18 -> 0 | G18: =THHH!H18 -> 1400 | H18: =THHH!I18 -> 1400 | I18: =THHH!J18 -> 1400
B19: =THHH!B19 -> NorthConnect | C19: =THHH!D19 -> PEHE40 | D19: =THHH!E19 -> 2 | E19: =THHH!F19 -> 0 | F19: =THHH!G19 -> 0 | G19: =THHH!H19 -> 1400 | H19: =THHH!I19 -> 1400 | I19: =THHH!J19 -> 1400
B20: =THHH!B20 -> NS Link | C20: =THHH!D20 -> BLYT4A | D20: =THHH!E20 -> 13 | E20: =THHH!F20 -> 1400 | F20: =THHH!G20 -> 1400 | G20: =THHH!H20 -> 1400 | H20: =THHH!I20 -> 1400 | I20: =THHH!J20 -> 1400
B21: =THHH!B21 -> Viking Link Denmark Interconnector | C21: =THHH!D21 -> BICF4A | D21: =THHH!E21 -> 17 | E21: =THHH!F21 -> 0 | F21: =THHH!G21 -> 0 | G21: =THHH!H21 -> 1500 | H21: =THHH!I21 -> 1500 | I21: =THHH!J21 -> 1500

Sheet TBB
A1: Table BB – Expansion constant and inflation indices | H1: Return to Index
B4: £/MWkm | D4: =TB!C4 -> 2020/21 | E4: =TB!D4 -> 2021/22 | F4: =TB!E4 -> 2022/23 | G4: =TB!F4 -> 2023/24 | H4: =TB!G4 -> 2024/25
B5: Expansion Constant | D5: 14.98795216 | E5: 15.43823398 | F5: 15.901381 | G5: 16.37842243 | H5: 16.8697751
C6: 2009/10 | D6: =D4 -> 2020/21 | E6: =E4 -> 2021/22 | F6: 2022/23 | G6: 2023/24 | H6: 2024/25
B7: Inflation indices | C7: 1 | D7: 1.356 | E7: 1.397 | F7: 1.439 | G7: 1.481 | H7: 1.526

Sheet TCC
A1: Table CC - Week 24 DNO zonal demand forecast | H1: Return to Index
B4: Demand Zone | C4: =TB!C4 -> 2020/21 | D4: =TB!D4 -> 2021/22 | E4: =TB!E4 -> 2022/23 | F4: =TB!F4 -> 2023/24 | G4: =TB!G4 -> 2024/25
C5: MW | D5: MW | E5: MW | F5: MW | G5: MW
B6: 1 | C6: 362.4734783 | D6: -224.8452396 | E6: 137.1966633 | F6: 43.76914787 | G6: 86.62646967
B7: 2 | C7: 2643.981734 | D7: 2649.037388 | E7: 2568.619239 | F7: 2537.797135 | G7: 2519.273943
B8: 3 | C8: 2648.876743 | D8: 2018 | E8: 2715.172278 | F8: 2728.103589 | G8: 2739.586143
B9: 4 | C9: 3168.933488 | D9: 3103 | E9: 2940.030543 | F9: 2852.422032 | G9: 2767.88763
B10: 5 | C10: 4387.658401 | D10: 3417 | E10: 4421.029573 | F10: 4425.826658 | G10: 4423.249268
B11: 6 | C11: 2393.690698 | D11: 2217 | E11: 2641.921273 | F11: 2690.503553 | G11: 2743.475347
B12: 7 | C12: 5295.75 | D12: 5407 | E12: 5428.25 | F12: 5506.05 | G12: 5592.95
B13: 8 | C13: 4409.82 | D13: 4777 | E13: 4446.32 | F13: 4487.42 | G13: 4536.02
B14: 9 | C14: 6097.281418 | D14: 5122 | E14: 6407.472201 | F14: 6529.659118 | G14: 6648.106719
B15: 10 | C15: 1666.222402 | D15: 1371 | E15: 1685.450734 | F15: 1702.287946 | G15: 1711.022735
B16: 11 | C16: 3813.095307 | D16: 3611 | E16: 3861.496173 | F16: 3765.02345 | G16: 3800.720811
B17: 12 | C17: 5379.574916 | D17: 5444 | E17: 5736.263532 | F17: 5823.565766 | G17: 5956.669145
B18: 13 | C18: 6219.676552 | D18: 7342 | E18: 6833.161666 | F18: 6942.248928 | G18: 7023.010655
B19: 14 | C19: 2244.394532 | D19: 2030 | E19: 2178.223418 | F19: 2156.086747 | G19: 2136.648577
B20: Total | C20: =SUM(C6:C19) -> 50731.42967 | D20: =SUM(D6:D19) -> 48283.19215 | E20: =SUM(E6:E19) -> 52000.60729 | F20: =SUM(F6:F19) -> 52190.76407 | G20: =SUM(G6:G19) -> 52685.24744

Sheet TDD
A1: Table DD – Allowed revenues | H1: Return to Index
B4: £m Nominal | C4: =TB!C4 -> 2020/21 | D4: =TB!D4 -> 2021/22 | E4: =TB!E4 -> 2022/23 | F4: =TB!F4 -> 2023/24 | G4: =TB!G4 -> 2024/25
B5: National Grid Electricity Transmission
B6: Price controlled revenue | C6: ='TJJJ TKKK TLLL'!D14 -> 1782.388758 | D6: ='TJJJ TKKK TLLL'!E14 -> 1822.100269 | E6: ='TJJJ TKKK TLLL'!F14 -> 1876.789511 | F6: ='TJJJ TKKK TLLL'!G14 -> 1933.120218 | G6: ='TJJJ TKKK TLLL'!H14 -> 1991.141657
B7: Less income from connections | C7: ='TJJJ TKKK TLLL'!D15+'TJJJ TKKK TLLL'!D16 -> 31 | D7: ='TJJJ TKKK TLLL'!E15+'TJJJ TKKK TLLL'!E16 -> 30.798 | E7: ='TJJJ TKKK TLLL'!F15+'TJJJ TKKK TLLL'!F16 -> 30.798 | F7: ='TJJJ TKKK TLLL'!G15+'TJJJ TKKK TLLL'!G16 -> 30.798 | G7: ='TJJJ TKKK TLLL'!H15+'TJJJ TKKK TLLL'!H16 -> 30.798
B8: Income from TNUoS | C8: =C6-C7 -> 1751.388758 | D8: 1791.302269 | E8: 1845.991511 | F8: =F6-F7 -> 1902.322218 | G8: =G6-G7 -> 1960.343657
B10: Scottish Power Transmission
B11: Price controlled revenue | C11: ='TJJJ TKKK TLLL'!J14 -> 381.6166053 | D11: ='TJJJ TKKK TLLL'!K14 -> 397.060241 | E11: ='TJJJ TKKK TLLL'!L14 -> 376.7050196 | F11: ='TJJJ TKKK TLLL'!M14 -> 391.4883843 | G11: ='TJJJ TKKK TLLL'!N14 -> 391.52652
B12: Less income from connections | C12: ='TJJJ TKKK TLLL'!J17 -> 12.87663392 | D12: ='TJJJ TKKK TLLL'!K17 -> 12.87663392 | E12: ='TJJJ TKKK TLLL'!L17 -> 12.87663392 | F12: ='TJJJ TKKK TLLL'!M17 -> 12.87663392 | G12: ='TJJJ TKKK TLLL'!N17 -> 12.87663392
B13: Income from TNUoS | C13: =C11-C12 -> 368.7399714 | D13: =D11-D12 -> 384.1836071 | E13: 363.8283856 | F13: 378.6117504 | G13: 378.6498861
B15: SHE Transmission
B16: Price controlled revenue | C16: ='TJJJ TKKK TLLL'!O14 -> 361.6402 | D16: ='TJJJ TKKK TLLL'!P14 -> 375.3828647 | E16: ='TJJJ TKKK TLLL'!Q14 -> 386.2803693 | F16: ='TJJJ TKKK TLLL'!R14 -> 396.5529004 | G16: =F16 -> 396.5529004
B17: Less income from connections | C17: ='TJJJ TKKK TLLL'!O17 -> 3.4 | D17: ='TJJJ TKKK TLLL'!P17 -> 3.4 | E17: ='TJJJ TKKK TLLL'!Q17 -> 3.4 | F17: ='TJJJ TKKK TLLL'!R17 -> 3.4 | G17: =F17 -> 3.4
B18: Income from TNUoS | C18: =C16-C17 -> 358.2402 | D18: =D16-D17 -> 371.9828647 | E18: 382.8803693 | F18: 393.1529004 | G18: 393.1529004
B20: National Grid Electricity System Operator
B21: Pass-through from TNUoS | C21: ='TJJJ TKKK TLLL'!I18 -> 41.44455048 | D21: =C21 -> 41.44455048 | E21: =D21 -> 41.44455048 | F21: 41.44455048 | G21: 41.44455048
B23: Offshore (+ Interconnector from y2019/20) | C23: ='TJJJ TKKK TLLL'!D19 -> 431.0063053 | D23: ='TJJJ TKKK TLLL'!E19 -> 494.2992332 | E23: ='TJJJ TKKK TLLL'!F19 -> 543.2256492 | F23: ='TJJJ TKKK TLLL'!G19 -> 608.6255361 | G23: ='TJJJ TKKK TLLL'!H19 -> 685.5929705
B25: Total to Collect from TNUoS | C25: =C8+C13+C18+C23+C24+C21 -> 2950.819785 | D25: =D8+D13+D18+D23+D24+D21 -> 3083.212525 | E25: =E8+E13+E18+E23+E24+E21 -> 3177.370466 | F25: =F8+F13+F18+F23+F24+F21 -> 3324.156955 | G25: =G8+G13+G18+G23+G24+G21 -> 3459.183964

Sheet TEE
A1: Table EE - Error margin calculation | H1: Return to Index
B4: Calculation for | C4: 2018/19 | F4: Calculation for | G4: 2019/20 | J4: Calculation for | K4: 2020/21
C5: Revenue inputs | E5: Generation output variance | G5: Revenue inputs | I5: Generation output variance | K5: Revenue inputs | M5: Generation output variance
B6: Data from year: | C6: Revenue variance | D6: Adjusted variance | F6: Data from year: | G6: Revenue variance | H6: Adjusted variance | J6: Data from year: | K6: Revenue variance | L6: Adjusted variance
B7: 2010/11 | C7: -0.03174979734 | D7: =C7-$C$17 -> 0.04723206971 | E7: -0.02785474229
B8: 2011/12 | C8: -0.1480306472 | D8: =C8-$C$17 -> -0.06904878014 | E8: -0.006132121441 | F8: 2011/12 | G8: -0.1480306472 | H8: =G8-$G$17 -> -0.06617200748 | I8: -0.006132121441
B9: 2012/13 | C9: -0.08069826807 | D9: -0.001716401028 | E9: 0 | F9: 2012/13 | G9: -0.08069826807 | H9: =G9-$G$17 -> 0.001160371626 | I9: 0 | J9: 2012/13 | K9: -0.08069826807 | L9: =K9-$K$17 -> -0.009868296287 | M9: 0
B10: 2013/14 | C10: -0.09487561115 | D10: -0.0158937441 | E10: -0.1075129534 | F10: 2013/14 | G10: -0.09487561115 | H10: -0.01301697145 | I10: -0.1075129534 | J10: 2013/14 | K10: -0.09487561115 | L10: =K10-$K$17 -> -0.02404563936 | M10: -0.1075129534
B11: 2014/15 | C11: -0.05989186178 | D11: 0.01909000526 | E11: -0.07373595506 | F11: 2014/15 | G11: -0.05989186178 | H11: 0.02196677792 | I11: -0.07373595506 | J11: 2014/15 | K11: -0.05989186178 | L11: 0.01093811001 | M11: -0.07373595506
B12: 2015/16 | C12: -0.08687551639 | D12: -0.00789364934 | E12: -0.122422115 | F12: 2015/16 | G12: -0.08687551639 | H12: -0.005016876686 | I12: -0.122422115 | J12: 2015/16 | K12: -0.08687551639 | L12: -0.0160455446 | M12: -0.122422115
B13: 2016/17 | C13: -0.05075136741 | D13: 0.02823049964 | E13: -0.07888897263 | F13: 2016/17 | G13: -0.05075136741 | H13: 0.03110727229 | I13: -0.07888897263 | J13: 2016/17 | K13: -0.05075136741 | L13: 0.02007860438 | M13: -0.07888897263
F14: 2017/18 | G14: -0.05188720592 | H14: 0.02997143378 | I14: -0.01481214282 | J14: 2017/18 | K14: -0.05188720592 | L14: 0.01894276586 | M14: -0.01481214282
J15: 2018/19 | K15: ? | L15: ? | M15: ?
B17: Systemic error: | C17: =AVERAGE(C7:C13) -> -0.07898186705 | F17: Systemic error: | G17: =AVERAGE(G8:G14) -> -0.0818586397 | J17: Systemic error: | K17: =AVERAGE(K9:K15) -> -0.07082997179
B18: Adjusted error: | D18: =MAX(-MIN(D7:D13),MAX(D7:D13)) -> 0.06904878014 | E18: =MAX(-MIN(E7:E13),MAX(E7:E13)) -> 0.122422115 | F18: Adjusted error: | H18: =MAX(-MIN(H8:H14),MAX(H8:H14)) -> 0.06617200748 | I18: =MAX(-MIN(I8:I14),MAX(I8:I14)) -> 0.122422115 | J18: Adjusted error: | L18: =MAX(-MIN(L9:L15),MAX(L9:L15)) -> 0.02404563936 | M18: =MAX(-MIN(M9:M15),MAX(M9:M15)) -> 0.122422115
B19: Error margin = | E19: =ROUNDDOWN((1+D18)/(1-E18)-1,2) -> 0.21 | F19: Error margin = | I19: =ROUNDDOWN((1+H18)/(1-I18)-1,2) -> 0.21 | J19: Error margin = | M19: =ROUNDDOWN((1+L18)/(1-M18)-1,2) -> 0.16
B21: Adjusted variance = the revenue variance - systemic error
B22: Systemic error = the average of all the values in the series
B23: Adjusted error = the average of the values in the series

Sheet TFF
A1: Table FF – Generation and demand revenue proportions | H1: Return to Index
D4: =TB!C4 -> 2020/21 | E4: =TB!D4 -> 2021/22 | F4: =TB!E4 -> 2022/23 | G4: =TB!F4 -> 2023/24 | H4: =TB!G4 -> 2024/25
B5: CAPEC | C5: Limit on generation tariff (€/MWh) | D5: 2.5 | E5: 2.5 | F5: 2.5 | G5: 2.5 | H5: 2.5
B6: y | C6: Error Margin | D6: 0.16 | E6: 0.16 | F6: 0.16 | G6: 0.16 | H6: 0.16
B7: ER | C7: Exchange Rate (€/£) | D7: 1.119217191 | E7: 1.105909696 | F7: 1.09381358 | G7: 1.083475699 | H7: 1.083475699
B8: MAR | C8: Total Revenue (£m) | D8: 2950.819785 | E8: 3083.212525 | F8: 3177.370466 | G8: 3324.156955 | H8: 3459.183964
B9: GO | C9: Generation Output (TWh) | D9: 221.2222015 | E9: 213.6479641 | F9: 206.9787471 | G9: 201.2833748 | H9: 200.6404483
B10: G | C10: % of revenue from generation | D10: =D5*(1-D6)*D9/D7/D8 -> 0.1406665855 | E10: =E5*(1-E6)*E9/E7/E8 -> 0.1315815283 | F10: =F5*(1-F6)*F9/F7/F8 -> 0.1250644516 | G10: =G5*(1-G6)*G9/G7/G8 -> 0.1173617302 | H10: =H5*(1-H6)*H9/H7/H8 -> 0.1124203544
B11: D | C11: % of revenue from demand | D11: =1-D10 -> 0.8593334145 | E11: =1-E10 -> 0.8684184717 | F11: =1-F10 -> 0.8749355484 | G11: =1-G10 -> 0.8826382698 | H11: =1-H10 -> 0.8875796456
B12: G.MAR | C12: Revenue recovered from generation (£m) | D12: =D8*D10 -> 415.0817437 | E12: =E8*E10 -> 405.6938161 | F12: =F8*F10 -> 397.3760948 | G12: =G8*G10 -> 390.1288119 | H12: =H8*H10 -> 388.8826874
B13: D.MAR | C13: Revenue recovered from demand (£m) | D13: =D8*D11 -> 2535.738042 | E13: =E8*E11 -> 2677.518709 | F13: =F8*F11 -> 2779.994371 | G13: =G8*G11 -> 2934.028144 | H13: =H8*H11 -> 3070.301277
B14: Breakdown of generation revenue
C15: Revenue from the Peak element | D15: 142.7739516 | E15: 142.7413642 | F15: 146.0632779 | G15: 145.1134482 | H15: 138.5532298
C16: Revenue from the Year Round Shared element | D16: 73.54938072 | E16: 98.10624848 | F16: 92.5192662 | G16: 132.3856261 | H16: 144.8422908
C17: Revenue from the Year Round Not Shared element | D17: 115.385054 | E17: 141.3303168 | F17: 203.7180221 | G17: 291.5714676 | H17: 301.0510555
C18: Revenue from Onshore Local Circuit tariffs | D18: 18.11937917 | E18: 19.98248875 | F18: 23.62191019 | G18: 64.00072247 | H18: 111.6439108
C19: Revenue from Onshore Local Substation tariffs | D19: 19.39298487 | E19: 19.70958187 | F19: 20.89817119 | G19: 25.1415089 | H19: 25.03351069
C20: Revenue from Offshore Local tariffs | D20: 339.1161936 | E20: 390.2925597 | F20: 429.3290202 | G20: 485.7127025 | H20: 543.8326892
C21: Revenue from the Residual element | D21: -293.2552002 | E21: -406.4687437 | F21: -518.7735731 | G21: -753.7966637 | H21: -876.0739994
B22: G.MAR | C22: Revenue recovered from generation (£m) | D22: =SUM(D15:D21) -> 415.0817437 | E22: =SUM(E15:E21) -> 405.6938161 | F22: =SUM(F15:F21) -> 397.3760948 | G22: 390.1288119 | H22: 388.8826874

Sheet TGG
A1: Table GG – Equivalent €/MWh generation tariffs in each year | H1: Return to Index
B4: Equivalent €/MWh rate | D4: =TB!C4 -> 2020/21 | E4: =TB!D4 -> 2021/22 | F4: =TB!E4 -> 2022/23 | G4: =TB!F4 -> 2023/24 | H4: =TB!G4 -> 2024/25
B5: Ex post forecast | C5: €/MWh | D5: 0.3843282864 | E5: 0.07972179298 | F5: -0.1688605437 | G5: -0.5145125508 | H5: -0.8367433531
B11: `

Sheet THH
A1: Table HH – Demand charging base and system peak | H1: Return to Index
C4: =TB!C4 -> 2020/21 | D4: =TB!D4 -> 2021/22 | E4: =TB!E4 -> 2022/23 | F4: =TB!F4 -> 2023/24 | G4: =TB!G4 -> 2024/25
B5: Average System Demand at Triad (GW) | C5: 50.24716226 | D5: 50.02789207 | E5: 50.12628949 | F5: 50.2424631 | G5: 50.35687957
B6: Average HH Metered Demand at Triad (GW) | C6: 19.16445348 | D6: 19.04617269 | E6: 19.09041918 | F6: 19.12641637 | G6: 19.14853954
B7: NHH Annual Energy between 4pm and 7pm (TWh) | C7: 24.1250767 | D7: 23.97071993 | E7: 23.95672166 | F7: 23.90779755 | G7: 23.8585948
B11: `

Sheet TII
A1: Table II - Residual Calculation | H1: Return to Index
B3: Component | C3: =TB!C4 -> 2020/21 | D3: =TB!D4 -> 2021/22 | E3: =TB!E4 -> 2022/23 | F3: =TB!F4 -> 2023/24 | G3: =TB!G4 -> 2024/25
A4: G | B4: Proportion of revenue recovered from generation (%) | C4: 0.1406665855 | D4: 0.1315815283 | E4: 0.1250644516 | F4: 0.1173617302 | G4: 0.1124203544
A5: D | B5: Proportion of revenue recovered from demand (%) | C5: 0.8593334145 | D5: 0.8684184717 | E5: 0.8749355484 | F5: 0.8826382698 | G5: 0.8875796456
A6: R | B6: Total TNUoS revenue (£m) | C6: 2950.819785 | D6: 3083.212525 | E6: 3177.370466 | F6: 3324.156955 | G6: 3459.183964
A7: Generation Residual
A8: RG | B8: Generator residual tariff (£/kW) | C8: =((C6*C4)-C9-C10-C11-C12)/C13 -> -3.957023909 | D8: =((D6*D4)-D9-D10-D11-D12)/D13 -> -5.557578669 | E8: =((E6*E4)-E9-E10-E11-E12)/E13 -> -6.660854254 | F8: =((F6*F4)-F9-F10-F11-F12)/F13 -> -8.557951184 | G8: =((G6*G4)-G9-G10-G11-G12)/G13 -> -9.912084066
A9: ZG | B9: Revenue recovered from the locational element of generator tariffs (£m) | C9: 331.7083863 | D9: 382.1779295 | E9: 442.3005663 | F9: 569.0705418 | G9: 584.4465761
A10: O | B10: Revenue recovered from offshore local tariffs (£m) | C10: 339.1161936 | D10: 390.2925597 | E10: 429.3290202 | F10: 485.7127025 | G10: 543.8326892
A11: LG | B11: Revenue recovered from onshore local substation tariffs (£m) | C11: 19.39298487 | D11: 19.70958187 | E11: 20.89817119 | F11: 25.1415089 | G11: 25.03351069
A12: SG | B12: Revenue recovered from onshore local circuit tariffs (£m) | C12: 18.11937917 | D12: 19.98248875 | E12: 23.62191019 | F12: 64.00072247 | G12: 111.6439108
A13: BG | B13: Generator charging base (GW) | C13: 74.11004 | D13: 73.13774 | E13: 77.88394 | F13: 88.08144 | G13: 88.38444
A14: Gross Demand Residual
A15: RD | B15: Demand residual tariff (£/kW) | C15: =(C5*C6-C16+C17)/C18 -> 52.17858806 | D15: =(D5*D6-D16+D17)/D18 -> 56.0860189 | E15: =(E5*E6-E16+E17)/E18 -> 57.61219881 | F15: =(F5*F6-F16+F17)/F18 -> 60.97136982 | G15: =(G5*G6-G16+G17)/G18 -> 63.52586972
A16: ZD | B16: Revenue recovered from the locational element of demand tariffs (£m) | C16: -68.18313957 | D16: -112.5165125 | E16: -90.02832884 | F16: -109.9692291 | G16: -109.2028063
A17: EE | B17: Amount to be paid to Embedded Export Tariffs (£m) | C17: 17.9047997 | D17: 15.83007939 | E17: 17.86305552 | F17: 19.35442582 | G17: 19.46048739
A18: BD | B18: Demand Gross charging base (GW) | C18: 50.24716226 | D18: 50.02789207 | E18: 50.12628949 | F18: 50.2424631 | G18: 50.35687957

Sheet TJJ
A1: Table JJ - Small Generator Discount calculation | H1: Return to Index
B4: Small Generator Discount calculation
B5: Generator Residual (£/kW) | C5: G | D5: -3.957023909
B6: Demand Residual (£/kW) | C6: D | D6: 52.17858806
B7: Small Generator Discount (£/kW) | C7: T = (G + D)/4 | D7: 12.055391
B8: Forecast Small Generator Volume (kW) | C8: V | D8: 3089350
B9: 2020/21 SGD cost (£) | C9: V x T | D9: =+D8*D7 -> 37243322.19
B10: Prior year reconcilation (£) | C10: R | D10: 0
B11: Total SGD Cost (£) | C11: C = (V x T) + R | D11: =D9-D10 -> 37243322.19
B12: Total System Triad Demand (kW) | C12: TD | D12: 50247162.26
B13: Total HH Triad Demand (kW) | C13: HHD | D13: 19164453.48
B14: Total NHH Consumption (kWh) | C14: NHHD | D14: 2.41250767e+10
B15: Increase in HH Demand tariff (£/kW) | C15: HHT = C/TD | D15: =+D11/D12 -> 0.741202498
B16: Total Cost to HH Customers (£) | C16: HHC = HHT * HHD | D16: =+D15*D13 -> 14204740.79
B17: Increase in NHH Demand tariff (p/kWh) | C17: NHHT = (C - HHC)/NHHD | D17: =(100*(+D11-(+D15*D13))/(D14)) -> 0.09549640681
B18: Total Cost to NHH Customers (£) | C18: NHHC = NHHT * NHHD | D18: =(+D17*D14)/100 -> 23038581.39

Sheet TKK
A1: Table KK – Effect of changing parameters on tariffs for RIIO-T2 | H1: Return to Index
B4: Component | C4: Assumption for this five-year view | D4: Qualitative discussion of impact of changing this parameter
B5: Expansion Constant | C5: The expansion constant continues to increase by RPI | D5: The expansion constant has the effect of “stretching” the network. Increasing the expansion constants make positive tariffs more positive, and negative tariffs more negative. The effect is the same for all locations.
B6: Expansion Factors | C6: The expansion factors are unchanged | D6: The expansion factors are the relative cost of different types of circuits. If some are to increase by more than others this will affect tariffs dominated by those particular types of circuits.
D7: Significant data is required from TOs to recalculate these.
B8: Security Factor | C8: The security factor remains 1.8 | D8: As the security factor is applied to zonal tariffs, and local tariffs with redundancy; if it is increased, locational and local tariffs will increase. If it is decreased, locational and local tariffs will reduce.
B9: Offshore tariffs | C9: Offshore tariffs increase by RPI | D9: Offshore tariffs will be recalculated based on latest OFTO revenue forecasts for RIIO-T2, and adjustments for any income adjusting events in RIIO-T1 (see 1).
D10: The total revenue from generators will not change, but the proportion that is recovered from offshore generators may change. If offshore generators pay more, then the generator residual will become more negative, and vice-versa.
B11: Avoid GSP Infrastructure Credit | C11: The AGIC increases by RPI | D11: It will be recalculated based on up to 20 schemes from the RIIO-T2 price-control period.
D12: If it increases, this increases the payment to embedded generators, and therefore the total cost of the embedded export. This leads to an increase in the demand residual and the average HH and NHH tariff.
B13: Generation Zones | C13: The number of zones remains 27 | D13: There is uncertainty around generation zones, as Ofgem’s Significant Code Review will look at adapting the current methodology for embedded generators. The current methodology as written will likely create many more generation zones, with several zones containing only one generator, and arguably less certainty and stability for generators. This is a significant piece of work to undertake. It was last discussed in depth at TCMF in May 2016.[1] The analysis suggested at that time there might be over 40 generation zones in the future under the current methodology.
B16: [1] https://www.nationalgrideso.com/document/48481/download

Sheet TLL
A1: Table LL – The effect of additional revenue on TNUoS tariffs | H1: Return to Index
D4: =TB!C4 -> 2020/21 | E4: =TB!D4 -> 2021/22 | F4: =TB!E4 -> 2022/23 | G4: =TB!F4 -> 2023/24 | H4: =TB!G4 -> 2024/25
B5: Additional Revenue | C5: £m | D5: 100 | E5: 100 | F5: 100 | G5: 100 | H5: 100
B6: Effect on Tariffs
B7: Generation Residual | C7: £/kW | D7: No changes due to €2.50/MWh cap
B8: Demand Residual | C8: £/kW | D8: 54.1687502 | E8: 58.08490384 | F8: 59.60715996 | G8: 62.9617181 | H8: 65.51169571
C9: Change | D9: 1.990162141 | E9: 1.998884939 | F9: 1.994961148 | G9: 1.99034828 | H9: 1.985825986
B10: Change to NHH | C10: p/kWh | D10: 0.2687861856 | E10: 0.2708605326 | F10: 0.2709377271 | G10: 0.2715318814 | H10: 0.2722418152

Sheet TMM
A1: Table MM – The effect of increasing the G/D split error margin to 21% | H1: Return to Index
B4: a. Error margin | D4: =TB!C4 -> 2020/21 | E4: =TB!D4 -> 2021/22 | F4: =TB!E4 -> 2022/23 | G4: =TB!F4 -> 2023/24 | H4: =TB!G4 -> 2024/25
B5: Change to Generator Revenue | C5: £m | D5: -24.70724665 | E5: -24.14844144 | F5: -23.65333897 | G5: -23.22195309 | H5: -23.14777901
B6: Effect on Tariffs
B7: Generation Residual | C7: £/kW | D7: -4.290409867 | E7: -5.887756241 | F7: -6.96455408 | G7: -8.821593026 | H7: -10.17398287
C8: Change | D8: -0.3333859575 | E8: -0.3301775723 | F8: -0.3036998253 | G8: -0.263641842 | H8: -0.2618988027
B9: Demand Residual | C9: £/kW | D9: 52.67030233 | E9: 56.56871846 | F9: 58.08407373 | G9: 61.43356757 | H9: 63.98554433
C10: Change | D10: 0.4917142688 | E10: 0.4826995589 | F10: 0.4718749226 | G10: 0.4621977438 | H10: 0.4596746107
B11: Change to NHH | C11: p/kWh | D11: 0.06640966584 | E11: 0.06540859708 | F11: 0.06408581901 | G11: 0.06305500612 | H11: 0.06301793375

Sheet TNN
A1: Table NN – The effect of increasing the G/D split £:€ exchange rate | H1: Return to Index
B4: b. Exchange Rate | D4: =TB!C4 -> 2020/21 | E4: =TB!D4 -> 2021/22 | F4: =TB!E4 -> 2022/23 | G4: =TB!F4 -> 2023/24 | H4: =TB!G4 -> 2024/25
B5: Change to Generator Revenue | C5: £m | D5: -62.92849223 | E5: -62.13198623 | F5: -61.42710214 | G5: -60.79255138 | H5: -60.5983717
B6: Effect on Tariffs
B7: Generation Residual | C7: £/kW | D7: -4.806146272 | E7: -6.407098851 | F7: -7.449554751 | G7: -9.248136896 | H7: -10.59770669
C8: Change | D8: -0.8491223622 | E8: -0.8495201825 | F8: -0.7887004964 | G8: -0.690185712 | H8: -0.6856226243
B9: Demand Residual | C9: £/kW | D9: 53.43096709 | E9: 57.32796582 | F9: 58.83764563 | G9: 62.18135332 | H9: 64.72924793
C10: Change | D10: 1.252379028 | E10: 1.241946915 | F10: 1.225446822 | G10: 1.209983501 | H10: 1.203378212
B11: Change to NHH | C11: p/kWh | D11: 0.1691430939 | E11: 0.1682910288 | F11: 0.1664291944 | G11: 0.1650711585 | H11: 0.1649741071

Sheet TOO
A1: Table TOO – The effect on the G/D split of reducing the chargeable generation volume | H1: Return to Index
B4: c. Charging volume | D4: =TB!C4 -> 2020/21 | E4: =TB!D4 -> 2021/22 | F4: =TB!E4 -> 2022/23 | G4: =TB!F4 -> 2023/24 | H4: =TB!G4 -> 2024/25
B5: Change to Generator Revenue | C5: £m | D5: -41.50817437 | E5: -40.56938161 | F5: -39.73760948 | G5: -39.01288119 | H5: -38.88826874
B6: Effect on Tariffs
B7: Generation Residual | C7: £/kW | D7: -4.517112318 | E7: -6.11227699 | F7: -7.171069961 | G7: -9.000869479 | H7: -10.35207405
C8: Change | D8: -0.5600884087 | E8: -0.5546983214 | F8: -0.5102157066 | G8: -0.4429182946 | H8: -0.4399899885
B9: Demand Residual | C9: £/kW | D9: 53.00466803 | E9: 56.89695416 | F9: 58.40494868 | G9: 61.74786203 | H9: 64.29812307
C10: Change | D10: 0.8260799715 | E10: 0.8109352589 | F10: 0.79274987 | G10: 0.7764922096 | H10: 0.7722533459
B11: Change to NHH | C11: p/kWh | D11: 0.1115682386 | E11: 0.1098864431 | F11: 0.1076641759 | G11: 0.1059324103 | H11: 0.1058701287

Sheet TPP
A1: Table PP - The effect on tariffs of removing offshore revenue from the G/D split calculation | H1: Return to Index
B4: d. G/D split without offshore local revenue | D4: =TB!C4 -> 2020/21 | E4: =TB!D4 -> 2021/22 | F4: =TB!E4 -> 2022/23 | G4: =TB!F4 -> 2023/24 | H4: =TB!G4 -> 2024/25
B5: Cap on generation revenue (G.MAR) | C5: (£m) | D5: =TFF!D12 -> 415.0817437 | E5: =TFF!E12 -> 405.6938161 | F5: =TFF!F12 -> 397.3760948 | G5: =TFF!G12 -> 390.1288119 | H5: =TFF!H12 -> 388.8826874
B6: Charging base | C6: (GW) | D6: =TZ!C7 -> 74.11004 | E6: =TZ!D7 -> 73.13774 | F6: =TZ!E7 -> 77.88394 | G6: =TZ!F7 -> 88.08144 | H6: =TZ!G7 -> 88.38444
B7: =TFF!C15 -> Revenue from the Peak element | C7: (£m) | D7: =TFF!D15 -> 142.7739516 | E7: =TFF!E15 -> 142.7413642 | F7: =TFF!F15 -> 146.0632779 | G7: =TFF!G15 -> 145.1134482 | H7: =TFF!H15 -> 138.5532298
B8: =TFF!C16 -> Revenue from the Year Round Shared element | C8: (£m) | D8: =TFF!D16 -> 73.54938072 | E8: =TFF!E16 -> 98.10624848 | F8: =TFF!F16 -> 92.5192662 | G8: =TFF!G16 -> 132.3856261 | H8: =TFF!H16 -> 144.8422908
B9: =TFF!C17 -> Revenue from the Year Round Not Shared element | C9: (£m) | D9: =TFF!D17 -> 115.385054 | E9: =TFF!E17 -> 141.3303168 | F9: =TFF!F17 -> 203.7180221 | G9: =TFF!G17 -> 291.5714676 | H9: =TFF!H17 -> 301.0510555
B10: =TFF!C18 -> Revenue from Onshore Local Circuit tariffs | C10: (£m) | D10: =TFF!D18 -> 18.11937917 | E10: =TFF!E18 -> 19.98248875 | F10: =TFF!F18 -> 23.62191019 | G10: =TFF!G18 -> 64.00072247 | H10: =TFF!H18 -> 111.6439108
B11: =TFF!C19 -> Revenue from Onshore Local Substation tariffs | C11: (£m) | D11: =TFF!D19 -> 19.39298487 | E11: =TFF!E19 -> 19.70958187 | F11: =TFF!F19 -> 20.89817119 | G11: =TFF!G19 -> 25.1415089 | H11: =TFF!H19 -> 25.03351069
B12: =TFF!C20 -> Revenue from Offshore Local tariffs | C12: (£m) | D12: =TFF!D20 -> 339.1161936 | E12: =TFF!E20 -> 390.2925597 | F12: =TFF!F20 -> 429.3290202 | G12: =TFF!G20 -> 485.7127025 | H12: =TFF!H20 -> 543.8326892
B13: (Revenue NOT included in the cap calculation)
B14: =TFF!C21 -> Revenue from the Residual element | C14: (£m) | D14: =D5-D15 -> 45.86099336 | E14: =E5-E15 -> -16.17618398 | F14: -89.44455288 | G14: -268.0839613 | H14: -332.2413102
B15: Revenue recovered from generation | C15: (£m) | D15: =SUM(D7:D11) -> 369.2207503 | E15: =SUM(E7:E11) -> 421.8700001 | F15: 486.8206477 | G15: 658.2127732 | H15: 721.1239976
B16: New generation residual (£/kW) | C16: (£/kW) | D16: =D14/(D6) -> 0.6188229471 | E16: =E14/(E6) -> -0.2211742389 | F16: -1.148433848 | G16: -3.043591945 | H16: -3.759047523
B17: Increase in generation residual | C17: (£/kW) | D17: =D16-TII!C8 -> 4.575846857 | E17: =E16-TII!D8 -> 5.33640443 | F17: =F16-TII!E8 -> 5.512420407 | G17: =G16-TII!F8 -> 5.514359239 | H17: =H16-TII!G8 -> 6.153036543
B18: Impact on demand tariffs
B19: New HH demand residual | C19: (£/kW) | D19: =((TII!C5*TII!C6-TII!C16+TII!C17)-D12)/TII!C18 -> 45.42962596 | E19: =((TII!D5*TII!D6-TII!D16+TII!D17)-E12)/TII!D18 -> 48.28451971 | F19: =((TII!E5*TII!E6-TII!E16+TII!E17)-F12)/TII!E18 -> 49.04725166 | G19: =((TII!F5*TII!F6-TII!F16+TII!F17)-G12)/TII!F18 -> 51.30399541 | H19: =((TII!G5*TII!G6-TII!G16+TII!G17)-H12)/TII!G18 -> 52.72629886
B20: Reduction in HH residual | C20: (£/kW) | D20: =D19-TII!C15 -> -6.748962097 | E20: =E19-TII!D15 -> -7.801499195 | F20: =F19-TII!E15 -> -8.564947148 | G20: =G19-TII!F15 -> -9.667374418 | H20: =H19-TII!G15 -> -10.79957086
B21: Revised revenue from demand | C21: (£m) | D21: =(TII!C6*TII!C5)-D12 -> 2196.621848 | E21: =(TII!D6*TII!D5)-E12 -> 2287.226149 | F21: =(TII!E6*TII!E5)-F12 -> 2350.665351 | G21: =(TII!F6*TII!F5)-G12 -> 2448.315441 | H21: =(TII!G6*TII!G5)-H12 -> 2526.468588
B22: Flat rate NHH 'residual' (current) | C22: p/kWh | D22: =(TII!C6*TII!C5)*(1-THH!C6/THH!C5)/THH!C7/10 -> 6.50194068 | E22: =(TII!D6*TII!D5)*(1-THH!D6/THH!D5)/THH!D7/10 -> 6.917429602 | F22: =(TII!E6*TII!E5)*(1-THH!E6/THH!E5)/THH!E7/10 -> 7.184803583 | G22: =(TII!F6*TII!F5)*(1-THH!F6/THH!F5)/THH!F7/10 -> 7.600430611 | H22: =(TII!G6*TII!G5)*(1-THH!G6/THH!G5)/THH!G7/10 -> 7.975317661
B23: Flat rate NHH 'residual' (with update) | C23: p/kWh | D23: =(D21-D19*THH!C6)/THH!C7/10 -> 5.496305404 | E23: =(E21-E19*THH!D6)/THH!D7/10 -> 5.705255629 | F23: =(F21-F19*THH!E6)/THH!E7/10 -> 5.903699083 | G23: =(G21-G19*THH!F6)/THH!F7/10 -> 6.13629867 | H23: =(H21-H19*THH!G6)/THH!G7/10 -> 6.357612349
B24: Reduction in NHH tariff | C24: p/kWh | D24: =D23-D22 -> -1.005635276 | E24: =E23-E22 -> -1.212173973 | F24: -1.281104499 | G24: -1.464131941 | H24: -1.617705313

Sheet TQQ
A1: Table QQ – The effect of reducing chargeable demand volumes by 1GW | H1: Return to Index
D4: =TB!C4 -> 2020/21 | E4: =TB!D4 -> 2021/22 | F4: =TB!E4 -> 2022/23 | G4: =TB!F4 -> 2023/24 | H4: =TB!G4 -> 2024/25
B5: System Gross Triad Demand (-1GW) | C5: GW | D5: 49.24716226 | E5: 49.02789207 | F5: 49.12628949 | G5: 49.2424631 | H5: 49.35687957
B6: HH Gross Triad Demand (-1GW) | C6: GW | D6: 6.091123507 | E6: 5.819954717 | F6: 5.730159878 | G6: 5.710905947 | H6: 5.690932425
B7: Embedded Export Volume | C7: GW | D7: 7.091123507 | E7: 6.819954717 | F7: 6.730159878 | G7: 6.710905947 | H7: 6.690932425
B8: NHH Demand | C8: TWh | D8: 24.1250767 | E8: 23.97071993 | F8: 23.95672166 | G8: 23.90779755 | H8: 23.8585948
B9: Demand Residual | C9: £/kW | D9: 53.23811283 | E9: 57.22998036 | F9: 58.78493543 | G9: 62.20955667 | H9: 64.81294196
C10: Change | D10: 1.059524766 | E10: 1.143961458 | F10: 1.172736622 | G10: 1.238186841 | H10: 1.287072244
B11: Change to NHH | C11: p/kWh | D11: 0.1895326279 | E11: 0.2062024635 | F11: 0.212434035 | G11: 0.2254502997 | H11: 0.2355596758

Sheet TRR
A1: Table RR – The effect of reducing NHH demand by 10% | H1: Return to Index
D4: =TB!C4 -> 2020/21 | E4: =TB!D4 -> 2021/22 | F4: =TB!E4 -> 2022/23 | G4: =TB!F4 -> 2023/24 | H4: =TB!G4 -> 2024/25
B5: System Gross Triad Demand | C5: GW | D5: 50.24716226 | E5: 50.02789207 | F5: 50.12628949 | G5: 50.2424631 | H5: 50.35687957
B6: HH Gross Triad Demand | C6: GW | D6: 7.091123507 | E6: 6.819954717 | F6: 6.730159878 | G6: 6.710905947 | H6: 6.690932425
B7: Embedded Export Volume | C7: GW | D7: 17.66445348 | E7: 17.54617269 | F7: 17.59041918 | G7: 17.62641637 | H7: 17.64853954
B8: NHH Demand | C8: TWh | D8: 21.71256903 | E8: 21.57364794 | F8: 21.5610495 | G8: 21.5170178 | H8: 21.47273532
B9: Demand Residual | C9: £/kW | D9: HH tariffs and demand residual are unchanged
C10: Change
B11: Change to NHH | C11: p/kWh | D11: 0.752024356 | E11: 0.8008270585 | F11: 0.8317694226 | G11: 0.8790858881 | H11: 0.922635428

Sheet TSS
A1: Table SS – The effect of increasing embedded export volumes by 2GW | H1: Return to Index
D4: =TB!C4 -> 2020/21 | E4: =TB!D4 -> 2021/22 | F4: =TB!E4 -> 2022/23 | G4: =TB!F4 -> 2023/24 | H4: =TB!G4 -> 2024/25
B5: System Gross Triad Demand | C5: GW | D5: 50.24716226 | E5: 50.02789207 | F5: 50.12628949 | G5: 50.2424631 | H5: 50.35687957
B6: HH Gross Triad Demand (+2GW) | C6: GW | D6: 9.091123507 | E6: 8.819954717 | F6: 8.730159878 | G6: 8.710905947 | H6: 8.690932425
B7: Embedded Export Volume | C7: GW | D7: 17.66445348 | E7: 17.54617269 | F7: 17.59041918 | G7: 17.62641637 | H7: 17.64853954
B8: NHH Demand | C8: TWh | D8: 24.1250767 | E8: 23.97071993 | F8: 23.95672166 | G8: 23.90779755 | H8: 23.8585948
B9: Embedded Export Revenue | C9: £m | D9: 22.95471826 | E9: 20.47236276 | F9: 23.17141476 | G9: 25.12247808 | H9: 25.27746032
C10: Change | D10: 5.049918557 | E10: 4.642283368 | F10: 5.308359233 | G10: 5.768052261 | H10: 5.816972929
B11: Demand Residual | C11: £/kW | D11: 52.27908963 | E11: 56.17881281 | F11: 57.71809851 | G11: 61.08617415 | H11: 63.64138468
C12: Change | D12: 0.1005015673 | E12: 0.09279390307 | F12: 0.1058997043 | G12: 0.1148043289 | H12: 0.11551496
B13: Change to NHH | C13: p/kWh | D13: 0.01714500827 | E13: 0.01595215061 | F13: 0.01829898909 | G13: 0.01994329481 | H13: 0.02017319233

Sheet TTT
A1: Table TT – The effect of increasing the value of the AGIC by £2/kW | H1: Return to Index
D4: =TB!C4 -> 2020/21 | E4: =TB!D4 -> 2021/22 | F4: =TB!E4 -> 2022/23 | G4: =TB!F4 -> 2023/24 | H4: =TB!G4 -> 2024/25
B5: System Gross Triad Demand | C5: GW | D5: 50.24716226 | E5: 50.02789207 | F5: 50.12628949 | G5: 50.2424631 | H5: 50.35687957
B6: HH Gross Triad Demand | C6: GW | D6: 7.091123507 | E6: 6.819954717 | F6: 6.730159878 | G6: 6.710905947 | H6: 6.690932425
B7: Embedded Export Volume | C7: GW | D7: 17.66445348 | E7: 17.54617269 | F7: 17.59041918 | G7: 17.62641637 | H7: 17.64853954
B8: NHH Demand | C8: TWh | D8: 24.1250767 | E8: 23.97071993 | F8: 23.95672166 | G8: 23.90779755 | H8: 23.8585948
B9: Embedded Export Revenue | C9: £m | D9: 30.28764746 | E9: 22.87584016 | F9: 25.48513193 | G9: 28.06337054 | H9: 27.62045411
C10: Change | D10: 12.38284776 | E10: 7.045760766 | F10: 7.622076406 | G10: 8.708944716 | H10: 8.159966724
B11: Demand Residual | C11: £/kW | D11: 52.42502681 | E11: 56.22685555 | F11: 57.76425627 | G11: 61.14470816 | H11: 63.68791246
C12: Change | D12: 0.246438748 | E12: 0.1408366508 | F12: 0.1520574629 | G12: 0.1733383313 | H12: 0.1620427396
B13: Change to NHH | C13: p/kWh | D13: 0.04408408847 | E13: 0.02538622621 | F13: 0.02754427531 | G13: 0.03156161692 | H13: 0.02965702617

Sheet TUU
A1: Table UU – The effect on embedded export tariffs of increasing the value of the AGIC by £2/kW | K1: Return to Index
D4: =TB!C4 -> 2020/21 | E4: =TB!D4 -> 2021/22 | F4: =TB!E4 -> 2022/23 | G4: =TB!F4 -> 2023/24 | H4: =TB!G4 -> 2024/25
B5: 1 Northern Scotland | D5: 0 | E5: 0 | F5: 0 | G5: 0 | H5: 0
B6: 2 Southern Scotland | D6: 0 | E6: 0 | F6: 0 | G6: 0 | H6: 0
B7: 3 Northern | D7: 0 | E7: 0 | F7: 0 | G7: 0 | H7: 0
B8: 4 North West | D8: 1.81017194 | E8: 0 | F8: 0.5186021907 | G8: 0.9449251758 | H8: 0.6099539
B9: 5 Yorkshire | D9: 2.83354794 | E9: 0.9770880969 | F9: 0.7941571907 | G9: 0.9901431758 | H9: 0.7542529
B10: 6 N Wales & Mersey | D10: 3.05539694 | E10: 0.8816570969 | F10: 1.896427191 | G10: 3.235535176 | H10: 4.5965079
B11: 7 East Midlands | D11: 6.28863294 | E11: 5.040765097 | F11: 5.532841191 | G11: 5.767852176 | H11: 5.9808089
B12: 8 Midlands | D12: 7.29268194 | E12: 5.789930097 | F12: 6.667401191 | G12: 7.525161176 | H12: 8.1242529
B13: 9 Eastern | D13: 8.43855694 | E13: 7.744995097 | F13: 7.845973191 | G13: 7.654398176 | H13: 7.9150659
B14: 10 South Wales | D14: 4.40520094 | E14: 2.991465097 | F14: 5.655353191 | G14: 7.274706176 | H14: 6.7483269
B15: 11 South East | D15: 10.85581094 | E15: 10.0854301 | F15: 10.45127219 | G15: 10.33357018 | H15: 10.7434079
B16: 12 London | D16: 14.28661394 | E16: 13.4032811 | F16: 14.28887719 | G16: 14.27949418 | H16: 14.8560639
B17: 13 Southern | D17: 12.28497494 | E17: 11.2736671 | F17: 12.25098619 | G17: 12.22025118 | H17: 12.7593729
B18: 14 South Western | D18: 10.52141294 | E18: 9.401341097 | F18: 11.60284119 | G18: 9.391795176 | H18: 10.0415379

Sheet TVV
A1: Table VV – The split of revenue recovered through the demand residual from the HH and NHH charging bases | K1: Return to Index
D4: =TB!C4 -> 2020/21 | E4: =TB!D4 -> 2021/22 | F4: =TB!E4 -> 2022/23 | G4: =TB!F4 -> 2023/24 | H4: =TB!G4 -> 2024/25
B5: Total Generation Residual | C5: £m | D5: -293.2552002 | E5: -406.4687437 | F5: -518.7735731 | G5: -753.7966637 | H5: -876.0739994
B6: Total Demand Residual | C6: £m | D6: 2621.825981 | E6: 2805.8653 | F6: 2887.885756 | G6: 3063.351799 | H6: 3198.964571
B7: Demand Residual from HH Tariffs | C7: % | D7: 0.3515512656 | E7: 0.3507278034 | F7: 0.3509220283 | G7: 0.350827075 | H7: 0.3504692843
B8: Demand Residual from NHH Tariffs | C8: % | D8: 0.6484487344 | E8: 0.6492721966 | F8: 0.6490779717 | G8: 0.649172925 | H8: 0.6495307157

Sheet TWW
A1: Table WW - Generation zone 1 tariffs with remote island links in the wider network (2024/25 model) | H1: Return to Index
H3: Example tariffs for a generator of each technology type:
D4: System Peak | E4: Shared Year Round | F4: Not Shared Year Round | G4: Residual | H4: Conventional Carbon 80% | I4: Conventional Low Carbon 80% | J4: Intermittent 40%
B5: Zone | C5: Zone Name | D5: Tariff (£/kW) | E5: Tariff (£/kW) | F5: Tariff (£/kW) | G5: Tariff (£/kW) | H5: Tariff (£/kW) | I5: Tariff (£/kW) | J5: Tariff (£/kW)
B6: 1 | C6: North Scotland | D6: 1.946827 | E6: 36.524773 | F6: 44.213395 | G6: -10.130585 | H6: 56.4067764 | I6: 65.2494554 | J6: 48.6927192
B7: 2 | C7: East Aberdeenshire | D7: 1.706932 | E7: -8.791795 | F7: 44.213395 | G7: -10.130585 | H7: 19.913627 | I7: 28.756306 | J7: 30.566092
B8: 3 | C8: Western Highlands | D8: 2.090693 | E8: 17.971325 | F8: 24.184823 | G8: -10.130585 | H8: 25.6850264 | I8: 30.521991 | J8: 21.242768
B9: 4 | C9: Skye and Lochalsh | D9: 2.019564 | E9: 17.971325 | F9: 30.132114 | G9: -10.130585 | H9: 30.3717302 | I9: 36.398153 | J9: 27.190059
B10: 5 | C10: Eastern Grampian and Tayside | D10: 4.378141 | E10: 16.07793 | F10: 21.761379 | G10: -10.130585 | H10: 24.5190032 | I10: 28.871279 | J10: 18.061966
B11: 6 | C11: Central Grampian | D11: 4.095227 | E11: 15.388164 | F11: 20.710595 | G11: -10.130585 | H11: 22.8436492 | I11: 26.9857682 | J11: 16.7352756
B12: 7 | C12: Argyll | D12: 4.037096 | E12: 13.835993 | F12: 29.13615 | G12: -10.130585 | H12: 28.2842254 | I12: 34.1114554 | J12: 24.5399622
B13: 8 | C13: The Trossachs | D13: 3.024877 | E13: 13.835993 | F13: 18.312732 | G13: -10.130585 | H13: 18.613272 | I13: 22.2758184 | J13: 13.7165442
B14: 9 | C14: Stirlingshire and Fife | D14: 1.931185 | E14: 13.552104 | F14: 17.985688 | G14: -10.130585 | H14: 17.0308336 | I14: 20.6279712 | J14: 13.2759446
B15: 10 | C15: South West Scotlands | D15: 1.505974 | E15: 12.191548 | F15: 16.192042 | G15: -10.130585 | H15: 14.082261 | I15: 17.3206694 | J15: 10.9380762
B16: 11 | C16: Lothian and Borders | D16: 2.966163 | E16: 12.191548 | F16: 9.635395 | G16: -10.130585 | H16: 10.2971324 | I16: 12.2242114 | J16: 4.3814292
B17: 12 | C17: Solway and Cheviot | D17: 1.603589 | E17: 8.620419 | F17: 8.875393 | G17: -10.130585 | H17: 5.4696536 | I17: 7.2447322 | J17: 2.1929756
B18: 13 | C18: North East England | D18: 3.783439 | E18: 6.982301 | F18: 5.243434 | G18: -10.130585 | H18: 3.433442 | I18: 4.4821288 | J18: -2.0942306
B19: 14 | C19: North Lancashire and The Lakes | D19: 1.165117 | E19: 6.982301 | F19: 0.830547 | G19: -10.130585 | H19: -2.7151896 | I19: -2.5490802 | J19: -6.5071176
B20: 15 | C20: South Lancashire, Yorkshire and Humber | D20: 4.392294 | E20: 2.763642 | F20: 0.277575 | G20: -10.130585 | H20: -3.3053174 | I20: -3.2498024 | J20: -8.7475532
B21: 16 | C21: North Midlands and North Wales | D21: 3.168106 | E21: 0.27126 | F21: 0 | G21: -10.130585 | H21: -6.745471 | I21: -6.745471 | J21: -10.022081
B22: 17 | C22: South Lincolnshire and North Norfolk | D22: 1.227456 | E22: 1.538686 | F22: 0 | G22: -10.130585 | H22: -7.6721802 | I22: -7.6721802 | J22: -9.5151106
B23: 18 | C23: Mid Wales and The Midlands | D23: 1.096448 | E23: 1.09615 | F23: 0 | G23: -10.130585 | H23: -8.157217 | I23: -8.157217 | J23: -9.692125
B24: 19 | C24: Anglesey and Snowdon | D24: 3.338245 | E24: -0.747806 | F24: 0 | G24: -10.130585 | H24: -7.3905848 | I24: -7.3905848 | J24: -10.4297074
B25: 20 | C25: Pembrokeshire | D25: 10.157141 | E25: -6.211258 | F25: 0 | G25: -10.130585 | H25: -4.9424504 | I25: -4.9424504 | J25: -12.6150882
B26: 21 | C26: South Wales & Gloucester | D26: 5.820023 | E26: -6.789311 | F26: 0 | G26: -10.130585 | H26: -9.7420108 | I26: -9.7420108 | J26: -12.8463094
B27: 22 | C27: Cotswold | D27: 2.633095 | E27: 2.490071 | F27: -8.910523 | G27: -10.130585 | H27: -12.6338516 | I27: -14.4159562 | J27: -18.0450796
B28: 23 | C28: Central London | D28: -5.163515 | E28: 2.490071 | F28: -7.274642 | G28: -10.130585 | H28: -19.1217568 | I28: -20.5766852 | J28: -16.4091986
B29: 24 | C29: Essex and Kent | D29: -3.194232 | E29: 2.490071 | F29: 0 | G29: -10.130585 | H29: -11.3327602 | I29: -11.3327602 | J29: -9.1345566
B30: 25 | C30: Oxfordshire, Surrey and Sussex | D30: -0.931598 | E30: -3.282823 | F30: 0 | G30: -10.130585 | H30: -13.6884414 | I30: -13.6884414 | J30: -11.4437142
B31: 26 | C31: Somerset and Wessex | D31: -0.392121 | E31: -3.445359 | F31: 0 | G31: -10.130585 | H31: -13.2789932 | I31: -13.2789932 | J31: -11.5087286
B32: 27 | C32: West Devon and Cornwall | D32: 1.349339 | E32: -2.100521 | F32: 0.171834 | G32: -10.130585 | H32: -10.3241956 | I32: -10.2898288 | J32: -10.7989594

Sheet TXX
A1: Table XX - Indicative wider tariffs for the three remote islands generation zones (2024/25 model) | H1: Return to Index
H3: Example tariffs for a generator of each technology type:
D4: System Peak | E4: Shared Year Round | F4: Not Shared Year Round | G4: Residual | H4: Conventional Carbon 80% | I4: Conventional Low Carbon 80% | J4: Intermittent 40%
B5: Zone | C5: Zone Name | D5: Tariff (£/kW) | E5: Tariff (£/kW) | F5: Tariff (£/kW) | G5: Tariff (£/kW) | H5: Tariff (£/kW) | I5: Tariff (£/kW) | J5: Tariff (£/kW)
B6: 0_1 | C6: Shetland | D6: 1.830833867 | E6: 0 | F6: 202.6827943 | G6: -10.98988089 | H6: 152.9871884 | I6: 193.5237473 | J6: 191.6929134
B7: 0_2 | C7: Orkney | D7: 1.795549574 | E7: 0 | F7: 189.7823646 | G7: -10.98988089 | H7: 142.6315604 | I7: 180.5880333 | J7: 178.7924837
B8: 0_3 | C8: Western Isles | D8: 1.946847319 | E8: 0 | F8: 178.7110415 | G8: -10.98988089 | H8: 133.9257996 | I8: 169.6680079 | J8: 167.7211606
B9: 1 | C9: North Scotland | D9: 1.946827 | E9: 19.748612 | F9: 26.103416 | G9: -10.98988089 | H9: 28.7163654 | I9: 33.9370486 | J9: 24.0907768
B10: 2 | C10: East Aberdeenshire | D10: 1.706932 | E10: 9.318183 | F10: 26.103416 | G10: -10.98988089 | H10: 20.1321272 | I10: 25.3528104 | J10: 19.9186052
B11: 3 | C11: Western Highlands | D11: 2.090693 | E11: 17.971325 | F11: 24.184823 | G11: -10.98988089 | H11: 25.9035274 | I11: 30.740492 | J11: 21.461269
B12: 4 | C12: Skye and Lochalsh | D12: 2.019564 | E12: 17.971325 | F12: 30.132114 | G12: -10.98988089 | H12: 30.5902312 | I12: 36.616654 | J12: 27.40856
B13: 5 | C13: Eastern Grampian and Tayside | D13: 4.378141 | E13: 16.07793 | F13: 21.761379 | G13: -10.98988089 | H13: 24.7375042 | I13: 29.08978 | J13: 18.280467
B14: 6 | C14: Central Grampian | D14: 4.095227 | E14: 15.388164 | F14: 20.710595 | G14: -10.98988089 | H14: 23.0621502 | I14: 27.2042692 | J14: 16.9537766
B15: 7 | C15: Argyll | D15: 4.037096 | E15: 13.835993 | F15: 29.13615 | G15: -10.98988089 | H15: 28.5027264 | I15: 34.3299564 | J15: 24.7584632
B16: 8 | C16: The Trossachs | D16: 3.024877 | E16: 13.835993 | F16: 18.312732 | G16: -10.98988089 | H16: 18.831773 | I16: 22.4943194 | J16: 13.9350452
B17: 9 | C17: Stirlingshire and Fife | D17: 1.931185 | E17: 13.552104 | F17: 17.985688 | G17: -10.98988089 | H17: 17.2493346 | I17: 20.8464722 | J17: 13.4944456
B18: 10 | C18: South West Scotlands | D18: 1.505974 | E18: 12.191548 | F18: 16.192042 | G18: -10.98988089 | H18: 14.300762 | I18: 17.5391704 | J18: 11.1565772
B19: 11 | C19: Lothian and Borders | D19: 2.966163 | E19: 12.191548 | F19: 9.635395 | G19: -10.98988089 | H19: 10.5156334 | I19: 12.4427124 | J19: 4.5999302
B20: 12 | C20: Solway and Cheviot | D20: 1.603589 | E20: 8.620419 | F20: 8.875393 | G20: -10.98988089 | H20: 5.6881546 | I20: 7.4632332 | J20: 2.4114766
B21: 13 | C21: North East England | D21: 3.783439 | E21: 6.982301 | F21: 5.243434 | G21: -10.98988089 | H21: 3.651943 | I21: 4.7006298 | J21: -1.8757296
B22: 14 | C22: North Lancashire and The Lakes | D22: 1.165117 | E22: 6.982301 | F22: 0.830547 | G22: -10.98988089 | H22: -2.4966886 | I22: -2.3305792 | J22: -6.2886166
B23: 15 | C23: South Lancashire, Yorkshire and Humber | D23: 4.392294 | E23: 2.763642 | F23: 0.277575 | G23: -10.98988089 | H23: -3.0868164 | I23: -3.0313014 | J23: -8.5290522
B24: 16 | C24: North Midlands and North Wales | D24: 3.168106 | E24: 0.27126 | F24: 0 | G24: -10.98988089 | H24: -6.52697 | I24: -6.52697 | J24: -9.80358
B25: 17 | C25: South Lincolnshire and North Norfolk | D25: 1.227456 | E25: 1.538686 | F25: 0 | G25: -10.98988089 | H25: -7.4536792 | I25: -7.4536792 | J25: -9.2966096
B26: 18 | C26: Mid Wales and The Midlands | D26: 1.096448 | E26: 1.09615 | F26: 0 | G26: -10.98988089 | H26: -7.938716 | I26: -7.938716 | J26: -9.473624
B27: 19 | C27: Anglesey and Snowdon | D27: 3.338245 | E27: -0.747806 | F27: 0 | G27: -10.98988089 | H27: -7.1720838 | I27: -7.1720838 | J27: -10.2112064
B28: 20 | C28: Pembrokeshire | D28: 10.157141 | E28: -6.211258 | F28: 0 | G28: -10.98988089 | H28: -4.7239494 | I28: -4.7239494 | J28: -12.3965872
B29: 21 | C29: South Wales & Gloucester | D29: 5.820023 | E29: -6.789311 | F29: 0 | G29: -10.98988089 | H29: -9.5235098 | I29: -9.5235098 | J29: -12.6278084
B30: 22 | C30: Cotswold | D30: 2.633095 | E30: 2.490071 | F30: -8.910523 | G30: -10.98988089 | H30: -12.4153506 | I30: -14.1974552 | J30: -17.8265786
B31: 23 | C31: Central London | D31: -5.163515 | E31: 2.490071 | F31: -7.274642 | G31: -10.98988089 | H31: -18.9032558 | I31: -20.3581842 | J31: -16.1906976
B32: 24 | C32: Essex and Kent | D32: -3.194232 | E32: 2.490071 | F32: 0 | G32: -10.98988089 | H32: -11.1142592 | I32: -11.1142592 | J32: -8.9160556
B33: 25 | C33: Oxfordshire, Surrey and Sussex | D33: -0.931598 | E33: -3.282823 | F33: 0 | G33: -10.98988089 | H33: -13.4699404 | I33: -13.4699404 | J33: -11.2252132
B34: 26 | C34: Somerset and Wessex | D34: -0.392121 | E34: -3.445359 | F34: 0 | G34: -10.98988089 | H34: -13.0604922 | I34: -13.0604922 | J34: -11.2902276
B35: 27 | C35: West Devon and Cornwall | D35: 1.349339 | E35: -2.100521 | F35: 0.171834 | G35: -10.98988089 | H35: -10.1056946 | I35: -10.0713278 | J35: -10.5804584

Sheet TYY
A1: Table YY - Treatment of metering classes for demand charging from 2019/20 onwards | H1: Return to Index
B4: Measurement class | C4: Description | D4: Settlement in 2019/20 | E4: 2020/21 onwards
B5: A | C5: Non Half Hourly metered | D5: NHH | E5: NHH
B6: B | C6: Non Half Hourly unmetered | D6: NHH | E6: NHH
B7: C | C7: Half Hourly metered in 100kW premises | D7: HH | E7: HH
B8: D | C8: Half Hourly unmetered | D8: HH | E8: HH
B9: E | C9: Half Hourly metering equipment below 100kW with current transformer | D9: HH | E9: HH
B10: F | C10: Half Hourly metering equipment below 100kW with current transformer or whole current, at domestic premises | D10: NHH | E10: HH
B11: G | C11: Half Hourly metering equipment below 100kW with current transformer or whole current, NOT at domestic premises | D11: NHH | E11: HH

Sheet TZZ
A1: ="Table ZZ – Elements of the demand location tariff for "&TB!C4 -> Table ZZ – Elements of the demand location tariff for 2020/21 | H1: Return to Index
B4: Zone | C4: Zone Name | D4: Gross Half-Hourly Demand Tariff
D5: Peak Security Transport | E5: Year Round Transport | F5: Residual
D6: (£/kW) | E6: (£/kW) | F6: (£/kW)
B7: 1 | C7: Northern Scotland | D7: -2.481732501 | E7: -27.16801781 | F7: 52.17858806
B8: 2 | C8: Southern Scotland | D8: -2.296204788 | E8: -18.99782138 | F8: 52.17858806
B9: 3 | C9: Northern | D9: -3.486690057 | E9: -7.369902255 | F9: 52.17858806
B10: 4 | C10: North West | D10: -1.557224149 | E10: -2.800693497 | F10: 52.17858806
B11: 5 | C11: Yorkshire | D11: -2.400152807 | E11: -0.9343888459 | F11: 52.17858806
B12: 6 | C12: N Wales & Mersey | D12: -2.719693559 | E12: -0.3929990114 | F12: 52.17858806
B13: 7 | C13: East Midlands | D13: -2.219788492 | E13: 2.340331328 | F13: 52.17858806
B14: 8 | C14: Midlands | D14: -2.085715845 | E14: 3.21030785 | F14: 52.17858806
B15: 9 | C15: Eastern | D15: 1.582744675 | E15: 0.6877218739 | F15: 52.17858806
B16: 10 | C16: South Wales | D16: -6.391328039 | E16: 4.628439056 | F16: 52.17858806
B17: 11 | C17: South East | D17: 4.322971107 | E17: 0.3647497669 | F17: 52.17858806
B18: 12 | C18: London | D18: 6.194452162 | E18: 1.924072202 | F18: 52.17858806
B19: 13 | C19: Southern | D19: 1.944826149 | E19: 4.172059288 | F19: 52.17858806
B20: 14 | C20: South Western | D20: -0.9973602452 | E20: 5.350683452 | F20: 52.17858806

Sheet TAAA
A1: ="Table AAA – Elements of the demand location tariff for "&TB!D4 -> Table AAA – Elements of the demand location tariff for 2021/22 | H1: Return to Index
B4: Zone | C4: Zone Name | D4: Gross Half-Hourly Demand Tariff
D5: Peak Security Transport | E5: Year Round Transport | F5: Residual
D6: (£/kW) | E6: (£/kW) | F6: (£/kW)
B7: 1 | C7: Northern Scotland | D7: -3.244375453 | E7: -29.57471797 | F7: 56.0860189
B8: 2 | C8: Southern Scotland | D8: -3.063705292 | E8: -20.71183717 | F8: 56.0860189
B9: 3 | C9: Northern | D9: -3.479815797 | E9: -8.166870333 | F9: 56.0860189
B10: 4 | C10: North West | D10: -1.969668853 | E10: -3.84687678 | F10: 56.0860189
B11: 5 | C11: Yorkshire | D11: -2.717768574 | E11: -1.894985115 | F11: 56.0860189
B12: 6 | C12: N Wales & Mersey | D12: -3.134699449 | E12: -1.573485147 | F12: 56.0860189
B13: 7 | C13: East Midlands | D13: -2.3243569 | E13: 1.775279667 | F13: 56.0860189
B14: 8 | C14: Midlands | D14: -2.516971614 | E14: 2.717059895 | F14: 56.0860189
B15: 9 | C15: Eastern | D15: 1.921238008 | E15: 0.2339146384 | F15: 56.0860189
B16: 10 | C16: South Wales | D16: -6.849946862 | E16: 4.251569605 | F16: 56.0860189
B17: 11 | C17: South East | D17: 4.188383923 | E17: 0.3072037879 | F17: 56.0860189
B18: 12 | C18: London | D18: 6.25270644 | E18: 1.560732415 | F18: 56.0860189
B19: 13 | C19: Southern | D19: 1.826992861 | E19: 3.856832496 | F19: 56.0860189
B20: 14 | C20: South Western | D20: -1.197243463 | E20: 5.008742264 | F20: 56.0860189

Sheet TBBB
A1: ="Table BBB – Elements of the demand location tariff for "&TB!E4 -> Table BBB – Elements of the demand location tariff for 2022/23 | H1: Return to Index
B4: Zone | C4: Zone Name | D4: Gross Half-Hourly Demand Tariff
D5: Peak Security Transport | E5: Year Round Transport | F5: Residual
D6: (£/kW) | E6: (£/kW) | F6: (£/kW)
B7: 1 | C7: Northern Scotland | D7: -3.089812375 | E7: -29.85682124 | F7: 57.61219881
B8: 2 | C8: Southern Scotland | D8: -3.19852103 | E8: -20.88039942 | F8: 57.61219881
B9: 3 | C9: Northern | D9: -3.958760076 | E9: -8.101157176 | F9: 57.61219881
B10: 4 | C10: North West | D10: -1.790805171 | E10: -3.448129416 | F10: 57.61219881
B11: 5 | C11: Yorkshire | D11: -3.385676864 | E11: -1.577702802 | F11: 57.61219881
B12: 6 | C12: N Wales & Mersey | D12: -2.866654492 | E12: -0.9944554322 | F12: 57.61219881
B13: 7 | C13: East Midlands | D13: -2.503720468 | E13: 2.279024398 | F13: 57.61219881
B14: 8 | C14: Midlands | D14: -2.103182582 | E14: 3.013047081 | F14: 57.61219881
B15: 9 | C15: Eastern | D15: 1.570958259 | E15: 0.5174782212 | F15: 57.61219881
B16: 10 | C16: South Wales | D16: -5.779459557 | E16: 5.677275352 | F16: 57.61219881
B17: 11 | C17: South East | D17: 4.517470634 | E17: 0.1762647413 | F17: 57.61219881
B18: 12 | C18: London | D18: 6.642990085 | E18: 1.888350255 | F18: 57.61219881
B19: 13 | C19: Southern | D19: 2.11971739 | E19: 4.373731796 | F19: 57.61219881
B20: 14 | C20: South Western | D20: -0.3438688052 | E20: 6.189172869 | F20: 57.61219881

Sheet TCCC
A1: ="Table CCC – Elements of the demand location tariff for "&TB!F4 -> Table CCC – Elements of the demand location tariff for 2023/24 | H1: Return to Index
B4: Zone | C4: Zone Name | D4: Gross Half-Hourly Demand Tariff
D5: Peak Security Transport | E5: Year Round Transport | F5: Residual
D6: (£/kW) | E6: (£/kW) | F6: (£/kW)
B7: 1 | C7: Northern Scotland | D7: -1.881896399 | E7: -34.30440324 | F7: 60.97136982
B8: 2 | C8: Southern Scotland | D8: -2.126992301 | E8: -25.41946595 | F8: 60.97136982
B9: 3 | C9: Northern | D9: -3.11524024 | E9: -9.863410072 | F9: 60.97136982
B10: 4 | C10: North West | D10: -0.9385036751 | E10: -4.046834564 | F10: 60.97136982
B11: 5 | C11: Yorkshire | D11: -2.72112864 | E11: -2.218990759 | F11: 60.97136982
B12: 6 | C12: N Wales & Mersey | D12: -1.348915084 | E12: -1.345812256 | F12: 60.97136982
B13: 7 | C13: East Midlands | D13: -2.314641986 | E13: 2.152231018 | F13: 60.97136982
B14: 8 | C14: Midlands | D14: -1.275687638 | E14: 2.870585719 | F14: 60.97136982
B15: 9 | C15: Eastern | D15: 0.5819039421 | E15: 1.14223078 | F15: 60.97136982
B16: 10 | C16: South Wales | D16: -5.288137024 | E16: 6.632580549 | F16: 60.97136982
B17: 11 | C17: South East | D17: 3.741159731 | E17: 0.6621474186 | F17: 60.97136982
B18: 12 | C18: London | D18: 5.655826585 | E18: 2.693404342 | F18: 60.97136982
B19: 13 | C19: Southern | D19: 1.581333968 | E19: 4.708653827 | F19: 60.97136982
B20: 14 | C20: South Western | D20: -1.295754153 | E20: 4.757286338 | F20: 60.97136982

Sheet TDDD
A1: ="Table DDD – Elements of the demand location tariff for "&TB!G4 -> Table DDD – Elements of the demand location tariff for 2024/25 | H1: Return to Index
B4: Zone | C4: Zone Name | D4: Gross Half-Hourly Demand Tariff
D5: Peak Security Transport | E5: Year Round Transport | F5: Residual
D6: (£/kW) | E6: (£/kW) | F6: (£/kW)
B7: 1 | C7: Northern Scotland | D7: -1.529776588 | E7: -35.40834057 | F7: 63.52586972
B8: 2 | C8: Southern Scotland | D8: -1.738227035 | E8: -26.11366562 | F8: 63.52586972
B9: 3 | C9: Northern | D9: -3.281247451 | E9: -10.53768363 | F9: 63.52586972
B10: 4 | C10: North West | D10: -1.11715659 | E10: -4.381060022 | F10: 63.52586972
B11: 5 | C11: Yorkshire | D11: -2.923123991 | E11: -2.43079335 | F11: 63.52586972
B12: 6 | C12: N Wales & Mersey | D12: -0.7820286292 | E12: -0.7296339569 | F12: 63.52586972
B13: 7 | C13: East Midlands | D13: -2.09241632 | E13: 1.965054377 | F13: 63.52586972
B14: 8 | C14: Midlands | D14: -1.176529812 | E14: 3.192612449 | F14: 63.52586972
B15: 9 | C15: Eastern | D15: 0.7808628572 | E15: 1.026032394 | F15: 63.52586972
B16: 10 | C16: South Wales | D16: -5.953833685 | E16: 6.593990398 | F16: 63.52586972
B17: 11 | C17: South East | D17: 3.495938727 | E17: 1.139298683 | F17: 63.52586972
B18: 12 | C18: London | D18: 5.46086045 | E18: 3.287032661 | F18: 63.52586972
B19: 13 | C19: Southern | D19: 1.435088492 | E19: 5.216113388 | F19: 63.52586972
B20: 14 | C20: South Western | D20: -1.405747658 | E20: 5.339115212 | F20: 63.52586972

Sheet TEEE
A1: Table EEE - Annual Load Factors | C1: Return to Index | F1: https://www.nationalgrideso.com/tnuos
F2: under 2019/20 charging year tariff forecasts
A5: Power Station | B5: Technology | C5: Yearly Load Factor Source | H5: Yearly Load Factor Value | M5: Specific ALF
C6: 2012 | D6: 2013 | E6: 2014 | F6: 2015 | G6: 2016 | H6: 2012 | I6: 2013 | J6: 2014 | K6: 2015 | L6: 2016
A7: ABERTHAW | B7: Coal | C7: Actual | D7: Actual | E7: Actual | F7: Actual | G7: Actual | H7: 0.6554125781 | I7: 0.5900433092 | J7: 0.5426112839 | K7: 0.5083352194 | L7: 0.05074202856 | M7: 0.546997
A8: ACHRUACH | B8: Onshore_Wind | C8: Generic | D8: Generic | E8: Partial | F8: Actual | G8: Actual | H8: 0 | I8: 0 | J8: 0.3364635778 | K8: 0.3671402756 | L8: 0.4434639004 | M8: 0.382356
A9: AFTON | B9: Onshore_Wind | C9: Generic | D9: Generic | E9: Generic | F9: Generic | G9: Partial | H9: 0 | I9: 0 | J9: 0 | K9: 0 | L9: 0.3487380627 | M9: 0.372641
A10: AIKENGALL II | B10: Onshore_Wind | C10: Generic | D10: Generic | E10: Generic | F10: Generic | G10: Partial | H10: 0 | I10: 0 | J10: 0 | K10: 0 | L10: 0.3350822747 | M10: 0.368089
A11: AN SUIDHE | B11: Onshore_Wind | C11: Actual | D11: Actual | E11: Actual | F11: Actual | G11: Actual | H11: 0.4158434308 | I11: 0.3694215748 | J11: 0.3549000488 | K11: 0.340938019 | L11: 0.4123231067 | M11: 0.378882
A12: ARECLEOCH | B12: Onshore_Wind | C12: Actual | D12: Actual | E12: Actual | F12: Actual | G12: Actual | H12: 0.3382964212 | I12: 0.2972982186 | J12: 0.3686121896 | K12: 0.1972460256 | L12: 0.3517281723 | M12: 0.329108
A13: BAGLAN BAY | B13: CCGT_CHP | C13: Actual | D13: Actual | E13: Actual | F13: Actual | G13: Actual | H13: 0.1641063104 | I13: 0.3791941198 | J13: 0.2912280794 | K13: 0.5520302485 | L13: 0.242890576 | M13: 0.304438
A14: BARROW | B14: Offshore_Wind | C14: Actual | D14: Actual | E14: Actual | F14: Actual | G14: Actual | H14: 0.5410801395 | I14: 0.4702314777 | J14: 0.4717913757 | K14: 0.4425840018 | L14: 0.470417396 | M14: 0.470813
A15: BARRY | B15: CCGT_CHP | C15: Actual | D15: Actual | E15: Actual | F15: Partial | G15: Actual | H15: 0.01298933372 | I15: 0.004002535533 | J15: 0.0217268588 | K15: 0.2434681007 | L15: 0.005406784222 | M15: 0.013374
A16: BEAULY CASCADE | B16: Hydro | C16: Actual | D16: Actual | E16: Actual | F16: Actual | G16: Actual | H16: 0.3566827272 | I16: 0.3711674814 | J16: 0.3500937771 | K16: 0.3048720097 | L16: 0.2199367914 | M16: 0.337216
A17: BEINNEUN | B17: Onshore_Wind | C17: Generic | D17: Generic | E17: Generic | F17: Partial | G17: Actual | H17: 0 | I17: 0 | J17: 0 | K17: 0.3096225949 | L17: 0.2582137897 | M17: 0.317476
A18: BHLARAIDH | B18: Onshore_Wind | C18: Generic | D18: Generic | E18: Generic | F18: Partial | G18: Actual | H18: 0 | I18: 0 | J18: 0 | K18: 0.3343385073 | L18: 0.4632094474 | M18: 0.394047
A19: BLACK LAW | B19: Onshore_Wind | C19: Actual | D19: Actual | E19: Actual | F19: Actual | G19: Actual | H19: 0.3196475886 | I19: 0.267881235 | J19: 0.2690350734 | K19: 0.2346225795 | L19: 0.2121370676 | M19: 0.25718
A20: BLACKCRAIG WINDFARM | B20: Onshore_Wind | C20: Generic | D20: Generic | E20: Generic | F20: Generic | G20: Partial | H20: 0 | I20: 0 | J20: 0 | K20: 0 | L20: 0.360207803 | M20: 0.376465
A21: BLACKLAW EXTENSION | B21: Onshore_Wind | C21: Generic | D21: Generic | E21: Partial | F21: Actual | G21: Actual | H21: 0 | I21: 0 | J21: 0.3346351822 | K21: 0.1310950996 | L21: 0.3048702797 | M21: 0.256867
A22: BRIMSDOWN | B22: CCGT_CHP | C22: Actual | D22: Actual | E22: Actual | F22: Actual | G22: Actual | H22: 0.1876450821 | I22: 0.1112289151 | J22: 0.1644630709 | K22: 0.4506145165 | L22: 0.2761683547 | M22: 0.209426
A23: BURBO BANK EXT | B23: Offshore_Wind | C23: Generic | D23: Generic | E23: Actual | F23: Actual | G23: Actual | H23: 0 | I23: 0 | J23: 0.1677807095 | K23: 0.2502333329 | L23: 0.4938500184 | M23: 0.303955
A24: CARRAIG GHEAL | B24: Onshore_Wind | C24: Actual | D24: Actual | E24: Actual | F24: Actual | G24: Actual | H24: 0.4527600159 | I24: 0.4892767421 | J24: 0.4562535712 | K24: 0.4042105668 | L24: 0.4553713718 | M24: 0.454795
A25: CARRINGTON | B25: CCGT_CHP | C25: Generic | D25: Generic | E25: Partial | F25: Actual | G25: Actual | H25: 0 | I25: 0 | J25: 0.3873179456 | K25: 0.5801146767 | L25: 0.588066414 | M25: 0.5185
A26: CLUNIE | B26: Hydro | C26: Actual | D26: Actual | E26: Actual | F26: Actual | G26: Actual | H26: 0.4532559714 | I26: 0.4324884871 | J26: 0.4797106213 | K26: 0.328297346 | L26: 0.3216991155 | M26: 0.404681
A27: CLYDE (NORTH) | B27: Onshore_Wind | C27: Actual | D27: Actual | E27: Actual | F27: Actual | G27: Actual | H27: 0.4265979683 | I27: 0.3688820034 | J27: 0.4141199558 | K27: 0.2688582747 | L27: 0.3926185008 | M27: 0.391873
A28: CLYDE (SOUTH) | B28: Onshore_Wind | C28: Actual | D28: Actual | E28: Actual | F28: Actual | G28: Actual | H28: 0.3989414316 | I28: 0.2941149857 | J28: 0.3996151087 | K28: 0.3487507516 | L28: 0.3916340571 | M28: 0.379775
A29: CONNAHS QUAY | B29: CCGT_CHP | C29: Actual | D29: Actual | E29: Actual | F29: Actual | G29: Actual | H29: 0.1282332562 | I29: 0.1837388621 | J29: 0.2827133169 | K29: 0.3745881097 | L29: 0.2008457557 | M29: 0.222433
A30: CONON CASCADE | B30: Hydro | C30: Actual | D30: Actual | E30: Actual | F30: Actual | G30: Actual | H30: 0.5428201771 | I30: 0.5552866675 | J30: 0.5898601723 | K30: 0.4867821106 | L30: 0.5085472685 | M30: 0.535551
A31: CORBY | B31: CCGT_CHP | C31: Actual | D31: Actual | E31: Actual | F31: Generic | G31: Partial | H31: 0.08083381131 | I31: 0.09675525086 | J31: 0.04541109061 | K31: 0 | L31: 0.4465026747 | M31: 0.074333
A32: CORRIEGARTH | B32: Onshore_Wind | C32: Generic | D32: Generic | E32: Generic | F32: Partial | G32: Actual | H32: 0 | I32: 0 | J32: 0 | K32: 0.2256446216 | L32: 0.4120130832 | M32: 0.34075
A33: CORRIEMOILLIE | B33: Onshore_Wind | C33: Generic | D33: Generic | E33: Generic | F33: Partial | G33: Actual | H33: 0 | I33: 0 | J33: 0 | K33: 0.3223155677 | L33: 0.3042104182 | M33: 0.33704
A34: CORYTON | B34: CCGT_CHP | C34: Actual | D34: Actual | E34: Actual | F34: Actual | G34: Actual | H34: 0.09785208191 | I34: 0.1751227783 | J34: 0.2639998973 | K34: 0.6303825888 | L34: 0.1640219702 | M34: 0.201048
A35: COTTAM | B35: Coal | C35: Actual | D35: Actual | E35: Actual | F35: Actual | G35: Actual | H35: 0.6739506599 | I35: 0.5144257197 | J35: 0.3441573804 | K35: 0.1493871088 | L35: 0.2165802451 | M35: 0.358388
A36: COTTAM DEVELOPMENT CENTRE | B36: CCGT_CHP | C36: Actual | D36: Actual | E36: Actual | F36: Actual | G36: Actual | H36: 0.1602488561 | I36: 0.3131320068 | J36: 0.2823822368 | K36: 0.6724822467 | L36: 0.5630065679 | M36: 0.386174
A37: COUR | B37: Onshore_Wind | C37: Generic | D37: Generic | E37: Generic | F37: Partial | G37: Actual | H37: 0 | I37: 0 | J37: 0 | K37: 0.3832465161 | L37: 0.5542729814 | M37: 0.440704
A38: COWES | B38: Gas_Oil | C38: Actual | D38: Actual | E38: Actual | F38: Actual | G38: Actual | H38: 0.0009563060935 | I38: 0.003135493941 | J38: 0.004912239197 | K38: 0.00531939588 | L38: 0.006941629986 | M38: 0.004456
A39: CRUACHAN | B39: Pumped_Storage | C39: Actual | D39: Actual | E39: Actual | F39: Actual | G39: Actual | H39: 0.09696855723 | I39: 0.09051556403 | J39: 0.08867279118 | K39: 0.07191420506 | L39: 0.09622517045 | M39: 0.091805
A40: CRYSTAL RIG II | B40: Onshore_Wind | C40: Actual | D40: Actual | E40: Actual | F40: Actual | G40: Actual | H40: 0.5025490264 | I40: 0.4759577237 | J40: 0.4838357364 | K40: 0.4026793644 | L40: 0.525802346 | M40: 0.487447
A41: CRYSTAL RIG III | B41: Onshore_Wind | C41: Generic | D41: Generic | E41: Generic | F41: Partial | G41: Actual | H41: 0 | I41: 0 | J41: 0 | K41: 0.3995032478 | L41: 0.5190203246 | M41: 0.434372
A42: DAMHEAD CREEK | B42: CCGT_CHP | C42: Actual | D42: Actual | E42: Actual | F42: Actual | G42: Actual | H42: 0.7717829873 | I42: 0.6746409945 | J42: 0.6489826766 | K42: 0.6811190673 | L42: 0.6351075679 | M42: 0.668248
A43: DEESIDE | B43: CCGT_CHP | C43: Actual | D43: Actual | E43: Actual | F43: Actual | G43: Actual | H43: 0.1730346416 | I43: 0.139018205 | J43: 0.1745794688 | K43: 0.2710900417 | L43: 0.2081640004 | M43: 0.185259
A44: DERSALLOCH | B44: Onshore_Wind | C44: Generic | D44: Generic | E44: Generic | F44: Partial | G44: Actual | H44: 0 | I44: 0 | J44: 0 | K44: 0.3377282768 | L44: 0.3985756287 | M44: 0.373632
A45: DIDCOT B | B45: CCGT_CHP | C45: Actual | D45: Actual | E45: Actual | F45: Actual | G45: Actual | H45: 0.1866242776 | I45: 0.2553449691 | J45: 0.4113887416 | K45: 0.5013584219 | L45: 0.4412337772 | M45: 0.369322
A46: DIDCOT GTS | B46: Gas_Oil | C46: Actual | D46: Actual | E46: Actual | F46: Actual | G46: Actual | H46: 0.0009018413391 | I46: 0.002842830273 | J46: 0.004861145298 | K46: 0.0004517142713 | L46: 0.006337200214 | M46: 0.002869
A47: DINORWIG | B47: Pumped_Storage | C47: Actual | D47: Actual | E47: Actual | F47: Actual | G47: Actual | H47: 0.1508978824 | I47: 0.1506499295 | J47: 0.146352903 | K47: 0.1595955617 | L47: 0.1494674855 | M47: 0.150338
A48: DRAX | B48: Coal | C48: Actual | D48: Actual | E48: Actual | F48: Actual | G48: Actual | H48: 0.8051507269 | I48: 0.8221488292 | J48: 0.7620297409 | K48: 0.6227049034 | L48: 0.5588959909 | M48: 0.729962
A49: DUDGEON | B49: Offshore_Wind | C49: Generic | D49: Generic | E49: Generic | F49: Partial | G49: Actual | H49: 0 | I49: 0 | J49: 0 | K49: 0.4247912366 | L49: 0.4697816433 | M49: 0.463364
A50: DUNGENESS B | B50: Nuclear | C50: Actual | D50: Actual | E50: Actual | F50: Actual | G50: Actual | H50: 0.6100679381 | I50: 0.5469173524 | J50: 0.7076171275 | K50: 0.7934033017 | L50: 0.6820859926 | M50: 0.66659
A51: DUNLAW EXTENSION | B51: Onshore_Wind | C51: Actual | D51: Actual | E51: Actual | F51: Actual | G51: Actual | H51: 0.3482260274 | I51: 0.300797456 | J51: 0.2912028784 | K51: 0.2655494839 | L51: 0.3108401213 | M51: 0.300947
A52: DUNMAGLASS | B52: Onshore_Wind | C52: Generic | D52: Generic | E52: Generic | F52: Partial | G52: Actual | H52: 0 | I52: 0 | J52: 0 | K52: 0.3897128321 | L52: 0.7569358569 | M52: 0.510414
A53: EDINBANE WIND | B53: Onshore_Wind | C53: Actual | D53: Actual | E53: Actual | F53: Actual | G53: Actual | H53: 0.3947845692 | I53: 0.3124578701 | J53: 0.3559368758 | K53: 0.3250092951 | L53: 0.3459291052 | M53: 0.342292
A54: EGGBOROUGH | B54: Coal | C54: Actual | D54: Actual | E54: Actual | F54: Partial | G54: Actual | H54: 0.7218427606 | I54: 0.4574209099 | J54: 0.2701572454 | K54: 0.4002834722 | L54: 0.07171484641 | M54: 0.48314
A55: ERROCHTY | B55: Hydro | C55: Actual | D55: Actual | E55: Actual | F55: Actual | G55: Actual | H55: 0.2826280457 | I55: 0.2535846667 | J55: 0.2815074681 | K55: 0.161775105 | L55: 0.1360813212 | M55: 0.232289
A56: EWE HILL | B56: Onshore_Wind | C56: Generic | D56: Generic | E56: Generic | F56: Partial | G56: Actual | H56: 0 | I56: 0 | J56: 0 | K56: 0.3333144099 | L56: 0.331848958 | M56: 0.349919
A57: FALLAGO | B57: Onshore_Wind | C57: Actual | D57: Actual | E57: Actual | F57: Actual | G57: Actual | H57: 0.5486831772 | I57: 0.4472667071 | J57: 0.5579918871 | K57: 0.4321761867 | L57: 0.494158411 | M57: 0.496703
A58: FARR WINDFARM | B58: Onshore_Wind | C58: Actual | D58: Actual | E58: Actual | F58: Actual | G58: Actual | H58: 0.4472119069 | I58: 0.3857115719 | J58: 0.4099627472 | K58: 0.3417656529 | L58: 0.3830459847 | M58: 0.392907
A59: FASNAKYLE G1 & G3 | B59: Hydro | C59: Actual | D59: Actual | E59: Actual | F59: Actual | G59: Actual | H59: 0.3536947662 | I59: 0.5748344501 | J59: 0.5315730751 | K59: 0.3097683988 | L59: 0.3816732802 | M59: 0.422314
A60: FAWLEY CHP | B60: CCGT_CHP | C60: Actual | D60: Actual | E60: Actual | F60: Actual | G60: Actual | H60: 0.6336191196 | I60: 0.7284838795 | J60: 0.5769783849 | K60: 0.6320062598 | L60: 0.7607927692 | M60: 0.664703
A61: FFESTINIOG | B61: Pumped_Storage | C61: Actual | D61: Actual | E61: Actual | F61: Actual | G61: Actual | H61: 0.05463133149 | I61: 0.04325088629 | J61: 0.03411343478 | K61: 0.05674870402 | L61: 0.04211783898 | M61: 0.046667
A62: FIDDLERS FERRY | B62: Coal | C62: Actual | D62: Actual | E62: Actual | F62: Actual | G62: Actual | H62: 0.4903738741 | I62: 0.4524352001 | J62: 0.2745909916 | K62: 0.08247804108 | L62: 0.1399084214 | M62: 0.288978
A63: FINLARIG | B63: Hydro | C63: Actual | D63: Actual | E63: Actual | F63: Actual | G63: Actual | H63: 0.5991420091 | I63: 0.5940922444 | J63: 0.6513488436 | K63: 0.4964015567 | L63: 0.5264148263 | M63: 0.573216
A64: FOYERS | B64: Pumped_Storage | C64: Actual | D64: Actual | E64: Actual | F64: Actual | G64: Actual | H64: 0.1470970594 | I64: 0.1230476579 | J64: 0.1543232897 | K64: 0.1130461724 | L64: 0.1453331594 | M64: 0.138493
A65: FREASDAIL | B65: Onshore_Wind | C65: Generic | D65: Generic | E65: Generic | F65: Partial | G65: Actual | H65: 0 | I65: 0 | J65: 0 | K65: 0.325600001 | L65: 0.3897088373 | M65: 0.366634
A66: GALAWHISTLE | B66: Onshore_Wind | C66: Generic | D66: Generic | E66: Generic | F66: Partial | G66: Actual | H66: 0 | I66: 0 | J66: 0 | K66: 0.3497646386 | L66: 0.4244553574 | M66: 0.386271
A67: GALLOPER | B67: Offshore_Wind | C67: Generic | D67: Generic | E67: Generic | F67: Generic | G67: Partial | H67: 0 | I67: 0 | J67: 0 | K67: 0 | L67: 0.54759291 | M67: 0.512877
A68: GARRY CASCADE | B68: Hydro | C68: Actual | D68: Actual | E68: Actual | F68: Actual | G68: Actual | H68: 0.5593084084 | I68: 0.6438275204 | J68: 0.6027718939 | K68: 0.610497804 | L68: 0.6000096401 | M68: 0.604426
A69: GLANDFORD BRIGG | B69: CCGT_CHP | C69: Actual | D69: Actual | E69: Actual | F69: Actual | G69: Actual | H69: 0.01567264104 | I69: 0.005400774783 | J69: 0.01819074281 | K69: 0.02768220562 | L69: 0.01841808381 | M69: 0.017427
A70: GLEN APP | B70: Onshore_Wind | C70: Generic | D70: Generic | E70: Generic | F70: Partial | G70: Actual | H70: 0 | I70: 0 | J70: 0 | K70: 0.2513732672 | L70: 0.2483932967 | M70: 0.294787
A71: GLENDOE | B71: Hydro | C71: Actual | D71: Actual | E71: Actual | F71: Actual | G71: Actual | H71: 0.3638015264 | I71: 0.3234944282 | J71: 0.348531586 | K71: 0.2386045875 | L71: 0.2401053108 | M71: 0.304044
A72: GLENMORISTON | B72: Hydro | C72: Actual | D72: Actual | E72: Actual | F72: Actual | G72: Actual | H72: 0.4445944238 | I72: 0.4874869704 | J72: 0.5069211208 | K72: 0.3467089659 | L72: 0.4439595764 | M72: 0.45868
A73: GORDONBUSH | B73: Onshore_Wind | C73: Actual | D73: Actual | E73: Actual | F73: Actual | G73: Actual | H73: 0.4655942645 | I73: 0.4779807485 | J73: 0.4771606021 | K73: 0.5041257208 | L73: 0.3417619569 | M73: 0.473579
A74: GRAIN | B74: CCGT_CHP | C74: Actual | D74: Actual | E74: Actual | F74: Actual | G74: Actual | H74: 0.4138332513 | I74: 0.440030877 | J74: 0.3978952529 | K74: 0.538226979 | L74: 0.3977553645 | M74: 0.417253
A75: GRANGEMOUTH | B75: CCGT_CHP | C75: Actual | D75: Actual | E75: Actual | F75: Actual | G75: Actual | H75: 0.5590469368 | I75: 0.6261679129 | J75: 0.5982741917 | K75: 0.5145577911 | L75: 0.5897859494 | M75: 0.582369
A76: GREAT YARMOUTH | B76: CCGT_CHP | C76: Actual | D76: Actual | E76: Actual | F76: Actual | G76: Actual | H76: 0.2074086716 | I76: 0.1866331211 | J76: 0.5989568559 | K76: 0.6351203295 | L76: 0.5015206294 | M76: 0.435962
A77: GREATER GABBARD | B77: Offshore_Wind | C77: Actual | D77: Actual | E77: Actual | F77: Actual | G77: Actual | H77: 0.4830383801 | I77: 0.4213270418 | J77: 0.5024678486 | K77: 0.431131513 | L77: 0.4649385098 | M77: 0.459703
A78: GRIFFIN WIND | B78: Onshore_Wind | C78: Actual | D78: Actual | E78: Actual | F78: Actual | G78: Actual | H78: 0.3195657591 | I78: 0.3131516292 | J78: 0.3102838967 | K78: 0.2582283141 | L78: 0.2889698681 | M78: 0.304135
A79: GUNFLEET SANDS I | B79: Offshore_Wind | C79: Actual | D79: Actual | E79: Actual | F79: Actual | G79: Actual | H79: 0.5664719297 | I79: 0.4701322658 | J79: 0.5046500838 | K79: 0.4579401502 | L79: 0.4730189619 | M79: 0.4826
A80: GUNFLEET SANDS II | B80: Offshore_Wind | C80: Actual | D80: Actual | E80: Actual | F80: Actual | G80: Actual | H80: 0.5223612568 | I80: 0.4472111569 | J80: 0.4905213083 | K80: 0.4398928867 | L80: 0.4699275453 | M80: 0.46922
A81: GWYNT Y MOR | B81: Offshore_Wind | C81: Actual | D81: Actual | E81: Actual | F81: Actual | G81: Actual | H81: 0.08003557839 | I81: 0.6161851816 | J81: 0.6312761036 | K81: 0.448323336 | L81: 0.5040305053 | M81: 0.522846
A82: HADYARD HILL | B82: Onshore_Wind | C82: Actual | D82: Actual | E82: Actual | F82: Actual | G82: Actual | H82: 0.3194883415 | I82: 0.2776354642 | J82: 0.3665265584 | K82: 0.3143636273 | L82: 0.3403750223 | M82: 0.324742
A83: HARESTANES | B83: Onshore_Wind | C83: Partial | D83: Actual | E83: Actual | F83: Actual | G83: Actual | H83: 0.2414190375 | I83: 0.2863551442 | J83: 0.2780929383 | K83: 0.225463894 | L83: 0.2901245954 | M83: 0.284858
A84: HARTLEPOOL | B84: Nuclear | C84: Actual | D84: Actual | E84: Actual | F84: Actual | G84: Actual | H84: 0.7375566747 | I84: 0.5628033303 | J84: 0.5386664678 | K84: 0.7803904798 | L84: 0.806217743 | M84: 0.693583
A85: HEYSHAM | B85: Nuclear | C85: Actual | D85: Actual | E85: Actual | F85: Actual | G85: Actual | H85: 0.7336280621 | I85: 0.6882520985 | J85: 0.7273439855 | K85: 0.7961687817 | L85: 0.8516168958 | M85: 0.75238
A86: HINKLEY POINT B | B86: Nuclear | C86: Actual | D86: Actual | E86: Actual | F86: Actual | G86: Actual | H86: 0.6886635233 | I86: 0.7014113028 | J86: 0.6764122724 | K86: 0.7122645933 | L86: 0.8346431533 | M86: 0.70078
A87: HUMBER GATEWAY | B87: Offshore_Wind | C87: Generic | D87: Partial | E87: Actual | F87: Actual | G87: Actual | H87: 0 | I87: 0.4393425991 | J87: 0.6296306249 | K87: 0.5971951448 | L87: 0.5499129597 | M87: 0.592246
A88: HUNTERSTON | B88: Nuclear | C88: Actual | D88: Actual | E88: Actual | F88: Actual | G88: Actual | H88: 0.8479526486 | I88: 0.7913683046 | J88: 0.8217859127 | K88: 0.8329393387 | L88: 0.7986444707 | M88: 0.81779
A89: IMMINGHAM | B89: CCGT_CHP | C89: Actual | D89: Actual | E89: Actual | F89: Actual | G89: Actual | H89: 0.378218755 | I89: 0.5683161276 | J89: 0.694686233 | K89: 0.7195503059 | L89: 0.6431751088 | M89: 0.635392
A90: INDIAN QUEENS | B90: Gas_Oil | C90: Actual | D90: Actual | E90: Actual | F90: Actual | G90: Actual | H90: 0.002321152968 | I90: 0.0008756849315 | J90: 0.0007227101223 | K90: 0.0008473744292 | L90: 0.0007402910959 | M90: 0.000821
A91: KEADBY | B91: CCGT_CHP | C91: Actual | D91: Generic | E91: Partial | F91: Actual | G91: Actual | H91: 6.290187308e-07 | I91: 0 | J91: 0.3518579167 | K91: 0.2860758714 | L91: 0.3869573655 | M91: 0.224345
A92: KEITH HILL | B92: Onshore_Wind | C92: Generic | D92: Generic | E92: Generic | F92: Generic | G92: Partial | H92: 0 | I92: 0 | J92: 0 | K92: 0 | L92: 0.3698577152 | M92: 0.379681
A93: KILBRAUR | B93: Onshore_Wind | C93: Actual | D93: Actual | E93: Actual | F93: Actual | G93: Actual | H93: 0.5137773121 | I93: 0.5435496149 | J93: 0.5038072105 | K93: 0.4653419035 | L93: 0.5675014925 | M93: 0.520378
A94: KILGALLIOCH | B94: Onshore_Wind | C94: Generic | D94: Generic | E94: Generic | F94: Partial | G94: Actual | H94: 0 | I94: 0 | J94: 0 | K94: 0.2527392069 | L94: 0.2532540595 | M94: 0.296862
A95: KILLIN CASCADE | B95: Hydro | C95: Actual | D95: Actual | E95: Actual | F95: Actual | G95: Actual | H95: 0.4553558716 | I95: 0.4482051922 | J95: 0.5323483019 | K95: 0.2749618298 | L95: 0.349230949 | M95: 0.417597
A96: KILLINGHOLME (POWERGEN) | B96: Gas_Oil | C96: Generic | D96: Generic | E96: Generic | F96: Generic | G96: Partial | H96: 0 | I96: 0 | J96: 0 | K96: 0 | L96: 0.005442609209 | M96: 0.003624
A97: LANGAGE | B97: CCGT_CHP | C97: Actual | D97: Actual | E97: Actual | F97: Actual | G97: Actual | H97: 0.4087485698 | I97: 0.3486289992 | J97: 0.1653103923 | K97: 0.4454126246 | L97: 0.4233680119 | M97: 0.393582
A98: LINCS WIND FARM | B98: Offshore_Wind | C98: Actual | D98: Actual | E98: Actual | F98: Actual | G98: Actual | H98: 0.4659867735 | I98: 0.4381783858 | J98: 0.4913064248 | K98: 0.4451924002 | L98: 0.5109114039 | M98: 0.467495
A99: LITTLE BARFORD | B99: CCGT_CHP | C99: Actual | D99: Actual | E99: Actual | F99: Actual | G99: Actual | H99: 0.3362859004 | I99: 0.4966440439 | J99: 0.3998289362 | K99: 0.6485966947 | L99: 0.6630672698 | M99: 0.515023
A100: LOCHLUICHART | B100: Onshore_Wind | C100: Partial | D100: Actual | E100: Actual | F100: Actual | G100: Actual | H100: 0.276728431 | I100: 0.2021030888 | J100: 0.2926628108 | K100: 0.316896893 | L100: 0.343321941 | M100: 0.317627
A101: LONDON ARRAY | B101: Offshore_Wind | C101: Actual | D101: Actual | E101: Actual | F101: Actual | G101: Actual | H101: 0.5127030112 | I101: 0.6408802365 | J101: 0.6686820334 | K101: 0.5362454766 | L101: 0.5055146403 | M101: 0.563276
A102: LYNEMOUTH | B102: Coal | C102: Generic | D102: Generic | E102: Partial | F102: Generic | G102: Actual | H102: 0 | I102: 0 | J102: 0.6801959025 | K102: 0 | L102: 0.01078322725 | M102: 0.355714
A103: MARCHWOOD | B103: CCGT_CHP | C103: Actual | D103: Actual | E103: Actual | F103: Actual | G103: Actual | H103: 0.4868446246 | I103: 0.6640208574 | J103: 0.550879364 | K103: 0.7542478217 | L103: 0.6736924249 | M103: 0.629531
A104: MARK HILL | B104: Onshore_Wind | C104: Actual | D104: Actual | E104: Actual | F104: Actual | G104: Actual | H104: 0.3028629627 | I104: 0.2679424679 | J104: 0.3402268447 | K104: 0.2196529788 | L104: 0.3109145666 | M104: 0.293907
A105: MEDWAY | B105: CCGT_CHP | C105: Actual | D105: Actual | E105: Actual | F105: Actual | G105: Actual | H105: 0.1455454874 | I105: 0.2809622568 | J105: 0.341799498 | K105: 0.3515047572 | L105: 0.3672610408 | M105: 0.324756
A106: MILLENNIUM | B106: Onshore_Wind | C106: Actual | D106: Actual | E106: Actual | F106: Actual | G106: Actual | H106: 0.5266177555 | I106: 0.5326363716 | J106: 0.4840375683 | K106: 0.4497635054 | L106: 0.5364875659 | M106: 0.514431
A107: MINNYGAP | B107: Onshore_Wind | C107: Generic | D107: Generic | E107: Generic | F107: Generic | G107: Actual | H107: 0 | I107: 0 | J107: 0 | K107: 0 | L107: 0.3099619726 | M107: 0.359716
A108: NANT | B108: Hydro | C108: Actual | D108: Actual | E108: Actual | F108: Actual | G108: Actual | H108: 0.3558834855 | I108: 0.3640404718 | J108: 0.3737878567 | K108: 0.306350137 | L108: 0.3490257534 | M108: 0.356317
A109: ORMONDE | B109: Offshore_Wind | C109: Actual | D109: Actual | E109: Actual | F109: Actual | G109: Actual | H109: 0.4965608409 | I109: 0.4287111339 | J109: 0.4719858417 | K109: 0.4121875723 | L109: 0.377161583 | M109: 0.437628
A110: PEMBROKE | B110: CCGT_CHP | C110: Actual | D110: Actual | E110: Actual | F110: Actual | G110: Actual | H110: 0.6039277983 | I110: 0.6753460103 | J110: 0.6455962688 | K110: 0.7764784209 | L110: 0.7028659689 | M110: 0.674603
A111: PEN Y CYMOEDD | B111: Onshore_Wind | C111: Generic | D111: Generic | E111: Generic | F111: Partial | G111: Actual | H111: 0 | I111: 0 | J111: 0 | K111: 0.2694464754 | L111: 0.360947784 | M111: 0.338329
A112: PETERBOROUGH | B112: CCGT_CHP | C112: Actual | D112: Actual | E112: Partial | F112: Actual | G112: Actual | H112: 0.01831117463 | I112: 0.01092922095 | J112: 0.04103173925 | K112: 0.01791374988 | L112: 0.004348863107 | M112: 0.015718
A113: PETERHEAD | B113: CCGT_CHP | C113: Actual | D113: Actual | E113: Actual | F113: Actual | G113: Actual | H113: 0.4188107012 | I113: 0.004857751998 | J113: 0.233812693 | K113: 0.4222919452 | L113: 0.6578080108 | M113: 0.358305
A114: RACE BANK | B114: Offshore_Wind | C114: Generic | D114: Generic | E114: Generic | F114: Partial | G114: Actual | H114: 0 | I114: 0 | J114: 0 | K114: 0.4530621447 | L114: 0.3819776761 | M114: 0.44352
A115: RAMPION | B115: Offshore_Wind | C115: Generic | D115: Generic | E115: Generic | F115: Generic | G115: Partial | H115: 0 | I115: 0 | J115: 0 | K115: 0 | L115: 0.4098845805 | M115: 0.466974
A116: RATCLIFFE-ON-SOAR | B116: Coal | C116: Actual | D116: Actual | E116: Actual | F116: Actual | G116: Actual | H116: 0.7174031706 | I116: 0.5617667781 | J116: 0.1968139855 | K116: 0.1546565575 | L116: 0.1937798647 | M116: 0.317454
A117: ROBIN RIGG EAST | B117: Offshore_Wind | C117: Actual | D117: Actual | E117: Actual | F117: Actual | G117: Actual | H117: 0.4675621774 | I117: 0.5532089029 | J117: 0.5197003309 | K117: 0.5050960269 | L117: 0.4255988076 | M117: 0.497453
A118: ROBIN RIGG WEST | B118: Offshore_Wind | C118: Actual | D118: Actual | E118: Actual | F118: Actual | G118: Actual | H118: 0.4806288118 | I118: 0.5341496352 | J118: 0.5608813616 | K118: 0.5153830529 | L118: 0.4739908179 | M118: 0.510054
A119: ROCKSAVAGE | B119: CCGT_CHP | C119: Actual | D119: Actual | E119: Actual | F119: Actual | G119: Actual | H119: 0.02615458495 | I119: 0.04425174756 | J119: 0.1980613207 | K119: 0.5868063204 | L119: 0.2981220769 | M119: 0.180145
A120: RYE HOUSE | B120: CCGT_CHP | C120: Actual | D120: Actual | E120: Actual | F120: Actual | G120: Actual | H120: 0.07469476339 | I120: 0.05370102181 | J120: 0.07790559998 | K120: 0.156538393 | L120: 0.1347358566 | M120: 0.095779
A121: SALTEND | B121: CCGT_CHP | C121: Actual | D121: Actual | E121: Actual | F121: Actual | G121: Actual | H121: 0.6900623076 | I121: 0.6795175073 | J121: 0.5562280896 | K121: 0.7740194296 | L121: 0.7015958414 | M121: 0.690392
A122: SANQUHAR | B122: Onshore_Wind | C122: Generic | D122: Generic | E122: Generic | F122: Generic | G122: Partial | H122: 0 | I122: 0 | J122: 0 | K122: 0 | L122: 0.3520975587 | M122: 0.373761
A123: SEABANK | B123: CCGT_CHP | C123: Actual | D123: Actual | E123: Actual | F123: Actual | G123: Actual | H123: 0.1827814991 | I123: 0.2569560281 | J123: 0.2721363181 | K123: 0.4168152491 | L123: 0.5546059184 | M123: 0.315303
A124: SELLAFIELD | B124: CCGT_CHP | C124: Actual | D124: Actual | E124: Actual | F124: Actual | G124: Actual | H124: 0.250220629 | I124: 0.1897190831 | J124: 0.2867896616 | K124: 0.1985875431 | L124: 0.1360071262 | M124: 0.212842
A125: SEVERN POWER | B125: CCGT_CHP | C125: Actual | D125: Actual | E125: Actual | F125: Actual | G125: Actual | H125: 0.3241629682 | I125: 0.2463540706 | J125: 0.1832264994 | K125: 0.644245872 | L125: 0.5569199537 | M125: 0.375812
A126: SHERINGHAM SHOAL | B126: Offshore_Wind | C126: Actual | D126: Actual | E126: Actual | F126: Actual | G126: Actual | H126: 0.4935167272 | I126: 0.4622855965 | J126: 0.5361838032 | K126: 0.4697154055 | L126: 0.5430714757 | M126: 0.499805
A127: SHOREHAM | B127: CCGT_CHP | C127: Actual | D127: Actual | E127: Actual | F127: Actual | G127: Actual | H127: 0.2075011494 | I127: 0.1022390237 | J127: 0.4895135273 | K127: 0.6898628895 | L127: 0.6429941504 | M127: 0.44667
A128: SIZEWELL B | B128: Nuclear | C128: Actual | D128: Actual | E128: Actual | F128: Actual | G128: Actual | H128: 0.8250506192 | I128: 0.8479240813 | J128: 0.9878256433 | K128: 0.8163585306 | L128: 0.733708261 | M128: 0.829778
A129: SLOY G2 & G3 | B129: Hydro | C129: Actual | D129: Actual | E129: Actual | F129: Actual | G129: Actual | H129: 0.1434708619 | I129: 0.1559413385 | J129: 0.1394388661 | K129: 0.08178171946 | L129: 0.1203030679 | M129: 0.134404
A130: SOUTH HUMBER BANK | B130: CCGT_CHP | C130: Actual | D130: Actual | E130: Actual | F130: Actual | G130: Actual | H130: 0.2433725374 | I130: 0.3446725632 | J130: 0.486753363 | K130: 0.5534194309 | L130: 0.346174226 | M130: 0.392533
A131: SPALDING | B131: CCGT_CHP | C131: Actual | D131: Actual | E131: Actual | F131: Actual | G131: Actual | H131: 0.3347996591 | I131: 0.3930919949 | J131: 0.4794074529 | K131: 0.6097475506 | L131: 0.529683071 | M131: 0.467394
A132: STAYTHORPE | B132: CCGT_CHP | C132: Actual | D132: Actual | E132: Actual | F132: Actual | G132: Actual | H132: 0.3762160886 | I132: 0.5661480523 | J132: 0.6944216016 | K132: 0.657790938 | L132: 0.5207014736 | M132: 0.581547
A133: STRATHY NORTH & SOUTH | B133: Onshore_Wind | C133: Generic | D133: Generic | E133: Partial | F133: Actual | G133: Actual | H133: 0 | I133: 0 | J133: 0.4963399751 | K133: 0.3619872362 | L133: 0.4023128394 | M133: 0.420213
A134: STRONELAIRG | B134: Onshore_Wind | C134: Generic | D134: Generic | E134: Generic | F134: Generic | G134: Partial | H134: 0 | I134: 0 | J134: 0 | K134: 0 | L134: 0.3753655317 | M134: 0.381517
A135: SUTTON BRIDGE | B135: CCGT_CHP | C135: Actual | D135: Actual | E135: Actual | F135: Actual | G135: Actual | H135: 0.09412352978 | I135: 0.1720249079 | J135: 0.1319992405 | K135: 0.3801840254 | L135: 0.2918776639 | M135: 0.198634
A136: TAYLORS LANE | B136: Gas_Oil | C136: Actual | D136: Actual | E136: Actual | F136: Actual | G136: Actual | H136: 0.0004826365107 | I136: 0.0006404823059 | J136: 0.001707707195 | K136: 0.00804706843 | L136: 0.01171229417 | M136: 0.003465
A137: THANET | B137: Offshore_Wind | C137: Actual | D137: Actual | E137: Actual | F137: Actual | G137: Actual | H137: 0.3974886115 | I137: 0.3559347333 | J137: 0.4134335849 | K137: 0.3371323577 | L137: 0.3850691967 | M137: 0.379498
A138: TODDLEBURN | B138: Onshore_Wind | C138: Actual | D138: Actual | E138: Actual | F138: Actual | G138: Actual | H138: 0.3953738543 | I138: 0.3372111252 | J138: 0.3508232483 | K138: 0.3134354196 | L138: 0.3801581464 | M138: 0.356064
A139: TORNESS | B139: Nuclear | C139: Actual | D139: Actual | E139: Actual | F139: Actual | G139: Actual | H139: 0.8646694417 | I139: 0.9149454321 | J139: 0.8577251349 | K139: 0.9799422936 | L139: 0.8644130342 | M139: 0.881343
A140: USKMOUTH | B140: Coal | C140: Actual | D140: Partial | E140: Actual | F140: Actual | G140: Actual | H140: 0.3898988396 | I140: 0.4694284272 | J140: 0.2551839866 | K140: 0.2433043505 | L140: 0.0009996773873 | M140: 0.296129
A141: WALNEY 4 | B141: Offshore_Wind | C141: Generic | D141: Generic | E141: Generic | F141: Generic | G141: Partial | H141: 0 | I141: 0 | J141: 0 | K141: 0 | L141: 0.4520329758 | M141: 0.481024
A142: WALNEY I | B142: Offshore_Wind | C142: Actual | D142: Actual | E142: Actual | F142: Actual | G142: Actual | H142: 0.5770464079 | I142: 0.5205550115 | J142: 0.5075348054 | K142: 0.4746168072 | L142: 0.5594716544 | M142: 0.529187
A143: WALNEY II | B143: Offshore_Wind | C143: Actual | D143: Actual | E143: Actual | F143: Actual | G143: Actual | H143: 0.6192190206 | I143: 0.5823549218 | J143: 0.3579876161 | K143: 0.5497270774 | L143: 0.628289775 | M143: 0.583767
A144: WALNEY III | B144: Offshore_Wind | C144: Generic | D144: Generic | E144: Generic | F144: Generic | G144: Partial | H144: 0 | I144: 0 | J144: 0 | K144: 0 | L144: 0.5017620065 | M144: 0.4976
A145: WEST BURTON | B145: Coal | C145: Actual | D145: Actual | E145: Actual | F145: Actual | G145: Actual | H145: 0.6891758728 | I145: 0.6153640203 | J145: 0.3273250677 | K145: 0.1010710748 | L145: 0.118198605 | M145: 0.353629
A146: WEST BURTON B | B146: CCGT_CHP | C146: Actual | D146: Actual | E146: Actual | F146: Actual | G146: Actual | H146: 0.3030211879 | I146: 0.4684208601 | J146: 0.5934768525 | K146: 0.5428779464 | L146: 0.6324200128 | M146: 0.534925
A147: WEST OF DUDDON SANDS | B147: Offshore_Wind | C147: Partial | D147: Actual | E147: Actual | F147: Actual | G147: Actual | H147: 0.4048096443 | I147: 0.4005057185 | J147: 0.4875397471 | K147: 0.4876906805 | L147: 0.5540340607 | M147: 0.509755
A148: WESTERMOST ROUGH | B148: Offshore_Wind | C148: Generic | D148: Partial | E148: Actual | F148: Actual | G148: Actual | H148: 0 | I148: 0.2628995643 | J148: 0.5480139128 | K148: 0.5810610725 | L148: 0.6347402266 | M148: 0.587938
A149: WHITELEE | B149: Onshore_Wind | C149: Actual | D149: Actual | E149: Actual | F149: Actual | G149: Actual | H149: 0.3510740981 | I149: 0.2981046467 | J149: 0.3187733177 | K149: 0.2728928378 | L149: 0.2963357583 | M149: 0.304405
A150: WHITELEE EXTENSION | B150: Onshore_Wind | C150: Actual | D150: Actual | E150: Actual | F150: Actual | G150: Actual | H150: 0.2701019099 | I150: 0.2777866594 | J150: 0.2676548491 | K150: 0.2352527425 | L150: 0.2516644983 | M150: 0.26314
A151: WHITESIDE HILL | B151: Onshore_Wind | C151: Generic | D151: Generic | E151: Generic | F151: Generic | G151: Partial | H151: 0 | I151: 0 | J151: 0 | K151: 0 | L151: 0.3837039536 | M151: 0.384297
A152: WILTON | B152: CCGT_CHP | C152: Actual | D152: Actual | E152: Actual | F152: Actual | G152: Actual | H152: 0.04494087565 | I152: 0.2158667001 | J152: 0.1613791697 | K152: 0.144129886 | L152: 0.1557497612 | M152: 0.153753
A153: WINDY STANDARD II | B153: Onshore_Wind | C153: Generic | D153: Generic | E153: Generic | F153: Generic | G153: Partial | H153: 0 | I153: 0 | J153: 0 | K153: 0 | L153: 0.4329812635 | M153: 0.400722

Sheet TFFF
A1: Table FFF - Generic Annual Load Factors | H1: Return to Index
B4: Technology | C4: Generic ALF
B5: Gas_Oil | C5: 0.002715
B6: Pumped_Storage | C6: 0.106826
B7: Tidal | C7: 0.189
B8: Biomass | C8: 0.268847
B9: Wave | C9: 0.31
B10: Onshore_Wind | C10: 0.384593
B11: CCGT_CHP | C11: 0.486379
B12: Hydro | C12: 0.424165
B13: Offshore_Wind | C13: 0.495519
B14: Coal | C14: 0.376162
B15: Nuclear | C15: 0.763178

Sheet TGGG
A1: Table GGG - Summary of in flight CUSC modification proposals | E1: Return to Index
B4: Name | C4: Title | D4: Effect of proposed change | E4: Possible implementation
B5: CMP280 | C5: ‘Creation of a New Generator TNUoS Demand Tariff which Removes Liability for TNUoS Demand Residual Charges from Generation and Storage Users' | D5: Change the structure of demand TNUoS charges applied to storage and, potentially other generators. | E5: April 2020
B6: CMP286 | C6: Improving TNUoS Predictability through Increased Notice of the Target Revenue used in the TNUoS Tariff Setting Process v1 | D6: Fixes target revenue to be recovered from the TNUoS setting process earlier, to provide more stability to future tariffs. | E6: April 2020
B7: CMP287 | C7: Improving TNUoS Predictability Through Increased Notice of Inputs Used in the TNUoS Tariff Setting Process. | D7: Fixes parameters associated with the TNUoS setting process earlier, to provide more stability to future tariffs. | E7: April 2020
B8: CMP292 | C8: Introducing a Section 8 cut-off date for changes to the Charging Methodologies | D8: Introduces a cut off for changes to the charging methodologies to bring more stability and predictability to following years’ charges | E8: April 2020
B9: CMP301 | C9: Clarification on the treatment of project costs associated with HVDC and subsea circuits | D9: Clarification of the legal text to ensure that it is clear that AC substation costs are not included in the circuit expansion factor calculation for HVDC and subsea circuits. We already calculate in this manner. | E9: April 2019(?), but has no immediate impact on charges
B10: CMP302 | C10: Extend the small generator discount until an enduring solution acknowledging the discrepancy between England & Wales and Scotland is implemented. | D10: Maintain a discount for 132kV connected generation, paid for by a charge on HH and NHH Demand | E10: Ofgem has approved an extension of the SGD in NGESO's licence, so this modification is unlikely to be progressed further
B11: CMP303 | C11: Improving local circuit charge cost-reflectivity | D11: Remove some of the cost of the HVDC and subsea circuits from the calculation of the local circuit, reducing the local circuit tariffs for these circuits. | E11: April 2019
B12: CMP310 | C12: CUSC section 14 changes in the event the UK leaves the EU without an agreement | D12: Modify existing references to EU regulations to reflect the changes as foreseen in the relevant Statutory Instruments. | E12: As soon as practicable following UK’s exit from the EU, in the event no agreement is in place
B13: CMP312 | C13: Correcting erroneous legal text in Section 14 following implementation of CMPs 264/5 (consequential) | D13: Address the issue caused to Generator Users liable for demand TNUoS charges which has been created through a clear error in the approved legal text for CMPs 264/5. | E13: Implemented

Sheet THHH
A1: Table HHH - Contracted generation TEC | H1: Return to Index
B4: Generator | C4: Technology | D4: Nodes | E4: Zone | F4: =TB!C4 -> 2020/21 | G4: =TB!D4 -> 2021/22 | H4: =TB!E4 -> 2022/23 | I4: =TB!F4 -> 2023/24 | J4: =TB!G4 -> 2024/25
F5: (MW) | G5: (MW) | H5: (MW) | I5: (MW) | J5: (MW)
B6: Aquind Interconnector | C6: Interconnectors | D6: LOVE40 | E6: 26 | F6: 0 | G6: 0 | H6: 2000 | I6: 2000 | J6: 2000
B7: Auchencrosh (interconnector CCT) | C7: Interconnectors | D7: AUCH20 | E7: 10 | F7: 250 | G7: 160 | H7: 500 | I7: 500 | J7: 500
B8: Britned | C8: Interconnectors | D8: GRAI40 | E8: 24 | F8: 1200 | G8: 1200 | H8: 1200 | I8: 1200 | J8: 1200
B9: East West Interconnector | C9: Interconnectors | D9: CONQ40 | E9: 16 | F9: 505 | G9: 505 | H9: 505 | I9: 505 | J9: 505
B10: ElecLink | C10: Interconnectors | D10: SELL40 | E10: 24 | F10: 1000 | G10: 1000 | H10: 1000 | I10: 1000 | J10: 1000
B11: EuroLink | C11: Interconnectors | D11: LEIS40 | E11: 18 | F11: 0 | G11: 0 | H11: 0 | I11: 0 | J11: 1600
B12: FAB Link Interconnector | C12: Interconnectors | D12: EXET40 | E12: 26 | F12: 0 | G12: 0 | H12: 0 | I12: 1400 | J12: 1400
B13: Greenlink | C13: Interconnectors | D13: PEMB40 | E13: 20 | F13: 0 | G13: 0 | H13: 500 | I13: 500 | J13: 500
B14: Gridlink Interconnector | C14: Interconnectors | D14: KINO40 | E14: 24 | F14: 0 | G14: 0 | H14: 1500 | I14: 1500 | J14: 1500
B15: IFA Interconnector | C15: Interconnectors | D15: SELL40 | E15: 24 | F15: 2000 | G15: 2000 | H15: 2000 | I15: 2000 | J15: 2000
B16: IFA2 Interconnector | C16: Interconnectors | D16: CHIL40 | E16: 26 | F16: 1100 | G16: 1100 | H16: 1100 | I16: 1100 | J16: 1100
B17: Nemo Link | C17: Interconnectors | D17: RICH40 | E17: 24 | F17: 1020 | G17: 1020 | H17: 1020 | I17: 1020 | J17: 1020
B18: NeuConnect Interconnector | C18: Interconnectors | D18: GRAI40 | E18: 24 | F18: 0 | G18: 0 | H18: 1400 | I18: 1400 | J18: 1400
B19: NorthConnect | C19: Interconnectors | D19: PEHE40 | E19: 2 | F19: 0 | G19: 0 | H19: 1400 | I19: 1400 | J19: 1400
B20: NS Link | C20: Interconnectors | D20: BLYT4A | E20: 13 | F20: 1400 | G20: 1400 | H20: 1400 | I20: 1400 | J20: 1400
B21: Viking Link Denmark Interconnector | C21: Interconnectors | D21: BICF4A | E21: 17 | F21: 0 | G21: 0 | H21: 1500 | I21: 1500 | J21: 1500
B22: Aberarder Wind Farm | C22: Wind Onshore | D22: ABED10 | E22: 1 | F22: 49.99 | G22: 49.99 | H22: 49.99 | I22: 49.99 | J22: 49.99
B23: Aberdeen Offshore Wind Farm | C23: Wind Offshore | D23: ABBA10 | E23: 10 | F23: 95.5 | G23: 95.5 | H23: 95.5 | I23: 95.5 | J23: 95.5
B24: Abergelli Power Limited | C24: OCGT | D24: SWAN20_SPM | E24: 21 | F24: 0 | G24: 0 | H24: 299 | I24: 299 | J24: 299
B25: Aberthaw | C25: Coal | D25: ABTH20 | E25: 21 | F25: 1610 | G25: 1610 | H25: 1610 | I25: 1610 | J25: 1610
B26: A'Chruach Wind Farm | C26: Wind Onshore | D26: ACHR1R | E26: 7 | F26: 43 | G26: 43 | H26: 43 | I26: 43 | J26: 43
B27: Afton | C27: Wind Onshore | D27: BLAC10 | E27: 10 | F27: 50 | G27: 50 | H27: 50 | I27: 50 | J27: 50
B28: Aigas (part of the Beauly Cascade) | C28: Hydro | D28: AIGA1Q | E28: 1 | F28: 20 | G28: 20 | H28: 20 | I28: 20 | J28: 20
B29: Aikengall II Windfarm | C29: Wind Onshore | D29: WDOD10 | E29: 11 | F29: 140 | G29: 140 | H29: 140 | I29: 140 | J29: 140
B30: Alverdiscott | C30: Pump Storage | D30: ALVE4A | E30: 27 | F30: 0 | G30: 0 | H30: 0 | I30: 49.9 | J30: 49.9
B31: An Suidhe Wind Farm, Argyll (SRO) | C31: Wind Onshore | D31: ANSU10 | E31: 7 | F31: 19.3 | G31: 19.3 | H31: 19.3 | I31: 19.3 | J31: 19.3
B32: Arecleoch | C32: Wind Onshore | D32: AREC10 | E32: 10 | F32: 114 | G32: 114 | H32: 114 | I32: 114 | J32: 114
B33: Axminster | C33: Pump Storage | D33: AXMI40_SEP | E33: 26 | F33: 0 | G33: 0 | H33: 49.9 | I33: 49.9 | J33: 49.9
B34: Bad a Cheo Wind Farm | C34: Wind Onshore | D34: MYBS11 | E34: 1 | F34: 29.9 | G34: 29.9 | H34: 29.9 | I34: 29.9 | J34: 29.9
B35: Baglan Bay | C35: CCGT | D35: BAGB20 | E35: 21 | F35: 552 | G35: 552 | H35: 593 | I35: 593 | J35: 593
B36: Barrow Offshore Wind Farm | C36: Wind Offshore | D36: HEYS40 | E36: 14 | F36: 90 | G36: 90 | H36: 90 | I36: 90 | J36: 90
B37: Barry Power Station | C37: CCGT | D37: ABTH20 | E37: 21 | F37: 235 | G37: 235 | H37: 235 | I37: 235 | J37: 235
B38: Beatrice Wind Farm | C38: Wind Offshore | D38: BLHI40 | E38: 1 | F38: 588 | G38: 588 | H38: 588 | I38: 588 | J38: 588
B39: Beaw Field Wind Farm | C39: Wind Onshore | D39: BEWF10 | E39: 1 | F39: 0 | G39: 0 | H39: 0 | I39: 72 | J39: 72
B40: Beinneun Wind Farm | C40: Wind Onshore | D40: BEIN10 | E40: 3 | F40: 109 | G40: 109 | H40: 109 | I40: 109 | J40: 109
B41: Benbrack Wind Farm | C41: Wind Onshore | D41: KEON10 | E41: 1 | F41: 0 | G41: 0 | H41: 0 | I41: 72 | J41: 72
B42: Bhlaraidh Wind Farm | C42: Wind Onshore | D42: BHLA10 | E42: 3 | F42: 108 | G42: 108 | H42: 108 | I42: 108 | J42: 108
B43: Blackcraig Wind Farm | C43: Wind Onshore | D43: BLCW10 | E43: 10 | F43: 52.9 | G43: 52.9 | H43: 52.9 | I43: 52.9 | J43: 52.9
B44: Blacklaw | C44: Wind Onshore | D44: BLKL10 | E44: 11 | F44: 118 | G44: 118 | H44: 118 | I44: 118 | J44: 118
B45: Blacklaw Extension | C45: Wind Onshore | D45: BLKX10 | E45: 11 | F45: 60 | G45: 60 | H45: 60 | I45: 60 | J45: 60
B46: Bolney | C46: Pump Storage | D46: BOLN40 | E46: 26 | F46: 49.9 | G46: 49.9 | H46: 49.9 | I46: 49.9 | J46: 49.9
B47: Braintree | C47: Pump Storage | D47: BRAI4A | E47: 24 | F47: 49.9 | G47: 49.9 | H47: 49.9 | I47: 49.9 | J47: 49.9
B48: Bramford | C48: Pump Storage | D48: BRFO40 | E48: 18 | F48: 49.9 | G48: 49.9 | H48: 49.9 | I48: 49.9 | J48: 49.9
B49: Bredbury | C49: Pump Storage | D49: BRED20 | E49: 16 | F49: 0 | G49: 0 | H49: 49.9 | I49: 49.9 | J49: 49.9
B50: Burbo Bank Extension Offshore Wind Farm | C50: Wind Offshore | D50: BODE40 | E50: 16 | F50: 254 | G50: 254 | H50: 254 | I50: 254 | J50: 254
B51: Burwell | C51: Pump Storage | D51: BURW40 | E51: 18 | F51: 0 | G51: 49.9 | H51: 49.9 | I51: 49.9 | J51: 49.9
B52: C.Gen Killingholme North Power Station | C52: CCGT | D52: KILL40 | E52: 15 | F52: 0 | G52: 540 | H52: 540 | I52: 540 | J52: 540
B53: Cairn Duhie Wind Farm | C53: Wind Onshore | D53: KNOC20 | E53: 1 | F53: 0 | G53: 0 | H53: 0 | I53: 84 | J53: 84
B54: Carraig Gheal Wind Farm | C54: Wind Onshore | D54: FERO10 | E54: 7 | F54: 46 | G54: 46 | H54: 46 | I54: 46 | J54: 46
B55: Carrington Power Station | C55: CCGT | D55: CARR40 | E55: 16 | F55: 910 | G55: 910 | H55: 910 | I55: 910 | J55: 910
B56: CDCL | C56: CCGT | D56: COTT40 | E56: 16 | F56: 445 | G56: 445 | H56: 445 | I56: 445 | J56: 445
B57: Chirmorie Wind Farm | C57: Wind Onshore | D57: MAHI10 | E57: 10 | F57: 0 | G57: 0 | H57: 80 | I57: 80 | J57: 80
B58: Clashindarroch Extension | C58: Wind Onshore | D58: CAIN20 | E58: 1 | F58: 0 | G58: 0 | H58: 0 | I58: 37.5 | J58: 37.5
B59: Cleve Hill Solar Park | C59: Wind Onshore | D59: CLEH40 | E59: 24 | F59: 0 | G59: 0 | H59: 0 | I59: 0 | J59: 350
B60: Clunie (part of the Clunie Cascade) | C60: Hydro | D60: CLUN1S | E60: 5 | F60: 61.2 | G60: 61.2 | H60: 61.2 | I60: 61.2 | J60: 61.2
B61: Clyde North | C61: Wind Onshore | D61: CLYN2Q | E61: 11 | F61: 374.5 | G61: 374.5 | H61: 374.5 | I61: 374.5 | J61: 374.5
B62: Clyde South | C62: Wind Onshore | D62: BASK20 | E62: 11 | F62: 128.8 | G62: 128.8 | H62: 128.8 | I62: 128.8 | J62: 128.8
B63: Codling Park Wind Farm | C63: Wind Offshore | D63: PENT40 | E63: 19 | F63: 0 | G63: 0 | H63: 0 | I63: 0 | J63: 1000
B64: Connahs Quay | C64: CCGT | D64: CONQ40 | E64: 16 | F64: 1380 | G64: 1380 | H64: 1380 | I64: 1380 | J64: 1380
B65: Corby | C65: CCGT | D65: GREN40_EME | E65: 18 | F65: 401 | G65: 401 | H65: 401 | I65: 401 | J65: 401
B66: Corriegarth | C66: Wind Onshore | D66: COGA10 | E66: 1 | F66: 69 | G66: 69 | H66: 69 | I66: 69 | J66: 69
B67: Corriemoillie Wind Farm | C67: Wind Onshore | D67: CORI10 | E67: 1 | F67: 47.5 | G67: 47.5 | H67: 47.5 | I67: 47.5 | J67: 47.5
B68: Coryton | C68: CCGT | D68: COSO40 | E68: 24 | F68: 800 | G68: 800 | H68: 800 | I68: 800 | J68: 800
B69: Costa Head Wind Farm | C69: Wind Onshore | D69: COST10 | E69: 1 | F69: 0 | G69: 0 | H69: 20.4 | I69: 20.4 | J69: 20.4
B70: Cour Wind Farm | C70: Wind Onshore | D70: CRSS10 | E70: 7 | F70: 20.5 | G70: 20.5 | H70: 20.5 | I70: 20.5 | J70: 20.5
B71: Coventry | C71: Pump Storage | D71: COVE20 | E71: 18 | F71: 0 | G71: 49.9 | H71: 49.9 | I71: 49.9 | J71: 49.9
B72: Cowes | C72: CCGT | D72: FAWL40 | E72: 26 | F72: 140 | G72: 140 | H72: 140 | I72: 140 | J72: 140
B73: Cowley | C73: Pump Storage | D73: COWL40 | E73: 25 | F73: 49.9 | G73: 49.9 | H73: 49.9 | I73: 49.9 | J73: 49.9
B74: CPG Power | C74: CCGT | D74: CARR40 | E74: 16 | F74: 0 | G74: 49.9 | H74: 49.9 | I74: 49.9 | J74: 49.9
B75: Creag Riabhach Wind Farm | C75: Wind Onshore | D75: CASS1Q | E75: 1 | F75: 0 | G75: 72.6 | H75: 72.6 | I75: 72.6 | J75: 72.6
B76: Crookedstane Windfarm | C76: Wind Onshore | D76: CLYS2R | E76: 11 | F76: 0 | G76: 25.4 | H76: 25.4 | I76: 25.4 | J76: 25.4
B77: Crossdykes | C77: Wind Onshore | D77: EWEH1Q | E77: 12 | F77: 46 | G77: 46 | H77: 46 | I77: 46 | J77: 46
B78: Cruachan | C78: Pump Storage | D78: CRUA20 | E78: 8 | F78: 440 | G78: 440 | H78: 440 | I78: 440 | J78: 440
B79: Crystal Rig 2 Wind Farm | C79: Wind Onshore | D79: CRYR40 | E79: 11 | F79: 138 | G79: 138 | H79: 138 | I79: 138 | J79: 138
B80: Crystal Rig 3 Wind Farm | C80: Wind Onshore | D80: CRYR40 | E80: 11 | F80: 62 | G80: 62 | H80: 62 | I80: 62 | J80: 62
B81: Culligran (part of the Beauly Cascade) | C81: Hydro | D81: CULL1Q | E81: 1 | F81: 19.1 | G81: 19.1 | H81: 19.1 | I81: 19.1 | J81: 19.1
B82: Cumberhead | C82: Wind Onshore | D82: GAWH10 | E82: 11 | F82: 50 | G82: 50 | H82: 50 | I82: 50 | J82: 50
B83: Dalquhandy Wind Farm | C83: Wind Onshore | D83: COAL10 | E83: 11 | F83: 0 | G83: 0 | H83: 45 | I83: 45 | J83: 45
B84: Damhead Creek | C84: CCGT | D84: KINO40 | E84: 24 | F84: 805 | G84: 805 | H84: 805 | I84: 805 | J84: 805
B85: Damhead Creek II | C85: CCGT | D85: KINO40 | E85: 24 | F85: 0 | G85: 1800 | H85: 1800 | I85: 1800 | J85: 1800
B86: Deanie (part of the Beauly Cascade) | C86: Hydro | D86: DEAN1Q | E86: 1 | F86: 38 | G86: 38 | H86: 38 | I86: 38 | J86: 38
B87: Deeside | C87: CCGT | D87: CONQ40 | E87: 16 | F87: 1 | G87: 1 | H87: 1 | I87: 1 | J87: 1
B88: Dersalloch Wind Farm | C88: Wind Onshore | D88: DERS1Q | E88: 10 | F88: 69 | G88: 69 | H88: 69 | I88: 69 | J88: 69
B89: Derwent | C89: CHP | D89: WILE40 | E89: 18 | F89: 162 | G89: 162 | H89: 162 | I89: 162 | J89: 162
B90: Didcot B | C90: CCGT | D90: DIDC40 | E90: 25 | F90: 1450 | G90: 1450 | H90: 1450 | I90: 1450 | J90: 1450
B91: Dinorwig | C91: Pump Storage | D91: DINO40 | E91: 19 | F91: 1644 | G91: 1644 | H91: 1644 | I91: 1644 | J91: 1644
B92: Dogger Bank Project 1 | C92: Wind Offshore | D92: CREB40 | E92: 15 | F92: 0 | G92: 0 | H92: 1200 | I92: 1200 | J92: 1200
B93: Dogger Bank Project 2 | C93: Wind Offshore | D93: CREB40 | E93: 15 | F93: 0 | G93: 0 | H93: 0 | I93: 1000 | J93: 1000
B94: Dogger Bank Project 4 | C94: Wind Offshore | D94: CREB40 | E94: 15 | F94: 0 | G94: 0 | H94: 1200 | I94: 1200 | J94: 1200
B95: Dorenell Windfarm | C95: Wind Onshore | D95: DORE11 | E95: 1 | F95: 220 | G95: 220 | H95: 220 | I95: 220 | J95: 220
B96: Douglas West | C96: Wind Onshore | D96: COAL10 | E96: 11 | F96: 0 | G96: 45 | H96: 45 | I96: 45 | J96: 45
B97: Drax (Biomass) | C97: Biomass | D97: DRAX40 | E97: 15 | F97: 1905 | G97: 1905 | H97: 1905 | I97: 1905 | J97: 1905
B98: Drax (Coal) | C98: Coal | D98: DRAX40 | E98: 15 | F98: 2001 | G98: 2001 | H98: 2001 | I98: 3126 | J98: 3126
B99: Druim Leathann | C99: Wind Onshore | D99: DRUL10 | E99: 1 | F99: 0 | G99: 0 | H99: 0 | I99: 49.7 | J99: 49.7
B100: Dudgeon Offshore Wind Farm | C100: Wind Offshore | D100: NECT40 | E100: 17 | F100: 400 | G100: 400 | H100: 400 | I100: 400 | J100: 400
B101: Dungeness B | C101: Nuclear | D101: DUNG40 | E101: 24 | F101: 1120 | G101: 1120 | H101: 1120 | I101: 1120 | J101: 1120
B102: Dunlaw Extension | C102: Wind Onshore | D102: DUNE10 | E102: 11 | F102: 29.75 | G102: 29.75 | H102: 29.75 | I102: 29.75 | J102: 29.75
B103: Dunmaglass Wind Farm | C103: Wind Onshore | D103: DUNM10 | E103: 1 | F103: 94 | G103: 94 | H103: 94 | I103: 94 | J103: 94
B104: East Anglia 3 | C104: Wind Offshore | D104: BRFO40 | E104: 18 | F104: 0 | G104: 0 | H104: 0 | I104: 1200 | J104: 1200
B105: East Anglia 6 | C105: Wind Offshore | D105: NECT40 | E105: 17 | F105: 0 | G105: 0 | H105: 0 | I105: 0 | J105: 1800
B106: East Anglia One | C106: Wind Offshore | D106: BRFO40 | E106: 18 | F106: 551 | G106: 551 | H106: 551 | I106: 551 | J106: 551
B107: Edinbane Wind, Skye | C107: Wind Onshore | D107: EDIN10 | E107: 4 | F107: 41.4 | G107: 41.4 | H107: 41.4 | I107: 41.4 | J107: 41.4
B108: Eggborough | C108: CCGT | D108: EGGB40 | E108: 15 | F108: 0 | G108: 0 | H108: 2450 | I108: 2450 | J108: 2450
B109: Elchies Wind Farm | C109: Wind Onshore | D109: ELCH10 | E109: 1 | F109: 0 | G109: 0 | H109: 0 | I109: 99 | J109: 99
B110: Elstree | C110: CCGT | D110: ELST20 | E110: 25 | F110: 0 | G110: 0 | H110: 49.5 | I110: 49.5 | J110: 49.5
B111: Energy Isles | C111: Wind Offshore | D111: KERG20 | E111: 1 | F111: 0 | G111: 0 | H111: 0 | I111: 120.3 | J111: 120.3
B112: Enfield | C112: CCGT | D112: BRIM2A_LPN | E112: 24 | F112: 415 | G112: 415 | H112: 415 | I112: 415 | J112: 415
B113: Enoch Hill | C113: Wind Onshore | D113: ENHI10 | E113: 10 | F113: 0 | G113: 0 | H113: 0 | I113: 69 | J113: 69
B114: Errochty | C114: Hydro | D114: ERRO10 | E114: 5 | F114: 75 | G114: 75 | H114: 75 | I114: 75 | J114: 75
B115: Ewe Hill | C115: Wind Onshore | D115: EWEH1Q | E115: 12 | F115: 39 | G115: 39 | H115: 39 | I115: 39 | J115: 39
B116: Exeter | C116: Pump Storage | D116: EXET40 | E116: 26 | F116: 0 | G116: 49.9 | H116: 49.9 | I116: 49.9 | J116: 49.9
B117: Fallago Rig 2 | C117: Wind Onshore | D117: FALL40 | E117: 11 | F117: 0 | G117: 41.4 | H117: 41.4 | I117: 41.4 | J117: 41.4
B118: Fallago Rig Wind Farm | C118: Wind Onshore | D118: FALL40 | E118: 11 | F118: 144 | G118: 144 | H118: 144 | I118: 144 | J118: 144
B119: Farr Wind Farm, Tomatin | C119: Wind Onshore | D119: FAAR1Q | E119: 1 | F119: 92 | G119: 92 | H119: 92 | I119: 92 | J119: 92
B120: Fasnakyle G1 & G2 | C120: Hydro | D120: FASN20 | E120: 3 | F120: 46 | G120: 46 | H120: 46 | I120: 46 | J120: 46
B121: Faw Side Community Wind Farm | C121: Wind Onshore | D121: GRNA10 | E121: 12 | F121: 0 | G121: 0 | H121: 0 | I121: 0 | J121: 200
B122: Fawley CHP | C122: CHP | D122: FAWL40 | E122: 26 | F122: 158 | G122: 158 | H122: 158 | I122: 158 | J122: 158
B123: Ferrybridge D | C123: CCGT | D123: FERR20 | E123: 15 | F123: 0 | G123: 0 | H123: 0 | I123: 1820 | J123: 1820
B124: Ffestiniog | C124: Pump Storage | D124: FFES20 | E124: 16 | F124: 360 | G124: 360 | H124: 360 | I124: 360 | J124: 360
B125: Fiddlers Ferry | C125: Coal | D125: FIDF20_ENW | E125: 15 | F125: 1987 | G125: 1987 | H125: 1987 | I125: 1987 | J125: 1987
B126: Finlarig | C126: Hydro | D126: FINL1Q | E126: 6 | F126: 16.5 | G126: 16.5 | H126: 16.5 | I126: 16.5 | J126: 16.5
B127: Firth of Forth Offshore Wind Farm 1A | C127: Wind Offshore | D127: TEAL20 | E127: 9 | F127: 0 | G127: 0 | H127: 537.5 | I127: 537.5 | J127: 537.5
B128: Firth of Forth Offshore Wind Farm 1B | C128: Wind Offshore | D128: TEAL20 | E128: 9 | F128: 0 | G128: 0 | H128: 537.5 | I128: 537.5 | J128: 537.5
B129: Firth of Forth Offshore Wind Farm 2A East & 2A West | C129: Wind Offshore | D129: BRNX40 | E129: 11 | F129: 0 | G129: 0 | H129: 0 | I129: 700 | J129: 700
B130: Firth of Forth Offshore Wind Farm 2B East & 2B West | C130: Wind Offshore | D130: BRNX40 | E130: 11 | F130: 0 | G130: 0 | H130: 0 | I130: 0 | J130: 700
B131: Foyers | C131: Pump Storage | D131: FOYE20 | E131: 1 | F131: 300 | G131: 300 | H131: 300 | I131: 300 | J131: 300
B132: Freasdail | C132: Wind Onshore | D132: CRSS10 | E132: 7 | F132: 22.2 | G132: 22.2 | H132: 22.2 | I132: 22.2 | J132: 22.2
B133: Galawhistle Wind Farm | C133: Wind Onshore | D133: GAWH10 | E133: 11 | F133: 55.2 | G133: 55.2 | H133: 55.2 | I133: 55.2 | J133: 55.2
B134: Galloper Wind Farm | C134: Wind Offshore | D134: LEIS10 | E134: 18 | F134: 348 | G134: 348 | H134: 348 | I134: 348 | J134: 348
B135: Gateway Energy Centre Power Station | C135: CCGT | D135: COSO40 | E135: 24 | F135: 0 | G135: 1096 | H135: 1096 | I135: 1096 | J135: 1096
B136: Gilston Hill Wind Farm | C136: Wind Onshore | D136: DUNE10 | E136: 11 | F136: 0 | G136: 21 | H136: 21 | I136: 21 | J136: 21
B137: Glen App Windfarm | C137: Wind Onshore | D137: AREC10 | E137: 10 | F137: 32.2 | G137: 32.2 | H137: 32.2 | I137: 32.2 | J137: 32.2
B138: Glen Kyllachy Wind Farm | C138: Wind Onshore | D138: GLKO10 | E138: 1 | F138: 0 | G138: 48.5 | H138: 48.5 | I138: 48.5 | J138: 48.5
B139: Glen Ullinish Wind Farm | C139: Wind Onshore | D139: GLNU10 | E139: 4 | F139: 0 | G139: 0 | H139: 42 | I139: 42 | J139: 42
B140: Glendoe | C140: Hydro | D140: GLDO1G | E140: 3 | F140: 99.9 | G140: 99.9 | H140: 99.9 | I140: 99.9 | J140: 99.9
B141: Glenmoriston (part of the Moriston Cascade) | C141: Hydro | D141: GLEN1Q | E141: 3 | F141: 37 | G141: 37 | H141: 37 | I141: 37 | J141: 37
B142: Glenmuckloch Pumped Storage | C142: Pump Storage | D142: BASK20 | E142: 10 | F142: 0 | G142: 0 | H142: 0 | I142: 210 | J142: 210
B143: Glenmuckloch Wind Farm | C143: Wind Onshore | D143: GLGL1Q | E143: 10 | F143: 0 | G143: 0 | H143: 33.6 | I143: 33.6 | J143: 33.6
B144: Glenshero | C144: Wind Onshore | D144: MELG10 | E144: 3 | F144: 0 | G144: 0 | H144: 168 | I144: 168 | J144: 168
B145: Gordonbush Wind Farm | C145: Wind Onshore | D145: GORW20 | E145: 1 | F145: 70 | G145: 70 | H145: 70 | I145: 108 | J145: 108
B146: Grain | C146: CCGT | D146: GRAI40 | E146: 24 | F146: 1517 | G146: 1517 | H146: 1517 | I146: 1517 | J146: 1517
B147: Grangemouth | C147: CHP | D147: GRMO20 | E147: 9 | F147: 120 | G147: 120 | H147: 120 | I147: 120 | J147: 120
B148: Great Yarmouth | C148: CCGT | D148: NORM40 | E148: 18 | F148: 405 | G148: 405 | H148: 405 | I148: 405 | J148: 405
B149: Greater Gabbard Offshore Wind Farm | C149: Wind Offshore | D149: LEIS10 | E149: 18 | F149: 500 | G149: 500 | H149: 500 | I149: 500 | J149: 500
B150: Greenwire - Alverdiscott | C150: Wind Onshore | D150: ALVE4A | E150: 27 | F150: 0 | G150: 0 | H150: 0 | I150: 1500 | J150: 1500
B151: Greenwire Wind Farm - Pentir | C151: Wind Offshore | D151: PENT40 | E151: 19 | F151: 0 | G151: 0 | H151: 0 | I151: 0 | J151: 1000
B152: Griffin Wind Farm | C152: Wind Onshore | D152: GRIF1S | E152: 5 | F152: 188.6 | G152: 188.6 | H152: 188.6 | I152: 188.6 | J152: 188.6
B153: Gunfleet Sands II Offshore Wind Farm | C153: Wind Offshore | D153: BRFO40 | E153: 18 | F153: 64 | G153: 64 | H153: 64 | I153: 64 | J153: 64
B154: Gunfleet Sands Offshore Wind Farm | C154: Wind Offshore | D154: BRFO40 | E154: 18 | F154: 99.9 | G154: 99.9 | H154: 99.9 | I154: 99.9 | J154: 99.9
B155: Gwynt Y Mor Offshore Wind Farm | C155: Wind Offshore | D155: BODE40 | E155: 16 | F155: 574 | G155: 574 | H155: 574 | I155: 574 | J155: 574
B156: Hadyard Hill | C156: Wind Onshore | D156: HADH10 | E156: 10 | F156: 99.9 | G156: 99.9 | H156: 99.9 | I156: 99.9 | J156: 99.9
B157: Halsary Wind Farm | C157: Wind Onshore | D157: SPIT10 | E157: 1 | F157: 0 | G157: 0 | H157: 0 | I157: 28.5 | J157: 28.5
B158: Harestanes | C158: Wind Onshore | D158: HARE10 | E158: 12 | F158: 125 | G158: 125 | H158: 125 | I158: 125 | J158: 125
B159: Harker | C159: Pump Storage | D159: HARK40 | E159: 12 | F159: 49.9 | G159: 49.9 | H159: 49.9 | I159: 49.9 | J159: 49.9
B160: Harryburn Wind Farm | C160: Wind Onshore | D160: ELVA2Q | E160: 11 | F160: 0 | G160: 0 | H160: 68 | I160: 68 | J160: 68
B161: Harting Rig Wind Farm | C161: Wind Onshore | D161: KYPE10 | E161: 11 | F161: 0 | G161: 0 | H161: 61.2 | I161: 61.2 | J161: 61.2
B162: Hartlepool | C162: Nuclear | D162: HATL20 | E162: 13 | F162: 1207 | G162: 1207 | H162: 1207 | I162: 1207 | J162: 1207
B163: Hatfield Power Station | C163: CCGT | D163: THOM41 | E163: 16 | F163: 0 | G163: 0 | H163: 800 | I163: 800 | J163: 800
B164: Hesta Head Wind Farm | C164: Wind Onshore | D164: HEST10 | E164: 1 | F164: 0 | G164: 0 | H164: 20.4 | I164: 20.4 | J164: 20.4
B165: Heysham Power Station | C165: Nuclear | D165: HEYS40 | E165: 14 | F165: 2400 | G165: 2400 | H165: 2400 | I165: 2400 | J165: 2400
B166: Hinkley Point B | C166: Nuclear | D166: HINP40 | E166: 26 | F166: 1061 | G166: 1061 | H166: 1061 | I166: 1061 | J166: 1061
B167: Hinkley Point C | C167: Nuclear | D167: HINP40 | E167: 26 | F167: 0 | G167: 0 | H167: 0 | I167: 0 | J167: 1670
B168: Hirwaun Power Station | C168: OCGT | D168: RHIG40 | E168: 21 | F168: 299 | G168: 299 | H168: 299 | I168: 299 | J168: 299
B169: Holyhead | C169: Biomass | D169: WYLF40 | E169: 19 | F169: 0 | G169: 150 | H169: 150 | I169: 150 | J169: 150
B170: Hopsrig Wind Farm | C170: Wind Onshore | D170: EWEH1Q | E170: 12 | F170: 0 | G170: 0 | H170: 48 | I170: 48 | J170: 48
B171: Hornsea Power Station 1A | C171: Wind Offshore | D171: KILL40 | E171: 15 | F171: 400 | G171: 400 | H171: 400 | I171: 400 | J171: 400
B172: Hornsea Power Station 1B | C172: Wind Offshore | D172: KILL40 | E172: 15 | F172: 400 | G172: 400 | H172: 400 | I172: 400 | J172: 400
B173: Hornsea Power Station 1C | C173: Wind Offshore | D173: KILL40 | E173: 15 | F173: 400 | G173: 400 | H173: 400 | I173: 400 | J173: 400
B174: Hornsea Power Station 2A | C174: Wind Offshore | D174: KILL40 | E174: 15 | F174: 440 | G174: 440 | H174: 440 | I174: 440 | J174: 440
B175: Hornsea Power Station 2B | C175: Wind Offshore | D175: KILL40 | E175: 15 | F175: 0 | G175: 440 | H175: 440 | I175: 440 | J175: 440
B176: Hornsea Power Station 2C | C176: Wind Offshore | D176: KILL40 | E176: 15 | F176: 0 | G176: 440 | H176: 440 | I176: 440 | J176: 440
B177: Hornsea Power Station 3A-1 (formerly 3A) | C177: Wind Offshore | D177: NORM40 | E177: 15 | F177: 0 | G177: 0 | H177: 0 | I177: 500 | J177: 500
B178: Hornsea Power Station 3A-2 (formerly 3B) | C178: Wind Offshore | D178: NORM40 | E178: 15 | F178: 0 | G178: 0 | H178: 0 | I178: 500 | J178: 500
B179: Hornsea Power Station Project 3B-1 (formerly 3C) | C179: Wind Offshore | D179: NORM40 | E179: 15 | F179: 0 | G179: 0 | H179: 0 | I179: 0 | J179: 500
B180: Hornsea Power Station Project 3B-2 (formerly 3D) | C180: Wind Offshore | D180: NORM40 | E180: 15 | F180: 0 | G180: 0 | H180: 0 | I180: 0 | J180: 500
B181: Humber Gateway Offshore Wind Farm | C181: Wind Offshore | D181: HEDO20 | E181: 15 | F181: 220 | G181: 220 | H181: 220 | I181: 220 | J181: 220
B182: Hunterston | C182: Nuclear | D182: HUER40 | E182: 10 | F182: 1000 | G182: 1000 | H182: 1000 | I182: 1000 | J182: 1000
B183: Hutton | C183: Pump Storage | D183: HUTT40 | E183: 14 | F183: 0 | G183: 0 | H183: 0 | I183: 49.9 | J183: 49.9
B184: Immingham | C184: CHP | D184: HUMR40 | E184: 15 | F184: 1268 | G184: 1268 | H184: 1268 | I184: 1268 | J184: 1268
B185: Inch Cape Offshore Wind Farm Platform 1 | C185: Wind Offshore | D185: COCK20 | E185: 11 | F185: 0 | G185: 0 | H185: 0 | I185: 330 | J185: 330
B186: Inch Cape Offshore Wind Farm Platform 2 | C186: Wind Offshore | D186: COCK20 | E186: 11 | F186: 0 | G186: 0 | H186: 0 | I186: 370 | J186: 370
B187: Indian Queens | C187: OCGT | D187: INDQ40 | E187: 27 | F187: 140 | G187: 140 | H187: 140 | I187: 189.9 | J187: 189.9
B188: Invergarry (part of the Garry Cascade) | C188: Hydro | D188: INGA1Q | E188: 3 | F188: 20 | G188: 20 | H188: 20 | I188: 20 | J188: 20
B189: Iver | C189: Pump Storage | D189: IVER4A | E189: 25 | F189: 0 | G189: 0 | H189: 0 | I189: 49.9 | J189: 49.9
B190: J G Pears | C190: CHP | D190: HIGM20 | E190: 16 | F190: 30 | G190: 30 | H190: 30 | I190: 30 | J190: 30
B191: Keadby | C191: CCGT | D191: KEAD40 | E191: 16 | F191: 755 | G191: 755 | H191: 755 | I191: 755 | J191: 755
B192: Keadby II | C192: CCGT | D192: KEAD40 | E192: 16 | F192: 852 | G192: 852 | H192: 852 | I192: 852 | J192: 852
B193: Kearsley | C193: Pump Storage | D193: KEAR40 | E193: 15 | F193: 0 | G193: 0 | H193: 49.9 | I193: 49.9 | J193: 49.9
B194: Keith Hill Wind Farm | C194: Wind Onshore | D194: DUNE10 | E194: 11 | F194: 4.5 | G194: 4.5 | H194: 4.5 | I194: 4.5 | J194: 4.5
B195: Kemsley Battery | C195: Pump Storage | D195: KEMS40 | E195: 24 | F195: 49.9 | G195: 49.9 | H195: 49.9 | I195: 49.9 | J195: 49.9
B196: Kennoxhead Wind Farm | C196: Wind Onshore | D196: COAL10 | E196: 11 | F196: 0 | G196: 0 | H196: 0 | I196: 59.8 | J196: 59.8
B197: Kennoxhead Wind Farm Extension | C197: Wind Onshore | D197: MIDM10 | E197: 11 | F197: 0 | G197: 60 | H197: 60 | I197: 60 | J197: 60
B198: Kilbraur Wind Farm | C198: Wind Onshore | D198: STRB20 | E198: 1 | F198: 67 | G198: 67 | H198: 67 | I198: 67 | J198: 67
B199: Kilgallioch | C199: Wind Onshore | D199: KILG20 | E199: 10 | F199: 228 | G199: 228 | H199: 502 | I199: 502 | J199: 502
B200: Killingholme | C200: OCGT | D200: KILL40 | E200: 15 | F200: 600 | G200: 600 | H200: 600 | I200: 600 | J200: 600
B201: Kilmorack (part of the Beauly Cascade) | C201: Hydro | D201: KIOR1Q | E201: 1 | F201: 20 | G201: 20 | H201: 20 | I201: 20 | J201: 20
B202: Kings Lynn A | C202: CCGT | D202: WALP40_EME | E202: 17 | F202: 380 | G202: 380 | H202: 380 | I202: 380 | J202: 380
... 132 more rows

Sheet TIII
A1: Table III - Contracted TEC by generation zone | H1: Return to Index
B4: Zone | C4: Zone Name | D4: =TB!C4 -> 2020/21 | E4: =TB!D4 -> 2021/22 | F4: =TB!E4 -> 2022/23 | G4: =TB!F4 -> 2023/24 | H4: =TB!G4 -> 2024/25
D5: (MW) | E5: (MW) | F5: (MW) | G5: (MW) | H5: (MW)
B6: 1 | C6: North Scotland | D6: =SUMIF(THHH!$E:$E,$B6,THHH!F:F) -> 2021.8 | E6: =SUMIF(THHH!$E:$E,$B6,THHH!G:G) -> 2213.9 | F6: =SUMIF(THHH!$E:$E,$B6,THHH!H:H) -> 2585.3 | G6: =SUMIF(THHH!$E:$E,$B6,THHH!I:I) -> 4341.9 | H6: =SUMIF(THHH!$E:$E,$B6,THHH!J:J) -> 4856.3
B7: 2 | C7: East Aberdeenshire | D7: =SUMIF(THHH!$E:$E,$B7,THHH!F:F) -> 1260 | E7: =SUMIF(THHH!$E:$E,$B7,THHH!G:G) -> 2080 | F7: =SUMIF(THHH!$E:$E,$B7,THHH!H:H) -> 3480 | G7: =SUMIF(THHH!$E:$E,$B7,THHH!I:I) -> 3480 | H7: =SUMIF(THHH!$E:$E,$B7,THHH!J:J) -> 3480
B8: 3 | C8: Western Highlands | D8: =SUMIF(THHH!$E:$E,$B8,THHH!F:F) -> 712.7 | E8: =SUMIF(THHH!$E:$E,$B8,THHH!G:G) -> 737.7 | F8: =SUMIF(THHH!$E:$E,$B8,THHH!H:H) -> 905.7 | G8: =SUMIF(THHH!$E:$E,$B8,THHH!I:I) -> 905.7 | H8: =SUMIF(THHH!$E:$E,$B8,THHH!J:J) -> 905.7
B9: 4 | C9: Skye and Lochalsh | D9: =SUMIF(THHH!$E:$E,$B9,THHH!F:F) -> 41.4 | E9: =SUMIF(THHH!$E:$E,$B9,THHH!G:G) -> 41.4 | F9: =SUMIF(THHH!$E:$E,$B9,THHH!H:H) -> 83.4 | G9: =SUMIF(THHH!$E:$E,$B9,THHH!I:I) -> 233.4 | H9: =SUMIF(THHH!$E:$E,$B9,THHH!J:J) -> 233.4
B10: 5 | C10: Eastern Grampian and Tayside | D10: =SUMIF(THHH!$E:$E,$B10,THHH!F:F) -> 324.8 | E10: =SUMIF(THHH!$E:$E,$B10,THHH!G:G) -> 324.8 | F10: =SUMIF(THHH!$E:$E,$B10,THHH!H:H) -> 324.8 | G10: =SUMIF(THHH!$E:$E,$B10,THHH!I:I) -> 324.8 | H10: =SUMIF(THHH!$E:$E,$B10,THHH!J:J) -> 324.8
B11: 6 | C11: Central Grampian | D11: =SUMIF(THHH!$E:$E,$B11,THHH!F:F) -> 63.5 | E11: =SUMIF(THHH!$E:$E,$B11,THHH!G:G) -> 63.5 | F11: =SUMIF(THHH!$E:$E,$B11,THHH!H:H) -> 63.5 | G11: =SUMIF(THHH!$E:$E,$B11,THHH!I:I) -> 63.5 | H11: =SUMIF(THHH!$E:$E,$B11,THHH!J:J) -> 63.5
B12: 7 | C12: Argyll | D12: =SUMIF(THHH!$E:$E,$B12,THHH!F:F) -> 166 | E12: =SUMIF(THHH!$E:$E,$B12,THHH!G:G) -> 166 | F12: =SUMIF(THHH!$E:$E,$B12,THHH!H:H) -> 166 | G12: =SUMIF(THHH!$E:$E,$B12,THHH!I:I) -> 166 | H12: =SUMIF(THHH!$E:$E,$B12,THHH!J:J) -> 166
B13: 8 | C13: The Trossachs | D13: =SUMIF(THHH!$E:$E,$B13,THHH!F:F) -> 520 | E13: =SUMIF(THHH!$E:$E,$B13,THHH!G:G) -> 520 | F13: =SUMIF(THHH!$E:$E,$B13,THHH!H:H) -> 520 | G13: =SUMIF(THHH!$E:$E,$B13,THHH!I:I) -> 520 | H13: =SUMIF(THHH!$E:$E,$B13,THHH!J:J) -> 520
B14: 9 | C14: Stirlingshire and Fife | D14: =SUMIF(THHH!$E:$E,$B14,THHH!F:F) -> 120 | E14: =SUMIF(THHH!$E:$E,$B14,THHH!G:G) -> 120 | F14: =SUMIF(THHH!$E:$E,$B14,THHH!H:H) -> 1195 | G14: =SUMIF(THHH!$E:$E,$B14,THHH!I:I) -> 1195 | H14: =SUMIF(THHH!$E:$E,$B14,THHH!J:J) -> 1195
B15: 10 | C15: South West Scotland | D15: =SUMIF(THHH!$E:$E,$B15,THHH!F:F) -> 2837.6 | E15: =SUMIF(THHH!$E:$E,$B15,THHH!G:G) -> 3033.6 | F15: =SUMIF(THHH!$E:$E,$B15,THHH!H:H) -> 4052.2 | G15: =SUMIF(THHH!$E:$E,$B15,THHH!I:I) -> 4635.7 | H15: =SUMIF(THHH!$E:$E,$B15,THHH!J:J) -> 4635.7
B16: 11 | C16: Lothian and Borders | D16: =SUMIF(THHH!$E:$E,$B16,THHH!F:F) -> 3199.35 | E16: =SUMIF(THHH!$E:$E,$B16,THHH!G:G) -> 3392.15 | F16: =SUMIF(THHH!$E:$E,$B16,THHH!H:H) -> 3623.35 | G16: =SUMIF(THHH!$E:$E,$B16,THHH!I:I) -> 5083.15 | H16: =SUMIF(THHH!$E:$E,$B16,THHH!J:J) -> 5934.35
B17: 12 | C17: Solway and Cheviot | D17: =SUMIF(THHH!$E:$E,$B17,THHH!F:F) -> 468.9 | E17: =SUMIF(THHH!$E:$E,$B17,THHH!G:G) -> 468.9 | F17: =SUMIF(THHH!$E:$E,$B17,THHH!H:H) -> 516.9 | G17: =SUMIF(THHH!$E:$E,$B17,THHH!I:I) -> 1052.9 | H17: =SUMIF(THHH!$E:$E,$B17,THHH!J:J) -> 1252.9
B18: 13 | C18: North East England | D18: =SUMIF(THHH!$E:$E,$B18,THHH!F:F) -> 3429 | E18: =SUMIF(THHH!$E:$E,$B18,THHH!G:G) -> 3454 | F18: =SUMIF(THHH!$E:$E,$B18,THHH!H:H) -> 4304 | G18: =SUMIF(THHH!$E:$E,$B18,THHH!I:I) -> 4353.9 | H18: =SUMIF(THHH!$E:$E,$B18,THHH!J:J) -> 5203.9
B19: 14 | C19: North Lancashire and The Lakes | D19: =SUMIF(THHH!$E:$E,$B19,THHH!F:F) -> 4201 | E19: =SUMIF(THHH!$E:$E,$B19,THHH!G:G) -> 4201 | F19: =SUMIF(THHH!$E:$E,$B19,THHH!H:H) -> 4201 | G19: =SUMIF(THHH!$E:$E,$B19,THHH!I:I) -> 4250.9 | H19: =SUMIF(THHH!$E:$E,$B19,THHH!J:J) -> 4250.9
B20: 15 | C20: South Lancashire, Yorkshire and Humber | D20: =SUMIF(THHH!$E:$E,$B20,THHH!F:F) -> 12292.5 | E20: =SUMIF(THHH!$E:$E,$B20,THHH!G:G) -> 13762.4 | F20: =SUMIF(THHH!$E:$E,$B20,THHH!H:H) -> 18662.3 | G20: =SUMIF(THHH!$E:$E,$B20,THHH!I:I) -> 24207.3 | H20: =SUMIF(THHH!$E:$E,$B20,THHH!J:J) -> 25807.3
B21: 16 | C21: North Midlands and North Wales | D21: =SUMIF(THHH!$E:$E,$B21,THHH!F:F) -> 15647.5 | E21: =SUMIF(THHH!$E:$E,$B21,THHH!G:G) -> 15697.4 | F21: =SUMIF(THHH!$E:$E,$B21,THHH!H:H) -> 16547.3 | G21: =SUMIF(THHH!$E:$E,$B21,THHH!I:I) -> 16547.3 | H21: =SUMIF(THHH!$E:$E,$B21,THHH!J:J) -> 16547.3
B22: 17 | C22: South Lincolnshire and North Norfolk | D22: =SUMIF(THHH!$E:$E,$B22,THHH!F:F) -> 4845.99 | E22: =SUMIF(THHH!$E:$E,$B22,THHH!G:G) -> 5396 | F22: =SUMIF(THHH!$E:$E,$B22,THHH!H:H) -> 8645.9 | G22: =SUMIF(THHH!$E:$E,$B22,THHH!I:I) -> 8645.9 | H22: =SUMIF(THHH!$E:$E,$B22,THHH!J:J) -> 10445.9
B23: 18 | C23: Mid Wales and The Midlands | D23: =SUMIF(THHH!$E:$E,$B23,THHH!F:F) -> 9276.6 | E23: =SUMIF(THHH!$E:$E,$B23,THHH!G:G) -> 9724.9 | F23: =SUMIF(THHH!$E:$E,$B23,THHH!H:H) -> 10173.2 | G23: =SUMIF(THHH!$E:$E,$B23,THHH!I:I) -> 11373.2 | H23: =SUMIF(THHH!$E:$E,$B23,THHH!J:J) -> 12973.2
B24: 19 | C24: Anglesey and Snowdon | D24: =SUMIF(THHH!$E:$E,$B24,THHH!F:F) -> 1644 | E24: =SUMIF(THHH!$E:$E,$B24,THHH!G:G) -> 1794 | F24: =SUMIF(THHH!$E:$E,$B24,THHH!H:H) -> 1794 | G24: =SUMIF(THHH!$E:$E,$B24,THHH!I:I) -> 1794 | H24: =SUMIF(THHH!$E:$E,$B24,THHH!J:J) -> 3794
B25: 20 | C25: Pembrokeshire | D25: =SUMIF(THHH!$E:$E,$B25,THHH!F:F) -> 2199 | E25: =SUMIF(THHH!$E:$E,$B25,THHH!G:G) -> 2199 | F25: =SUMIF(THHH!$E:$E,$B25,THHH!H:H) -> 3049 | G25: =SUMIF(THHH!$E:$E,$B25,THHH!I:I) -> 3049 | H25: =SUMIF(THHH!$E:$E,$B25,THHH!J:J) -> 3049
B26: 21 | C26: South Wales & Gloucester | D26: =SUMIF(THHH!$E:$E,$B26,THHH!F:F) -> 4373.9 | E26: =SUMIF(THHH!$E:$E,$B26,THHH!G:G) -> 4373.9 | F26: =SUMIF(THHH!$E:$E,$B26,THHH!H:H) -> 4713.9 | G26: =SUMIF(THHH!$E:$E,$B26,THHH!I:I) -> 4713.9 | H26: =SUMIF(THHH!$E:$E,$B26,THHH!J:J) -> 4713.9
B27: 22 | C27: Cotswold | D27: =SUMIF(THHH!$E:$E,$B27,THHH!F:F) -> 1234 | E27: =SUMIF(THHH!$E:$E,$B27,THHH!G:G) -> 1283.9 | F27: =SUMIF(THHH!$E:$E,$B27,THHH!H:H) -> 1283.9 | G27: =SUMIF(THHH!$E:$E,$B27,THHH!I:I) -> 1283.9 | H27: =SUMIF(THHH!$E:$E,$B27,THHH!J:J) -> 1283.9
B28: 23 | C28: Central London | D28: =SUMIF(THHH!$E:$E,$B28,THHH!F:F) -> 144 | E28: =SUMIF(THHH!$E:$E,$B28,THHH!G:G) -> 144 | F28: =SUMIF(THHH!$E:$E,$B28,THHH!H:H) -> 144 | G28: =SUMIF(THHH!$E:$E,$B28,THHH!I:I) -> 144 | H28: =SUMIF(THHH!$E:$E,$B28,THHH!J:J) -> 144
B29: 24 | C29: Essex and Kent | D29: =SUMIF(THHH!$E:$E,$B29,THHH!F:F) -> 12956.8 | E29: =SUMIF(THHH!$E:$E,$B29,THHH!G:G) -> 15902.7 | F29: =SUMIF(THHH!$E:$E,$B29,THHH!H:H) -> 19192.2 | G29: =SUMIF(THHH!$E:$E,$B29,THHH!I:I) -> 19192.2 | H29: =SUMIF(THHH!$E:$E,$B29,THHH!J:J) -> 19542.2
B30: 25 | C30: Oxfordshire, Surrey and Sussex | D30: =SUMIF(THHH!$E:$E,$B30,THHH!F:F) -> 2319.9 | E30: =SUMIF(THHH!$E:$E,$B30,THHH!G:G) -> 2369.4 | F30: =SUMIF(THHH!$E:$E,$B30,THHH!H:H) -> 2468.8 | G30: =SUMIF(THHH!$E:$E,$B30,THHH!I:I) -> 2518.7 | H30: =SUMIF(THHH!$E:$E,$B30,THHH!J:J) -> 2518.7
B31: 26 | C31: Somerset and Wessex | D31: =SUMIF(THHH!$E:$E,$B31,THHH!F:F) -> 3478.8 | E31: =SUMIF(THHH!$E:$E,$B31,THHH!G:G) -> 3528.7 | F31: =SUMIF(THHH!$E:$E,$B31,THHH!H:H) -> 5578.6 | G31: =SUMIF(THHH!$E:$E,$B31,THHH!I:I) -> 7028.5 | H31: =SUMIF(THHH!$E:$E,$B31,THHH!J:J) -> 8748.4
B32: 27 | C32: West Devon and Cornwall | D32: =SUMIF(THHH!$E:$E,$B32,THHH!F:F) -> 1045 | E32: =SUMIF(THHH!$E:$E,$B32,THHH!G:G) -> 1045 | F32: =SUMIF(THHH!$E:$E,$B32,THHH!H:H) -> 1094.9 | G32: =SUMIF(THHH!$E:$E,$B32,THHH!I:I) -> 2694.7 | H32: =SUMIF(THHH!$E:$E,$B32,THHH!J:J) -> 2694.7

Sheet TJJJ TKKK TLLL
A1: Tables JJJ, KKK & LLL - Revenue breakdown | H1: Return to Index | T1: Return to Index
D3: National Grid Electricity Transmission | I3: NGESO TNUoS Pass-Through | J3: Scottish Power Transmission | O3: SHE Transmission
A4: Description | T4: Notes
A5: Regulatory Year | C5: Licence Term | D5: 2020/21 | E5: 2021/22 | F5: 2022/23 | G5: 2023/24 | H5: 2024/25 | I5: NGESO TNUoS 2020/21 only | J5: 2020/21 | K5: 2021/22 | L5: 2022/23 | M5: 2023/24 | N5: 2024/25 | O5: 2020/21 | P5: 2021/22 | Q5: 2022/23 | R5: 2023/24 | S5: 2024/25
A6: Base Revenue [A=(A1+A2+A3)*A4] | B6: A | C6: BRt | D6: 1726.792542 | E6: 1778.62118 | F6: 1832.005423 | G6: 1886.991962 | H6: 1943.62889 | I6: 0 | J6: 346.9582048 | K6: 363.7458938 | L6: 369.8625323 | M6: 391.4883843 | N6: 391.52652 | O6: 280.5402 | P6: 372.5828647 | Q6: 383.4803693 | R6: 393.7529004 | S6: 393.7529004
A7: Pass-Through Items [B=B1+B2+B3+B4+B5+B6+B7+B8+B9+B10] | B7: B | C7: PTt | D7: 26.32098312 | E7: 27.11099157 | F7: 27.92471165 | G7: 28.76285505 | H7: 29.62615482 | I7: 0.5593661911 | J7: 4.2464688 | K7: 4.046103352 | L7: 3.692008206 | M7: 0 | N7: 0 | O7: 26 | P7: 0 | Q7: 0 | R7: 0 | S7: 0
A8: Outputs Incentive Revenue [C=C1+C2+C3+C4] | B8: C | C8: OIPt | D8: 15.89113505 | E8: 16.36809789 | F8: 16.85937649 | G8: 17.36540052 | H8: 17.88661256 | I8: 0 | J8: 3.05412235 | K8: 3.102281486 | L8: 3.150479029 | M8: 0 | N8: 0 | O8: 1.9 | P8: 1.9 | Q8: 1.9 | R8: 1.9 | S8: 1.9
A9: Network Innovation Allowance | B9: D | C9: NIAt | I9: 2.95891429 | J9: 1.08 | K9: 0 | L9: 0 | M9: 0 | O9: 0.9 | P9: 0.9 | Q9: 0.9 | R9: 0.9 | S9: 0.9 | T9: Forecast
A10: Network Innovation Competition | B10: E | C10: NICFt | I10: 31.58627 | T10: Forecast
A11: Transmission Investment for Renewable Generation | B11: G | C11: TIRGt | J11: 26.27780938 | K11: 26.16596237 | L11: 0 | M11: 0 | O11: 82.3 | P11: 0 | Q11: 0 | R11: 0 | S11: 0 | T11: Forecast
A12: TO Adjustments and Correction | B12: H+I+K | C12: DISt+TSt+Kt | D12: 13.38409805 | I12: 0 | O12: -30 | T12: Forecast
A13: Financial Facilities | B13: J | C13: FINt | D13: -6.34 | I13: =-1*D13 -> 6.34 | T13: Forecast
A14: Maximum Revenue [M= A+B+C+D+E+F+G+H+I+K+J] | B14: M | C14: TOt | D14: =D6+D7+D8+SUM(D9:D12) -> 1782.388758 | E14: =E6+E7+E8+SUM(E9:E12) -> 1822.100269 | F14: =F6+F7+F8+SUM(F9:F12) -> 1876.789511 | G14: =G6+G7+G8+SUM(G9:G12) -> 1933.120218 | H14: =H6+H7+H8+SUM(H9:H12) -> 1991.141657 | I14: =I6+I7+I8+SUM(I9:I13) -> 41.44455048 | J14: =J6+J7+J8+SUM(J9:J12) -> 381.6166053 | K14: 397.060241 | L14: 376.7050196 | M14: 391.4883843 | N14: 391.52652 | O14: 361.6402 | P14: 375.3828647 | Q14: 386.2803693 | R14: 396.5529004 | S14: 396.5529004
A15: Pre-vesting connection charges | B15: S1 | D15: 30.3 | E15: 30.2 | F15: 30.2 | G15: 30.2 | H15: 30.2 | T15: Forecast
A16: Rental Site | B16: S2 | D16: 0.7 | E16: 0.598 | F16: =E16 -> 0.598 | G16: =F16 -> 0.598 | H16: 0.598 | T16: Forecast
A17: Post Vesting, Pre-BETTA connection charges | B17: S | J17: 12.87663392 | K17: 12.87663392 | L17: 12.87663392 | M17: 12.87663392 | N17: =M17 -> 12.87663392 | O17: 3.4 | P17: 3.4 | Q17: 3.4 | R17: 3.4 | S17: 3.4 | T17: Forecast
A18: TNUoS Collected Revenue onshore TO [T=M-B5-S] | B18: T | D18: =D14-D15-D16 -> 1751.388758 | E18: =E14-E15-E16 -> 1791.302269 | F18: =F14-F15-F16 -> 1845.991511 | G18: 1902.322218 | H18: 1960.343657 | I18: =I14-I15 -> 41.44455048 | J18: =J14-J17 -> 368.7399714 | K18: =K14-K17 -> 384.1836071 | L18: 363.8283856 | M18: 378.6117504 | N18: 378.6498861 | O18: =O14-O17 -> 358.2402 | P18: =P14-P17 -> 371.9828647 | Q18: 382.8803693 | R18: 393.1529004 | S18: =R18 -> 393.1529004
A19: Offshore Transmission & Interconnector Cap&Floor Pass-through | D19: 431.0063053 | E19: 494.2992332 | F19: 543.2256492 | G19: 608.6255361 | H19: 685.5929705
J22: 2020/21 | K22: 2021/22 | L22: 2022/23 | M22: 2023/24 | N22: 2024/25
I23: Total | J23: =D18+D19+$I$18+J18+O18 -> 2950.819785 | K23: =E18+E19+$I$18+K18+P18 -> 3083.212525 | L23: 3177.370466 | M23: 3324.156955 | N23: 3459.183964
A26: Notes
A27: All monies are nominal 'money of the day' prices unless stated otherwise
A28: Licensee forecasts and budgets are subject to change especially where they are influenced by external stakeholders
A29: Greyed out cells are either calculated or not applicable in the year concerned due to the way the licence formula are constructed
A30: NIC payments are not included as they do not form part of TOs Maximum Revenue
A32: Commentary
A33: All reasonable care has been taken in the preparation of these illustrative tables and the data therein.
A34: TOs offer this data without prejudice and cannot be held responsible for any loss that might be attributed to the use of this data.
A35: TOs do not accept or assume responsibility for the use of this information by any person or any person to whom this information is shown or any person to whom this information otherwise becomes available.
A36: The base revenue forecasts for the RIIO-ET2 period (2021/22 to 2024/25, inclusive) do not reflect RIIO-T2 framework.
A37: Within the bounds of commercial confidentiality, this forecast provides as much information as possible.
A39: This forecast contains as much information as can be currently made available.
A42: This respects commercial confidentiality and disclosure considerations.
A44: All £ figures are in money of the day
A46: Information provided in £m to one decimal place

Sheet TMMM
A1: Table MMM - Offshore Transmission Revenue Forecast | H1: Return to Index
B4: Offshore Transmission Revenue Forecast | C4: 2019-03-25
L5: Notes
B6: Regulatory Year | C6: 2014/15 | D6: 2015/16 | E6: 2016/17 | F6: 2017/18 | G6: =TB!C4 -> 2020/21 | H6: =TB!D4 -> 2021/22 | I6: =TB!E4 -> 2022/23 | J6: =TB!F4 -> 2023/24 | K6: =TB!G4 -> 2024/25
B7: Barrow | C7: =#REF! ->  | D7: =#REF! ->  | E7: =#REF! ->  | F7: =#REF! ->  | G7: 6.349224711 | H7: 6.542612764 | I7: 6.738974581 | J7: 6.941143818 | K7: 6.593669513 | L7: Current revenues plus indexation
B8: Gunfleet | C8: =#REF! ->  | D8: =#REF! ->  | E8: =#REF! ->  | F8: =#REF! ->  | G8: 7.945185432 | H8: 8.187151804 | I8: 8.432872702 | J8: 8.685858883 | K8: 8.514554194 | L8: Current revenues plus indexation
B9: Walney 1 | C9: =#REF! ->  | D9: =#REF! ->  | E9: =#REF! ->  | F9: =#REF! ->  | G9: 14.4751148 | H9: 14.91599192 | I9: 15.36366271 | J9: 15.82457259 | K9: 15.07264377 | L9: Current revenues plus indexation
B10: Robin Rigg | C10: =#REF! ->  | D10: =#REF! ->  | E10: =#REF! ->  | F10: =#REF! ->  | G10: 8.941765073 | H10: 9.21412707 | I10: 9.490667846 | J10: 9.775387882 | K10: 9.160849458 | L10: Current revenues plus indexation
B11: Walney 2 | C11: =#REF! ->  | D11: =#REF! ->  | E11: =#REF! ->  | F11: =#REF! ->  | G11: 14.98214198 | H11: 15.43838024 | I11: 15.90173427 | J11: 16.3787863 | K11: 15.91441935 | L11: Current revenues plus indexation
B12: Sheringham Shoal | C12: =#REF! ->  | D12: =#REF! ->  | E12: =#REF! ->  | F12: =#REF! ->  | G12: 22.063614 | H12: 22.73549223 | I12: 23.41785575 | J12: 24.12039142 | K12: 23.65922556 | L12: Current revenues plus indexation
B13: Ormonde | C13: =#REF! ->  | D13: =#REF! ->  | E13: =#REF! ->  | F13: =#REF! ->  | G13: 13.4011102 | H13: 13.80922524 | I13: 14.22368188 | J13: 14.65039234 | K13: 14.63535775 | L13: Current revenues plus indexation
B14: Greater Gabbard | C14: =#REF! ->  | D14: =#REF! ->  | E14: =#REF! ->  | F14: =#REF! ->  | G14: 30.17221227 | H14: 31.09115193 | I14: 32.02428667 | J14: 32.98501527 | K14: 32.31686156 | L14: Current revenues plus indexation
B15: London Array | C15: =#REF! ->  | D15: =#REF! ->  | E15: =#REF! ->  | F15: =#REF! ->  | G15: 42.56732305 | H15: 43.84746577 | I15: 45.15688764 | J15: 46.51159427 | K15: 47.9069421 | L15: Current revenues plus indexation
B16: Thanet | C16: =#REF! ->  | D16: =#REF! ->  | E16: =#REF! ->  | F16: =#REF! ->  | G16: 19.73631807 | H16: 19.93830744 | I16: 20.53671881 | J16: 21.15282037 | K16: 21.77624754 | L16: Current revenues plus indexation
B17: Lincs | D17: =#REF! ->  | E17: =#REF! ->  | F17: =#REF! ->  | G17: 28.53603459 | H17: 29.39417799 | I17: 30.27202321 | J17: 31.1801839 | K17: 32.11558942 | L17: Current revenues plus indexation
B18: Gwynt y mor | D18: =#REF! ->  | E18: =#REF! ->  | F18: =#REF! ->  | G18: 29.00598316 | H18: 29.87822192 | I18: 30.77057456 | J18: 31.6936918 | K18: 32.64450255 | L18: Current revenues plus indexation
B19: West of Duddon Sands | D19: =#REF! ->  | E19: =#REF! ->  | F19: =#REF! ->  | G19: 23.22471614 | H19: 23.92310147 | I19: 24.63760349 | J19: 25.3767316 | K19: 26.13803354 | L19: Current revenues plus indexation
B20: Humber Gateway | E20: =#REF! ->  | F20: =#REF! ->  | G20: 12.32626557 | H20: 12.69687936 | I20: 13.07615713 | J20: 13.46844184 | K20: 13.8724951 | L20: Current revenues plus indexation
B21: Westermost Rough | F21: =#REF! ->  | G21: 13.40442645 | H21: 13.80747896 | I21: 14.21990208 | J21: 14.64649915 | K21: 15.08589412 | L21: Current revenues plus indexation
B22: Burbo Bank | G22: 13.38800313 | H22: 13.79054492 | I22: 14.20248577 | J22: 14.62856034 | K22: 15.06741716 | L22: Current revenues plus indexation
B23: Dudgeon | G23: 18.93051652 | H23: 19.49970588 | I23: 20.08218809 | J23: 20.68465373 | K23: 21.30519334 | L23: Current revenues plus indexation
B24: ="Forecast to asset transfer to OFTO in 2019/20" -> Forecast to asset transfer to OFTO in 2019/20 | G24: 74.26733065 | H24: 76.48553198 | I24: 78.78009794 | J24: 81.14350087 | K24: 83.5778059 | L24: National Grid Forecast
B25: ="Forecast to asset transfer to OFTO in "&TB!C4 -> Forecast to asset transfer to OFTO in 2020/21 | G25: 48.0890195 | H25: 87.62960318 | I25: 90.25849127 | J25: 92.96624601 | K25: 95.75523339 | L25: National Grid Forecast
B26: ="Forecast to asset transfer to OFTO in "&TB!D4 -> Forecast to asset transfer to OFTO in 2021/22 | H26: 14.47408112 | I26: 36.72071262 | J26: 37.822334 | K26: 38.95700402 | L26: National Grid Forecast
B27: ="Forecast to asset transfer to OFTO in "&TB!E4 -> Forecast to asset transfer to OFTO in 2022/23 | I27: 13.21807016 | J27: 18.82545425 | K27: 19.39021788 | L27: National Grid Forecast
B28: ="Forecast to asset transfer to OFTO in "&TB!F4 -> Forecast to asset transfer to OFTO in 2023/24 | J28: 50.56327552 | K28: 92.48405945 | L28: National Grid Forecast
B29: ="Forecast to asset transfer to OFTO in "&TB!G4 -> Forecast to asset transfer to OFTO in 2024/25 | K29: 25.04875386 | L29: National Grid Forecast
B30: Offshore Transmission Pass-Through (B7) | C30: =SUM(C7:C29) ->  | G30: 441.8063053 | H30: 507.2992332 | I30: 557.5256492 | J30: 630.0255361 | K30: =SUM(K7:K29) -> 706.9929705
B32: Notes:
B33: All monies are nominal 'money of the day' prices unless stated otherwise
B34: Licensee forecasts and budgets are subject to change especially where they are influenced by external stakeholders
B35: Greyed out cells are either calculated or not applicable in the year concerned due to the way the licence formula are constructed
B36: NIC payments are not included as they do not form part of OFTO Maximum Revenue

Sheet TNNN
A1: Table NNN - Gross system peak demand (GW) | H1: Return to Index
D4: Actual Demand | H4: Forecast Demand* | I4: Final Tariffs | J4: March Forecast | K4: Five Year Forecast
B5: Zone | C5: Zone Name | D5: 2014/15 | E5: 2015/16 | F5: 2016/17 | G5: 2017/18 | H5: 2018/19 | I5: 2019/20 | J5: 2020/21 | K5: 2021/22 | L5: 2022/23 | M5: 2023/24 | N5: 2024/25
B6: 1 | C6: Northern Scotland | D6: 1.594209396 | E6: 1.675253222 | F6: 1.422515605 | G6: 1.418315867 | H6: 1.477054512 | I6: 1.506500347 | J6: 1.459110821 | K6: 1.457263227 | L6: 1.45483756 | M6: 1.445859371 | N6: 1.461519002
B7: 2 | C7: Southern Scotland | D7: 4.042403285 | E7: 4.078214394 | F7: 3.74926027 | G7: 3.456103067 | H7: 3.500496107 | I7: 3.446682819 | J7: 3.354501073 | K7: 3.343286558 | L7: 3.359066737 | M7: 3.360602771 | N7: 3.378792008
B8: 3 | C8: Northern | D8: 3.400507253 | E8: 2.750842963 | F8: 2.475292938 | G8: 2.650433933 | H8: 2.663979497 | I8: 2.577524576 | J8: 2.523058453 | K8: 2.509332179 | L8: 2.515351447 | M8: 2.521095553 | N8: 2.527964178
B9: 4 | C9: North West | D9: 4.682187185 | E9: 4.502974801 | F9: 3.997401432 | G9: 4.104309533 | H9: 4.116856896 | I9: 4.033769832 | J9: 3.940979651 | K9: 3.927153507 | L9: 3.931111411 | M9: 3.946538359 | N9: 3.958072088
B10: 5 | C10: Yorkshire | D10: 4.706506015 | E10: 4.68853817 | F10: 4.539476227 | G10: 3.962227133 | H10: 3.919728623 | I10: 3.829851232 | J10: 3.744695219 | K10: 3.736037591 | L10: 3.726891838 | M10: 3.746498519 | N10: 3.763402486
B11: 6 | C11: N Wales & Mersey | D11: 3.001291397 | E11: 3.327740213 | F11: 3.413006606 | G11: 2.7478426 | H11: 2.677573899 | I11: 2.628273177 | J11: 2.575677975 | K11: 2.56765736 | L11: 2.562132791 | M11: 2.574487584 | N11: 2.577067449
B12: 7 | C12: East Midlands | D12: 5.547402452 | E12: 5.213112305 | F12: 5.21011915 | G12: 4.837037333 | H12: 4.76300739 | I12: 4.66244489 | J12: 4.560828918 | K12: 4.552742724 | L12: 4.551883987 | M12: 4.567832275 | N12: 4.587547079
B13: 8 | C13: Midlands | D13: 4.867336784 | E13: 4.661149222 | F13: 4.53571198 | G13: 4.439207 | H13: 4.370505227 | I13: 4.253432103 | J13: 4.155282003 | K13: 4.139608684 | L13: 4.152134094 | M13: 4.162276739 | N13: 4.171514673
B14: 9 | C14: Eastern | D14: 7.265977099 | E14: 6.818032327 | F14: 6.605329003 | G14: 6.653124667 | H14: 6.604513643 | I14: 6.442994478 | J14: 6.305109821 | K14: 6.267953161 | L14: 6.304070486 | M14: 6.307770036 | N14: 6.310965731
B15: 10 | C15: South Wales | D15: 2.169362577 | E15: 2.222782148 | F15: 2.633022441 | G15: 1.8206984 | H15: 1.842641732 | I15: 1.819783703 | J15: 1.78428115 | K15: 1.774562794 | L15: 1.77074674 | M15: 1.778559887 | N15: 1.788435017
B16: 11 | C16: South East | D16: 4.322791082 | E16: 4.054060899 | F16: 3.918902966 | G16: 4.0084662 | H16: 3.999298669 | I16: 3.895412044 | J16: 3.817791846 | K16: 3.794867143 | L16: 3.819922587 | M16: 3.820544331 | N16: 3.818433886
B17: 12 | C17: London | D17: 5.332238074 | E17: 5.009138059 | F17: 4.692069731 | G17: 4.891478133 | H17: 4.322863494 | I17: 4.162231786 | J17: 4.112993211 | K17: 4.080074642 | L17: 4.074393718 | M17: 4.09527556 | N17: 4.091657913
B18: 13 | C18: Southern | D18: 6.479082082 | E18: 6.19325955 | F18: 6.23234918 | G18: 5.828245667 | H18: 5.583914549 | I18: 5.472968747 | J18: 5.359708127 | K18: 5.340046797 | L18: 5.365235949 | M18: 5.369598927 | N18: 5.373580062
B19: 14 | C19: South Western | D19: 2.918847786 | E19: 2.710877193 | F19: 2.62879894 | G19: 2.596024533 | H19: 2.620639899 | I19: 2.594091711 | J19: 2.553143991 | K19: 2.537305706 | L19: 2.538510142 | M19: 2.545523186 | N19: 2.547927994
C20: TOTAL | D20: =SUM(D6:D19) -> 60.33014247 | E20: =SUM(E6:E19) -> 57.90597547 | F20: 56.05325647 | G20: 53.41351407 | H20: 52.46307414 | I20: 51.32596144 | J20: 50.24716226 | K20: 50.02789207 | L20: 50.12628949 | M20: 50.2424631 | N20: 50.35687957
D22: *Demand for 2018/19 not yet confirmed

Sheet TOOO
A1: Table OOO - Gross HH demand (GW) | H1: Return to Index
D4: Actual Demand | H4: Forecast Demand* | I4: Final Tariffs | J4: March Forecast | K4: Five Year Forecast
B5: Zone | C5: Zone Name | D5: 2014/15 | E5: 2015/16 | F5: 2016/17 | G5: 2017/18 | H5: 2018/19 | I5: 2019/20 | J5: 2020/21 | K5: 2021/22 | L5: 2022/23 | M5: 2023/24 | N5: 2024/25
B6: 1 | C6: Northern Scotland | D6: 0.4433414667 | E6: 0.4369693333 | F6: 0.4825368667 | G6: 0.4829644 | H6: 0.4890588999 | I6: 0.427580991 | J6: 0.4391367617 | K6: 0.4361701448 | L6: 0.4460444397 | M6: 0.4421225472 | N6: 0.4450081024
B7: 2 | C7: Southern Scotland | D7: 1.217438867 | E7: 1.215424667 | F7: 1.297424533 | G7: 1.328730333 | H7: 1.258785484 | I7: 1.125619346 | J7: 1.209683409 | K7: 1.204605347 | L7: 1.233919381 | M7: 1.211343293 | N7: 1.228302504
B8: 3 | C8: Northern | D8: 1.0519048 | E8: 1.028555667 | F8: 1.119573267 | G8: 1.1336 | H8: 1.078298507 | I8: 0.9020794079 | J8: 1.03629328 | K8: 1.034715539 | L8: 1.041203538 | M8: 1.042578345 | N8: 1.037100796
B9: 4 | C9: North West | D9: 1.486262 | E9: 1.430963 | F9: 1.557512867 | G9: 1.548860867 | H9: 1.52252028 | I9: 1.413353913 | J9: 1.478332777 | K9: 1.471486207 | L9: 1.451192919 | M9: 1.476130119 | N9: 1.470918605
B10: 5 | C10: Yorkshire | D10: 1.511983267 | E10: 1.495981533 | F10: 1.588013933 | G10: 1.6164036 | H10: 1.609734554 | I10: 1.495276279 | J10: 1.563730641 | K10: 1.56282035 | L10: 1.53457518 | M10: 1.556962994 | N10: 1.566023096
B11: 6 | C11: N Wales & Mersey | D11: 1.044624933 | E11: 1.02744 | F11: 1.0954188 | G11: 1.088576533 | H11: 1.085298335 | I11: 0.9910023673 | J11: 1.04072273 | K11: 1.032089061 | L11: 1.03682335 | M11: 1.040259934 | N11: 1.04513734
B12: 7 | C12: East Midlands | D12: 1.8717122 | E12: 1.805962333 | F12: 1.901509667 | G12: 1.8736522 | H12: 1.878074412 | I12: 1.717461032 | J12: 1.765326401 | K12: 1.764297258 | L12: 1.761644155 | M12: 1.766492288 | N12: 1.772258944
B13: 8 | C13: Midlands | D13: 1.5793416 | E13: 1.554892467 | F13: 1.7137528 | G13: 1.7112852 | H13: 1.61695794 | I13: 1.388571697 | J13: 1.562175608 | K13: 1.566017272 | L13: 1.580527377 | M13: 1.579296559 | N13: 1.574786406
B14: 9 | C14: Eastern | D14: 2.0514528 | E14: 2.0300148 | F14: 2.2674006 | G14: 2.312286133 | H14: 2.132610743 | I14: 1.931332244 | J14: 2.077982226 | K14: 2.051234863 | L14: 2.068990098 | M14: 2.065888413 | N14: 2.061042574
B15: 10 | C15: South Wales | D15: 0.7434417333 | E15: 0.7966653333 | F15: 0.7654353333 | G15: 0.7539986 | H15: 0.8387434669 | I15: 0.7789007288 | J15: 0.8175559617 | K15: 0.7993280666 | L15: 0.7955075622 | M15: 0.7984941766 | N15: 0.8035653028
B16: 11 | C16: South East | D16: 1.135681133 | E16: 1.127752067 | F16: 1.250271333 | G16: 1.296529467 | H16: 1.168966799 | I16: 1.059905582 | J16: 1.159522518 | K16: 1.145717724 | L16: 1.153845341 | M16: 1.152999076 | N16: 1.150975868
B17: 12 | C17: London | D17: 2.269468667 | E17: 2.235762667 | F17: 2.332194533 | G17: 2.398476 | H17: 2.285729746 | I17: 2.202526201 | J17: 2.241879234 | K17: 2.216332739 | L17: 2.207880694 | M17: 2.218085746 | N17: 2.21525418
B18: 13 | C18: Southern | D18: 2.011676 | E18: 2.0126462 | F18: 2.189413733 | G18: 2.1970734 | H18: 2.072206377 | I18: 1.933211328 | J18: 2.0256887 | K18: 2.014231305 | L18: 2.030603016 | M18: 2.025755722 | N18: 2.022048167
B19: 14 | C19: South Western | D19: 0.737769 | E19: 0.7053784 | F19: 0.7933533333 | G19: 0.8073726667 | H19: 0.7641816184 | I19: 0.6406293579 | J19: 0.746423237 | K19: 0.7471268174 | L19: 0.7476621286 | M19: 0.7500071579 | N19: 0.7561176571
C20: TOTAL | D20: =SUM(D6:D19) -> 19.15609847 | E20: =SUM(E6:E19) -> 18.90440847 | F20: 20.3538116 | G20: 20.5498094 | H20: =SUM(H6:H19) -> 19.80116716 | I20: =SUM(I6:I19) -> 18.00745048 | J20: 19.16445348 | K20: =SUM(K6:K19) -> 19.04617269 | L20: =SUM(L6:L19) -> 19.09041918 | M20: 19.12641637 | N20: =SUM(N6:N19) -> 19.14853954
D22: *Demand for 2018/19 not yet confirmed

Sheet TPPP
A1: Table PPP - Embedded export volumes (GW) | H1: Return to Index
D4: Actual Demand | H4: Forecast Demand* | I4: Final Tariffs | J4: March Forecast | K4: Five Year Forecast
B5: Zone | C5: Zone Name | D5: 2014/15 | E5: 2015/16 | F5: 2016/17 | G5: 2017/18 | H5: 2018/19 | I5: 2019/20 | J5: 2020/21 | K5: 2021/22 | L5: 2022/23 | M5: 2023/24 | N5: 2024/25
B6: 1 | C6: Northern Scotland | D6: 0.5413018 | E6: 0.5499336 | F6: 0.8489197333 | G6: 0.9313628667 | H6: 1.000842162 | I6: 1.359341752 | J6: 1.229159625 | K6: 1.232764821 | L6: 1.108060515 | M6: 0.9487544064 | N6: 1.037716636
B7: 2 | C7: Southern Scotland | D7: 0.2996747333 | E7: 0.3948078667 | F7: 0.5625044667 | G7: 0.4964598667 | H7: 0.6695256566 | I7: 0.9582960672 | J7: 0.6976268914 | K7: 0.6339190642 | L7: 0.8049560844 | M7: 0.680030679 | N7: 0.8391433515
B8: 3 | C8: Northern | D8: 0.7162356 | E8: 0.3956508667 | F8: 0.259126 | G8: 0.3958255333 | H8: 0.5807280671 | I8: 0.572443567 | J8: 0.515230192 | K8: 0.4843899039 | L8: 0.4771272568 | M8: 0.5025293903 | N8: 0.4765936952
B9: 4 | C9: North West | D9: 0.2019951333 | E9: 0.2814569333 | F9: 0.3153830667 | G9: 0.424166 | H9: 0.3434135798 | I9: 0.4066077043 | J9: 0.3880567373 | K9: 0.3679093486 | L9: 0.356329541 | M9: 0.3768891813 | N9: 0.3633064742
B10: 5 | C10: Yorkshire | D10: 0.4515649333 | E10: 0.627142 | F10: 0.6421356667 | G10: 0.8601378 | H10: 0.6352966732 | I10: 0.750197929 | J10: 0.702845782 | K10: 0.68363093 | L10: 0.6726849882 | M10: 0.696053335 | N10: 0.673162021
B11: 6 | C11: N Wales & Mersey | D11: 0.3433644 | E11: 0.472908 | F11: 0.4321334667 | G11: 0.5355032 | H11: 0.5379364229 | I11: 0.6220332974 | J11: 0.5771378377 | K11: 0.561745902 | L11: 0.5422901186 | M11: 0.5718303293 | N11: 0.5428201745
B12: 7 | C12: East Midlands | D12: 0.3354647333 | E12: 0.3727860667 | F12: 0.4131289333 | G12: 0.6626961333 | H12: 0.476682221 | I12: 0.5784935756 | J12: 0.5516502928 | K12: 0.5344304186 | L12: 0.5071621848 | M12: 0.5461230667 | N12: 0.5132475596
B13: 8 | C13: Midlands | D13: 0.2126148 | E13: 0.2370440667 | F13: 0.3111716667 | G13: 0.4079038667 | H13: 0.2114544623 | I13: 0.2341700296 | J13: 0.2385689317 | K13: 0.2277094115 | L13: 0.2306988152 | M13: 0.228118549 | N13: 0.218868596
B14: 9 | C14: Eastern | D14: 0.5620547333 | E14: 0.5528504 | F14: 0.559639 | G14: 0.8446520667 | H14: 0.6242080254 | I14: 0.694976338 | J14: 0.6556745049 | K14: 0.6403101956 | L14: 0.5919042633 | M14: 0.6988996051 | N14: 0.6444405141
B15: 10 | C15: South Wales | D15: 0.243352 | E15: 0.3518284667 | F15: 0.3812588667 | G15: 0.5589846667 | H15: 0.3313401138 | I15: 0.4155706504 | J15: 0.390006145 | K15: 0.3682336746 | L15: 0.3641197324 | M15: 0.3753913004 | N15: 0.3635968137
B16: 11 | C16: South East | D16: 0.2994094667 | E16: 0.3043068 | F16: 0.2874032667 | G16: 0.482465 | H16: 0.3183285428 | I16: 0.3463358438 | J16: 0.3355071488 | K16: 0.3221560085 | L16: 0.3221718242 | M16: 0.3256527063 | N16: 0.3137445752
B17: 12 | C17: London | D17: 0.1209800667 | E17: 0.1375828667 | F17: 0.2565299333 | G17: 0.2507064667 | H17: 0.1490715507 | I17: 0.1413969668 | J17: 0.1327660436 | K17: 0.1240174088 | L17: 0.1255223781 | M17: 0.125717091 | N17: 0.1172617761
B18: 13 | C18: Southern | D18: 0.4633329333 | E18: 0.5835816667 | F18: 0.6373860667 | G18: 0.7367904667 | H18: 0.4366576918 | I18: 0.4097204981 | J18: 0.4022971267 | K18: 0.3862444589 | L18: 0.3903647231 | M18: 0.3879961863 | N18: 0.3629296215
B19: 14 | C19: South Western | D19: 0.2387971333 | E19: 0.2440958667 | F19: 0.3465363333 | G19: 0.3872715333 | H19: 0.2003174261 | I19: 0.2581559796 | J19: 0.2745962472 | K19: 0.2524931706 | L19: 0.2367674521 | M19: 0.246920121 | N19: 0.224100616
C20: TOTAL | D20: =SUM(D6:D19) -> 5.030142467 | E20: =SUM(E6:E19) -> 5.505975467 | F20: 6.253256467 | G20: 7.974925467 | H20: 6.515802595 | I20: 7.747740199 | J20: 7.091123507 | K20: 6.819954717 | L20: 6.730159878 | M20: 6.710905947 | N20: 6.690932425
D22: *Demand for 2018/19 not yet confirmed

Sheet TQQQ
A1: Table QQQ - NHH demand (TWh) | H1: Return to Index
D4: Actual Demand | H4: Forecast Demand* | I4: Final Tariffs | J4: March Forecast | K4: Five Year Forecast
B5: Zone | C5: Zone Name | D5: 2014/15 | E5: 2015/16 | F5: 2016/17 | G5: 2017/18 | H5: 2018/19 | I5: 2019/20 | J5: 2020/21 | K5: 2021/22 | L5: 2022/23 | M5: 2023/24 | N5: 2024/25
B6: 1 | C6: Northern Scotland | D6: 0.8755962384 | E6: 0.8335768396 | F6: 0.7345999242 | G6: 0.7491917191 | H6: 0.7408035074 | I6: 0.7841774083 | J6: 0.7558301083 | K6: 0.7432436294 | L6: 0.7513389855 | M6: 0.7492243097 | N6: 0.752567967
B7: 2 | C7: Southern Scotland | D7: 1.988174653 | E7: 1.878440167 | F7: 1.756696332 | G7: 1.61605605 | H7: 1.66322602 | I7: 1.771222969 | J7: 1.653037707 | K7: 1.63998898 | L7: 1.644958702 | M7: 1.642010632 | N7: 1.644124981
B8: 3 | C8: Northern | D8: 1.46781778 | E8: 1.399788641 | F8: 1.317666176 | G8: 1.156009438 | H8: 1.199962226 | I8: 1.317697649 | J8: 1.172583859 | K8: 1.166038086 | L8: 1.16266273 | M8: 1.159856926 | N8: 1.155040173
B9: 4 | C9: North West | D9: 2.242709235 | E9: 2.178360197 | F9: 2.08925477 | G9: 1.923143384 | H9: 1.932306722 | I9: 2.023841932 | J9: 1.927783773 | K9: 1.913512972 | L9: 1.914286606 | M9: 1.905049054 | N9: 1.905568793
B10: 5 | C10: Yorkshire | D10: 2.093869649 | E10: 1.999293693 | F10: 1.897612212 | G10: 1.752897378 | H10: 1.76052198 | I10: 1.825308989 | J10: 1.752040461 | K10: 1.740164105 | L10: 1.739455863 | M10: 1.734268926 | N10: 1.730927495
B11: 6 | C11: N Wales & Mersey | D11: 1.474544231 | E11: 1.402869808 | F11: 1.310039741 | G11: 1.225660219 | H11: 1.222886017 | I11: 1.29831167 | J11: 1.2245951 | K11: 1.213638551 | L11: 1.211329949 | M11: 1.207848318 | N11: 1.207743861
B12: 7 | C12: East Midlands | D12: 2.508208225 | E12: 2.404136424 | F12: 2.286713814 | G12: 2.205353975 | H12: 2.160075086 | I12: 2.239372203 | J12: 2.178166148 | K12: 2.161396258 | L12: 2.162696425 | M12: 2.157257805 | N12: 2.155526459
B13: 8 | C13: Midlands | D13: 2.373673205 | E13: 2.271726862 | F13: 2.158751532 | G13: 1.983456977 | H13: 1.995256817 | I13: 2.171433796 | J13: 1.978562505 | K13: 1.966518244 | L13: 1.964489328 | M13: 1.959277996 | N13: 1.954082935
B14: 9 | C14: Eastern | D14: 3.617355799 | E14: 3.481791725 | F14: 3.364333358 | G14: 3.116502329 | H14: 3.085641687 | I14: 3.23772703 | J14: 3.083004031 | K14: 3.067127734 | L14: 3.061310296 | M14: 3.058686108 | N14: 3.048451389
B15: 10 | C15: South Wales | D15: 0.9832433211 | E15: 0.9318246447 | F15: 0.8756363023 | G15: 0.8223153683 | H15: 0.8293664415 | I15: 0.8841946776 | J15: 0.8354299725 | K15: 0.8268723929 | L15: 0.829377959 | M15: 0.8263940391 | N15: 0.827878561
B16: 11 | C16: South East | D16: 2.250136295 | E16: 2.161163626 | F16: 2.081317092 | G16: 1.913239468 | H16: 1.910257878 | I16: 2.00831368 | J16: 1.905060932 | K16: 1.896511283 | L16: 1.891792141 | M16: 1.891373195 | N16: 1.884005406
B17: 12 | C17: London | D17: 2.180137932 | E17: 2.086114425 | F17: 2.132928619 | G17: 1.814442083 | H17: 1.836101042 | I17: 1.870962159 | J17: 1.79940542 | K17: 1.80428723 | L17: 1.795060108 | M17: 1.798645871 | N17: 1.785805284
B18: 13 | C18: Southern | D18: 3.014437399 | E18: 2.906836241 | F18: 2.796197361 | G18: 2.590827635 | H18: 2.563259144 | I18: 2.677801363 | J18: 2.568857197 | K18: 2.553073414 | L18: 2.548949544 | M18: 2.544965074 | N18: 2.537701245
B19: 14 | C19: South Western | D19: 1.530096038 | E19: 1.454076706 | F19: 1.345077766 | G19: 1.296669866 | H19: 1.272586109 | I19: 1.401733455 | J19: 1.29071949 | K19: 1.278347051 | L19: 1.279013025 | M19: 1.272939301 | N19: 1.269170253
C20: TOTAL | D20: =SUM(D6:D19) -> 28.6 | E20: =SUM(E6:E19) -> 27.39 | F20: 26.146825 | G20: 24.16576589 | H20: 24.17225068 | I20: 25.51209898 | J20: 24.1250767 | K20: 23.97071993 | L20: 23.95672166 | M20: 23.90779755 | N20: 23.8585948
D22: *Demand for 2018/19 not yet confirmed
